{"text_format":"1","workbook":"xlsx","n_sheets":9,"sheets":["Työkalun tiedot","Yhteenveto","Materiaalit","Valmistus","Kuljetus ja käyttö","Elinkaaren loppu","Päästökertoimet","Muut kertoimet","Misc."],"not_rendered":{"charts":8,"images":12,"macros":1,"external_links":0,"defined_names":100,"comments":5,"pivot_tables":0},"unopened":[],"bounds":{"document_bytes":16777216,"sheet_cells":100000,"rows_first":2000,"rows_last":500,"rows_between":2000,"halvings":0,"cell_chars":16384,"cell_head_chars":4096},"cells_cut":0,"cells_raw":0,"read":"whole","date_system":"1900"}

{"sheet":"Työkalun tiedot","index":0,"n_rows":48,"n_cols":6,"rows_kept":48,"cut":false,"hidden":false,"merged":[[2,1,2,12],[46,1,46,12],[3,12,16,12],[47,1,50,12],[19,1,19,12],[20,1,28,12],[31,1,31,12],[33,2,33,3],[32,2,32,3],[33,4,33,12],[36,1,40,12],[34,2,34,4],[34,5,34,12],[3,1,17,11],[42,1,42,12]]}
[null,"Tuotteen hiilijalanjäljen laskentatyökalu"]
[]
[null," Työkalun esittely"]
[null,"Tämän laskentatyökalun avulla, teollisuuden pk-yritykset voivat mallintaa tuotteiden hiilijalanjälkiä koko tuotteen elinkaaren ajalta. Elinkaaren vaiheisiin kuuluu luonnonvarojen talteenotto, kuljetus ja jalostus raaka-aineiksi, raaka-aineiden kuljetus ja tuotteiden valmistus, valmiiden tuotteiden kuljetus ja jakelu, tuotteiden käyttö ja tuotteiden hävittäminen.\n\nTyökalu on Seinäjoen Ammattikorkeakoulun (SeAMK) tuottama, osana SeAMKin koordinoimaa ESR rahoitteista  Ympäristöosaamisen kehittämisellä kohti kestävää teollisuutta hanketta. Työkalun on luonut Ilmastoapu Oy.\n\nYmpäristöosaamisen kehittämisellä kohti kestävää teollisuutta -hankkeessa päätavoite on kasvattaa teollisten pk-yritysten osaamista liittyen ympäristövaikutusten hallintaan ja vihreän liiketoiminnan mahdollisuuksiin. Hankkeen toteutuksesta vastaa SeAMK ja se on suunnattu Etelä-Pohjanmaan teollisuusalueella seuraaville kohderyhmille: teolliset mikro- ja pk-yritykset yrittäjistä muuhun henkilöstöön, SeAMKin henkilöstö, opiskelijat sekä työelämän ulkopuolella olevat. Välillisenä kohderyhmänä on kunnat."]
[]
[]
[]
[]
[]
[]
[]
[]
[]
[]
[]
[]
[]
[]
[]
[null," Työkalun sisältö"]
[null,"Työkalu sisältää seuraavat välilehdet:\nYhteenveto: Tuotteen perustiedot ja laskennan tulokset, sekä laskennan rajaus.\nMateriaalit: Tuotteen valmistuksessa käytettyjen raaka-aineiden, komponenttien ja valmistuksen apuaineiden, sekä niiden kuljetusten erittely.\nValmistus: Tuotteen valmistusprosessien erittely.\nKuljetus ja käyttö: Valmiin tuotteen kuljetusten erittely ja tuotteen käytönaikaiset päästöt.\nElinkaaren loppu: Tuotteen hävittämisen erittely.\nPäästökertoimet: Raaka-aineiden, komponenttien ja valmistuksen apuaineiden, sekä energian, polttoaineiden, kuljetusten ja jätteiden päästökertoimet.\nMuut kertoimet: Valmiiden tuotantoprosessien energiakertoimet."]
[]
[]
[]
[]
[]
[]
[]
[]
[]
[]
[null," Työkalun käyttö"]
[]
[null,"Tiedot syötetään ","harmaisiin soluihin",null," Muut solut ovat lukittuja."]
[null,"Päästökertoimissa","keltaisella korostetut solut",null,null,"on tarkoitettu päivitettäväksi vuosittain."]
[]
[null,"Välilehdillä esitetään ohjeita työkalun käyttöön. Ohjeet ovat kaksitasoisia:\n\n1.                            painiketta klikkaamalla saa esiin koko välilehteä koskevat ohjeet.\n\n2.         painiketta klikkaamalla saa esiin yksittäistä toimintoa koskevat ohjeet."]
[]
[]
[]
[]
[]
[null," Työkalun versio"]
[]
[null,"10.11.2022"]
[]
[null," Käyttöoikeus ja vastuuvapaus"]
[null,"Työkalu on Seinäjoen Ammattikorkeakoulun tuottama ja se on tehty yhteistyössä Ilmastoapu Oy:n kanssa. Työkalu on käytettävissä veloituksetta. Seinäjoen Ammatti-korkeakoulu tai Ilmastoapu Oy eivät vastaa mistään vahingoista, jotka mahdollisesti aiheutuvat arviointityökalun käyttäjälle tai muulle taholle arviointityökalua käytettäessä tai muuten sovellettaessa siinä olevia tietoja, toimintamalleja tai esimerkkejä."]

{"sheet":"Yhteenveto","index":1,"n_rows":127,"n_cols":28,"rows_kept":127,"cut":false,"hidden":false,"merged":[[110,2,110,6],[107,2,107,6],[108,2,108,6],[109,2,109,6],[3,2,3,22],[16,2,16,22],[5,13,5,15],[6,2,6,5],[7,2,7,5],[5,2,5,5],[9,2,9,5],[10,2,10,5],[5,6,5,11],[6,6,6,11],[9,6,9,11],[10,6,10,11],[63,4,63,6],[63,12,63,15],[63,18,63,22],[69,2,70,6],[69,11,70,15],[41,4,41,6],[47,2,48,6],[49,2,50,6],[17,2,17,22],[19,18,19,22],[19,4,19,6],[25,2,26,6],[27,2,28,6],[19,12,19,15],[27,11,28,15],[25,11,26,15],[85,4,85,6],[91,2,92,6],[93,2,94,6],[71,2,72,6],[71,11,72,15],[78,15,78,16]]}
[]
[null,null,"Tuotteen hiilijalanjäljen laskentatyökalu",null,null,null,null,null,null,null,null,null,null,null,null,null,null,null,null,null,null,null,null,null,2,null,0]
[]
[null,null," Laskennan perustiedot"]
[]
[null,null,"  Yritys",null,null,"  Yritys",null,null,null,null,null,null,null,"  Valitse laskennan rajaus"]
[null,null,"  Tuote",null,null,null,null,null,null,null,null,null,null,"       Cradle-to-gate"]
[null,null,"  Tuotteen kokonaismassa",null,null,"  Tuotteen kokonaismassa",{"$f":"Materiaalit!H6","v":0},"kg",null,null,null,null,null,"       Cradle-to-grave"]
[]
[null,null,"  Laskennan päiväys",null,null,"  Laskennan päiväys"]
[null,null,"  Laskennan suoritti"]
[]
[]
[]
[]
[]
[null,null," Laskennan tulokset"]
[]
[]
[null,null,null,null,"Päästöt elinkaarivaiheittain      ",null,null,null,null,null,null,null,"Päästöt päästölähteittäin      ",null,null,null,null,null,"Tuotteen materiaalijakauma (kg)"]
[null,null,null,null,null,null,null,null,null,null,null,null,null,null,null,null,null,null,null,null,null,null,null,null,"Luokittelemattomat materiaalit",null,{"$f":"Materiaalit!$BG$6","v":0}]
[null,null,null,null,null,null,null,null,null,null,null,null,null,null,null,null,null,null,null,null,null,null,null,null,"Pakkausmateriaalit",null,{"$f":"Materiaalit!$BF$6","v":0}]
[null,null,null,null,null,null,null,null,null,null,null,null,null,null,null,null,null,null,null,null,null,null,null,null,"Erikoispinnoitteet",null,{"$f":"Materiaalit!$BE$6","v":0}]
[null,null,null,null,null,null,null,null,null,null,null,null,null,null,null,null,null,null,null,null,null,null,null,null,"Maalit ja liuottimet",null,{"$f":"Materiaalit!$BD$6","v":0}]
[null,null,null,null,null,null,null,null,null,null,null,null,null,null,null,null,null,null,null,null,null,null,null,null,"Liimat",null,{"$f":"Materiaalit!$BC$6","v":0}]
[null,null,{"$f":"SUM(G36:G38)","v":0},null,null,null,null,null,null,185.39,null,{"$f":"SUM(P36:P39)","v":0},null,null,null,null,null,null,null,null,null,null,null,null,"Tekstiilit ja tekstiilikuidut",null,{"$f":"Materiaalit!$BB$6","v":0}]
[null,null,null,null,null,null,null,null,null,null,null,null,null,null,null,null,null,null,null,null,null,null,null,null,"Puutuotteet",null,{"$f":"Materiaalit!$BA$6","v":0}]
[null,null,"kgCO2e",null,null,null,null,null,null,null,null,"kgCO2e",null,null,null,null,null,null,null,null,null,null,null,null,"Lasi",null,{"$f":"Materiaalit!$AZ$6","v":0}]
[null,null,null,null,null,null,null,null,null,null,null,null,null,null,null,null,null,null,null,null,null,null,null,null,"Muovi",null,{"$f":"Materiaalit!$AY$6","v":0}]
[null,null,null,null,null,null,null,null,null,null,null,null,null,null,null,null,null,null,null,null,null,null,null,null,"Kumi",null,{"$f":"Materiaalit!$AX$6","v":0}]
[null,null,null,null,null,null,null,null,null,null,null,null,null,null,null,null,null,null,null,null,null,null,null,null,"Muut metallit",null,{"$f":"Materiaalit!$AW$6","v":0}]
[null,null,null,null,null,null,null,null,null,null,null,null,null,null,null,null,null,null,null,null,null,null,null,null,"Ruostumattomat teräkset",null,{"$f":"Materiaalit!$AV$6","v":0}]
[null,null,null,null,null,null,null,null,null,null,null,null,null,null,null,null,null,null,null,null,null,null,null,null,"Teräkset",null,{"$f":"Materiaalit!$AU$6","v":0}]
[null,null,null,null,null,null,null,null,null,null,null,null,null,null,null,null,null,null,null,null,null,null,null,null,"Kiinnitystarvikkeet",null,{"$f":"Materiaalit!$AT$6","v":0}]
[null,null,null,null,null,null,"kgCO2e",null,null,null,null,null,null,null,null,"kgCO2e",null,null,null,null,null,null,null,null,"Valaistus ja elektroniikka",null,{"$f":"Materiaalit!$AS$6","v":0}]
[null,null,null,null,null,"  Tuotteen valmistus",{"$f":"Materiaalit!L13+Materiaalit!L25+Valmistus!N13+Valmistus!J23+Valmistus!P47+Valmistus!H59+Valmistus!L69+Valmistus!L35","v":0},null,null,null,null,null,"  Materiaalit",null,null,{"$f":"Materiaalit!L13+Valmistus!AL40+Valmistus!BI52","v":0},null,null,null,null,null,null,null,null,"Mekaniikkakomponentit",null,{"$f":"Materiaalit!$AR$6","v":0}]
[null,null,null,null,null,"  Tuotteen käyttö",{"$f":"IF(Y2=2,'Kuljetus ja käyttö'!J12+'Kuljetus ja käyttö'!J22,\" - \")","v":0},null,null,null,null,null,"  Kuljetukset",null,null,{"$f":"IF(Y2=2,Materiaalit!L25+Valmistus!AK40+Valmistus!L35+Valmistus!BG52+'Kuljetus ja käyttö'!J12,Materiaalit!L25+Valmistus!AK40+Valmistus!BG52)","v":0},null,null,null,null,null,null,null,null,"Automaatiokomponentit",null,{"$f":"Materiaalit!$AQ$6","v":0}]
[null,null,null,null,null,"  Tuotteen hävittäminen",{"$f":"IF(Y2=2,'Elinkaaren loppu'!G23,\" - \")","v":0},null,null,null,null,null,"  Energia",null,null,{"$f":"IF(Y2=2,Valmistus!N13+Valmistus!L133+Valmistus!J23+'Kuljetus ja käyttö'!J22+Valmistus!L69,Valmistus!N13+Valmistus!L133+Valmistus!L69)","v":0},null,null,null,null,null,null,null,null,null,null,{"$f":"SUM(AA23:AA37)","v":0}]
[null,null,null,null,null,null,null,null,null,null,null,null,"  Jätteet",null,null,{"$f":"IF(Y2=2,Valmistus!AZ52+'Elinkaaren loppu'!G23,Valmistus!AZ52)","v":0}]
[]
[]
[null,null,null,null,"Hukan päästöt     "]
[]
[]
[]
[]
[]
[null,null,{"$f":"SUM(G58:G60)","v":0}]
[]
[null,null,"kgCO2e"]
[]
[]
[]
[]
[]
[]
[null,null,null,null,null,null,"kgCO2e"]
[null,null,null,null,null,"  Materiaalit",{"$f":"Valmistus!BI52","v":0}]
[null,null,null,null,null,"  Kuljetukset",{"$f":"Valmistus!BG52","v":0}]
[null,null,null,null,null,"  Jätteenkäsittely",{"$f":"Valmistus!AZ52","v":0}]
[]
[]
[]
[null,null,null,null,"Päästöt elinkaarivaiheittain      ",null,null,null,null,null,null,null,"Päästöt päästölähteittäin",null,null,null,null,null,"Tuotteen materiaalijakauma (%)"]
[null,null,null,null,null,null,null,null,null,null,null,null,null,null,null,null,null,null,null,null,null,null,null,null,"Luokittelemattomat materiaalit",null,{"$f":"AB65/$AB$82","v":{"$error":"#DIV/0!"}},{"$f":"Materiaalit!$BG$6","v":0}]
[null,null,null,null,null,null,null,null,null,null,null,null,null,null,null,null,null,null,null,null,null,null,null,null,"Pakkausmateriaalit",null,{"$f":"AB66/$AB$82","v":{"$error":"#DIV/0!"}},{"$f":"Materiaalit!$BF$6","v":0}]
[null,null,null,null,null,null,null,null,null,null,null,null,null,null,null,null,null,null,null,null,null,null,null,null,"Erikoispinnoitteet",null,{"$error":"#DIV/0!"},{"$f":"Materiaalit!$BE$6","v":0}]
[null,null,null,null,null,null,null,null,null,null,null,null,null,null,null,null,null,null,null,null,null,null,null,null,"Maalit ja liuottimet",null,{"$error":"#DIV/0!"},{"$f":"Materiaalit!$BD$6","v":0}]
[null,null,null,null,null,null,null,null,null,null,null,null,null,null,null,null,null,null,null,null,null,null,null,null,"Liimat",null,{"$error":"#DIV/0!"},{"$f":"Materiaalit!$BC$6","v":0}]
[null,null,{"$f":"SUM(H80:H82)","v":0},null,null,null,null,null,null,185.39,null,{"$f":"SUM(Q80:Q83)","v":0},null,null,null,null,null,null,null,null,null,null,null,null,"Tekstiilit ja tekstiilikuidut",null,{"$error":"#DIV/0!"},{"$f":"Materiaalit!$BB$6","v":0}]
[null,null,null,null,null,null,null,null,null,null,null,null,null,null,null,null,null,null,null,null,null,null,null,null,"Puutuotteet",null,{"$error":"#DIV/0!"},{"$f":"Materiaalit!$BA$6","v":0}]
[null,null,"kgCO2e",null,null,null,null,null,null,null,null,"kgCO2e",null,null,null,null,null,null,null,null,null,null,null,null,"Lasi",null,{"$error":"#DIV/0!"},{"$f":"Materiaalit!$AZ$6","v":0}]
[null,null,null,null,null,null,null,null,null,null,null,null,null,null,null,null,null,null,null,null,null,null,null,null,"Muovi",null,{"$error":"#DIV/0!"},{"$f":"Materiaalit!$AY$6","v":0}]
[null,null,null,null,null,null,null,null,null,null,null,null,null,null,null,null,null,null,null,null,null,null,null,null,"Kumi",null,{"$error":"#DIV/0!"},{"$f":"Materiaalit!$AX$6","v":0}]
[null,null,null,null,null,null,null,null,null,null,null,null,null,null,null,null,null,null,null,null,null,null,null,null,"Muut metallit",null,{"$error":"#DIV/0!"},{"$f":"Materiaalit!$AW$6","v":0}]
[null,null,null,null,null,null,null,null,null,null,null,null,null,null,null,null,null,null,null,null,null,null,null,null,"Ruostumattomat teräkset",null,{"$error":"#DIV/0!"},{"$f":"Materiaalit!$AV$6","v":0}]
[null,null,null,null,null,null,null,null,null,null,null,null,null,null,null,null,null,null,null,null,null,null,null,null,"Teräkset",null,{"$error":"#DIV/0!"},{"$f":"Materiaalit!$AU$6","v":0}]
[null,null,null,null,null,null,null,null,null,null,null,null,null,null,null,null,null,null,null,null,null,null,null,null,"Kiinnitystarvikkeet",null,{"$error":"#DIV/0!"},{"$f":"Materiaalit!$AT$6","v":0}]
[null,null,null,null,null,null,"% osuus",null,null,null,null,null,null,null,null,"% osuus",null,null,null,null,null,null,null,null,"Valaistus ja elektroniikka",null,{"$error":"#DIV/0!"},{"$f":"Materiaalit!$AS$6","v":0}]
[null,null,null,null,null,"  Tuotteen valmistus",{"$f":"H80/$H$83","v":{"$error":"#DIV/0!"}},{"$f":"Materiaalit!L13+Materiaalit!L25+Valmistus!N13+Valmistus!J23+Valmistus!P47+Valmistus!H59+Valmistus!L69+Valmistus!L35","v":0},null,null,null,null,"  Materiaalit",null,null,{"$f":"Q80/$Q$84","v":{"$error":"#DIV/0!"}},{"$f":"Materiaalit!L13+Valmistus!AL40+Valmistus!BI52","v":0},null,null,null,null,null,null,null,"Mekaniikkakomponentit",null,{"$error":"#DIV/0!"},{"$f":"Materiaalit!$AR$6","v":0}]
[null,null,null,null,null,"  Tuotteen käyttö",{"$f":"IFERROR(H81/$H$83,\" - \")","v":" - "},{"$f":"IF(Y2=2,'Kuljetus ja käyttö'!J12+'Kuljetus ja käyttö'!J22,\" - \")","v":0},null,null,null,null,"  Kuljetukset",null,null,{"$f":"Q81/$Q$84","v":{"$error":"#DIV/0!"}},{"$f":"IF(Y2=2,Materiaalit!L25+Valmistus!AK40+Valmistus!L35+Valmistus!BG52+'Kuljetus ja käyttö'!J12,Materiaalit!L25+Valmistus!AK40+Valmistus!BG52)","v":0},null,null,null,null,null,null,null,"Automaatiokomponentit",null,{"$error":"#DIV/0!"},{"$f":"Materiaalit!$AQ$6","v":0}]
[null,null,null,null,null,"  Tuotteen hävittäminen",{"$f":"IFERROR(H82/$H$83,\" - \")","v":" - "},{"$f":"IF(Y2=2,'Elinkaaren loppu'!G23,\" - \")","v":0},null,null,null,null,"  Energia",null,null,{"$error":"#DIV/0!"},{"$f":"IF(Y2=2,Valmistus!N13+Valmistus!L133+Valmistus!J23+'Kuljetus ja käyttö'!J22+Valmistus!L69,Valmistus!N13+Valmistus!L133+Valmistus!L69)","v":0},null,null,null,null,null,null,null,null,null,null,{"$f":"SUM(AB65:AB81)","v":0}]
[null,null,null,null,null,null,null,{"$f":"SUM(H80:H82)","v":0},null,null,null,null,"  Jätteet",null,null,{"$error":"#DIV/0!"},{"$f":"IF(Y2=2,Valmistus!AZ52+'Elinkaaren loppu'!G23,Valmistus!AZ52)","v":0}]
[null,null,null,null,null,null,null,null,null,null,null,null,null,null,null,null,{"$f":"SUM(Q80:Q83)","v":0}]
[]
[null,null,null,null,"Hukan päästöt     "]
[]
[]
[]
[]
[]
[null,null,{"$f":"SUM(M102:M104)","v":0}]
[]
[null,null,"kgCO2e"]
[]
[]
[]
[]
[]
[]
[null,null,null,null,null,null,"kgCO2e"]
[null,null,null,null,null,"  Materiaalit",{"$f":"M102/$M$105","v":{"$error":"#DIV/0!"}},null,null,null,null,null,{"$f":"Valmistus!BI52","v":0}]
[null,null,null,null,null,"  Kuljetukset",{"$f":"M103/$M$105","v":{"$error":"#DIV/0!"}},null,null,null,null,null,{"$f":"Valmistus!BG52","v":0}]
[null,null,null,null,null,"  Jätteenkäsittely",{"$error":"#DIV/0!"},null,null,null,null,null,{"$f":"Valmistus!AZ52","v":0}]
[null,null,null,null,null,null,null,null,null,null,null,null,{"$f":"SUM(M102:M104)","v":0}]
[null,null,null,null,null,null,null,null,null,{"$f":"Valmistus!AZ52","v":0}]
[]
[]
[]
[]
[]
[]
[null,null,null,null,null,null,null,null,null,null,null,null,null,null,null,null,null,15]
[null,null,null,null,null,null,null,null,null,null,null,null,null,null,null,null,null,14]
[null,null,null,null,null,null,null,null,null,null,null,null,null,null,null,null,null,13]
[null,null,null,null,null,null,null,null,null,null,null,null,null,null,null,null,null,12]
[null,null,null,null,null,null,null,null,null,null,null,null,null,null,null,null,null,11]
[null,null,null,null,null,null,null,null,null,null,null,null,null,null,null,null,null,10]
[null,null,null,null,null,null,null,null,null,null,null,null,null,null,null,null,null,9]
[null,null,null,null,null,null,null,null,null,null,null,null,null,null,null,null,null,8]
[null,null,null,null,null,null,null,null,null,null,null,null,null,null,null,null,null,7]
[null,null,null,null,null,null,null,null,null,null,null,null,null,null,null,null,null,6]
[null,null,null,null,null,null,null,null,null,null,null,null,null,null,null,null,null,5]
[null,null,null,null,null,null,null,null,null,null,null,null,null,null,null,null,null,4]
[null,null,null,null,null,null,null,null,null,null,null,null,null,null,null,null,null,3]
[null,null,null,null,null,null,null,null,null,null,null,null,null,null,null,null,null,2]
[null,null,null,null,null,null,null,null,null,null,null,null,null,null,null,null,null,1]

{"sheet":"Materiaalit","index":2,"n_rows":25,"n_cols":60,"rows_kept":25,"cut":false,"hidden":false,"merged":[[4,7,4,9],[2,1,2,11],[14,1,14,11]]}
[null,"Tuotteen hiilijalanjäljen laskentatyökalu",null,null,null,null,null,null,null,null,null,null,null,null,null,1]
[]
[null," Tuotteen materiaalit"]
[]
[null," Osa, komponentti tai materiaali",null,"  Valitse materiaaliluokka",null," Valitse materiaali",null,"   Syötä määrä",null,null,null,"kg CO2e",null,null,null,null,null,"Laske materiaalit ehdon mukaan"]
[null,null,null,null,null,null,null,{"$f":"SUM(H7:H12)","v":0},null,null,null,null,null,null,null,null,null,null,null,null,null,null,null,null,null,null,null,null,null,null,null,null,null,"Osan nimi",{"$f":"SUM(AI7:AI12)","v":0},null,null,null,null,null,null,null,{"$f":"SUM(AQ7:AQ12)","v":0},0,0,0,0,0,0,0,0,0,0,0,0,0,0,0,0]
[null,null,null,null,null,null,null,null,{"$f":"IFERROR(VLOOKUP(F7,Päästökertoimet!$B$6:'Päästökertoimet'!$D$737,3,FALSE),\"\")","v":""},{"$f":"IF(H7>0,AI7/$AI$6*100,\"\")","v":""},{"$f":"IF(H7>0,\"%\",\"\")","v":""},{"$f":"IFERROR(VLOOKUP(F7,Päästökertoimet!$B$6:'Päästökertoimet'!$C$737,2,FALSE)*H7,\"\")","v":""},null,null,null,null,null,{"$f":"SUMIF($D$7:D99,\"TERÄKSET\",AI7:AI99)","v":0},null,null,null,null,null,null,null,null,null,null,null,null,null,null,null,{"$f":"IF(B7=0,\"\",B7)","v":""},{"$f":"IFERROR(VLOOKUP(F7,Päästökertoimet!$B$6:'Päästökertoimet'!$E$737,4,FALSE)*H7,0)","v":0},{"$f":"IF(D7=0,\"\",D7)","v":""},null,null,{"$f":"IF(B7=0,\"\",B7)","v":""},{"$f":"IFERROR(VLOOKUP(F7,Päästökertoimet!$B$6:'Päästökertoimet'!$C$737,2,FALSE),\"\")","v":""},null,null,{"$f":"IF(D7=\"AUTOMAATIOKOMPONENTIT\",AI7,0)","v":0},{"$f":"IF(D7=\"MEKANIIKKAKOMPONENTIT\",AI7,0)","v":0},{"$f":"IF(D7=\"VALAISTUS_JA_ELEKTRONIIKKA\",AI7,0)","v":0},{"$f":"IF(D7=\"KIINNITYSTARVIKKEET\",AI7,0)","v":0},{"$f":"IF(D7=\"TERÄKSET\",AI7,0)","v":0},{"$f":"IF(D7=\"RUOSTUMATTOMAT_TERÄKSET\",AI7,0)","v":0},{"$f":"IF(D7=\"MUUT_METALLIT\",AI7,0)","v":0},{"$f":"IF(D7=\"KUMI\",AI7,0)","v":0},{"$f":"IF(D7=\"MUOVIT\",AI7,0)","v":0},{"$f":"IF(D7=\"LASI\",AI7,0)","v":0},{"$f":"IF(D7=\"PUUTUOTTEET\",AI7,0)","v":0},{"$f":"IF(D7=\"TEKSTIILIT_JA_TEKSTIILIKUIDUT\",AI7,0)","v":0},{"$f":"IF(D7=\"LIIMAT\",AI7,0)","v":0},{"$f":"IF(D7=\"MAALIT_JA_LIUOTTIMET\",AI7,0)","v":0},{"$f":"IF(D7=\"ERIKOISPINNOITTEET\",AI7,0)","v":0},{"$f":"IF(D7=\"PAKKAUSMATERIAALIT\",AI7,0)","v":0},{"$f":"IF(D7=\"LUOKITTELEMATTOMAT_MATERIAALIT\",AI7,0)","v":0}]
[null,null,null,null,null,null,null,null,{"$f":"IFERROR(VLOOKUP(F8,Päästökertoimet!$B$6:'Päästökertoimet'!$D$737,3,FALSE),\"\")","v":""},{"$f":"IF(H8>0,AI8/$AI$6*100,\"\")","v":""},{"$f":"IF(H8>0,\"%\",\"\")","v":""},{"$f":"IFERROR(VLOOKUP(F8,Päästökertoimet!$B$6:'Päästökertoimet'!$C$737,2,FALSE)*H8,\"\")","v":""},null,null,null,null,null,null,null,null,null,null,null,null,null,null,null,null,null,null,null,null,null,"",{"$f":"IFERROR(VLOOKUP(F8,Päästökertoimet!$B$6:'Päästökertoimet'!$E$737,4,FALSE)*H8,0)","v":0},{"$f":"IF(D8=0,\"\",D8)","v":""},null,null,{"$f":"IF(B8=0,\"\",B8)","v":""},{"$f":"IFERROR(VLOOKUP(F8,Päästökertoimet!$B$6:'Päästökertoimet'!$C$737,2,FALSE),\"\")","v":""},null,null,{"$f":"IF(D8=\"AUTOMAATIOKOMPONENTIT\",AI8,0)","v":0},{"$f":"IF(D8=\"MEKANIIKKAKOMPONENTIT\",AI8,0)","v":0},{"$f":"IF(D8=\"VALAISTUS_JA_ELEKTRONIIKKA\",AI8,0)","v":0},{"$f":"IF(D8=\"KIINNITYSTARVIKKEET\",AI8,0)","v":0},{"$f":"IF(D8=\"TERÄKSET\",AI8,0)","v":0},{"$f":"IF(D8=\"RUOSTUMATTOMAT_TERÄKSET\",AI8,0)","v":0},{"$f":"IF(D8=\"MUUT_METALLIT\",AI8,0)","v":0},{"$f":"IF(D8=\"KUMI\",AI8,0)","v":0},{"$f":"IF(D8=\"MUOVIT\",AI8,0)","v":0},{"$f":"IF(D8=\"LASI\",AI8,0)","v":0},{"$f":"IF(D8=\"PUUTUOTTEET\",AI8,0)","v":0},{"$f":"IF(D8=\"TEKSTIILIT_JA_TEKSTIILIKUIDUT\",AI8,0)","v":0},{"$f":"IF(D8=\"LIIMAT\",AI8,0)","v":0},{"$f":"IF(D8=\"MAALIT_JA_LIUOTTIMET\",AI8,0)","v":0},{"$f":"IF(D8=\"ERIKOISPINNOITTEET\",AI8,0)","v":0},{"$f":"IF(D8=\"PAKKAUSMATERIAALIT\",AI8,0)","v":0},{"$f":"IF(D8=\"LUOKITTELEMATTOMAT_MATERIAALIT\",AI8,0)","v":0}]
[null,null,null,null,null,null,null,null,{"$f":"IFERROR(VLOOKUP(F9,Päästökertoimet!$B$6:'Päästökertoimet'!$D$737,3,FALSE),\"\")","v":""},{"$f":"IF(H9>0,AI9/$AI$6*100,\"\")","v":""},{"$f":"IF(H9>0,\"%\",\"\")","v":""},{"$f":"IFERROR(VLOOKUP(F9,Päästökertoimet!$B$6:'Päästökertoimet'!$C$737,2,FALSE)*H9,\"\")","v":""},null,null,null,null,null,null,null,null,null,null,null,null,null,null,null,null,null,null,null,null,null,{"$f":"IF(B9=0,\"\",B9)","v":""},{"$f":"IFERROR(VLOOKUP(F9,Päästökertoimet!$B$6:'Päästökertoimet'!$E$737,4,FALSE)*H9,0)","v":0},{"$f":"IF(D9=0,\"\",D9)","v":""},null,null,{"$f":"IF(B9=0,\"\",B9)","v":""},{"$f":"IFERROR(VLOOKUP(F9,Päästökertoimet!$B$6:'Päästökertoimet'!$C$737,2,FALSE),\"\")","v":""},null,null,0,0,0,0,0,0,0,0,0,0,0,0,0,0,0,0,0]
[null,null,null,null,null,null,null,null,{"$f":"IFERROR(VLOOKUP(F10,Päästökertoimet!$B$6:'Päästökertoimet'!$D$737,3,FALSE),\"\")","v":""},{"$f":"IF(H10>0,AI10/$AI$6*100,\"\")","v":""},{"$f":"IF(H10>0,\"%\",\"\")","v":""},{"$f":"IFERROR(VLOOKUP(F10,Päästökertoimet!$B$6:'Päästökertoimet'!$C$737,2,FALSE)*H10,\"\")","v":""},null,null,null,null,null,null,null,null,null,null,null,null,null,null,null,null,null,null,null,null,null,{"$f":"IF(B10=0,\"\",B10)","v":""},{"$f":"IFERROR(VLOOKUP(F10,Päästökertoimet!$B$6:'Päästökertoimet'!$E$737,4,FALSE)*H10,0)","v":0},{"$f":"IF(D10=0,\"\",D10)","v":""},null,null,{"$f":"IF(B10=0,\"\",B10)","v":""},{"$f":"IFERROR(VLOOKUP(F10,Päästökertoimet!$B$6:'Päästökertoimet'!$C$737,2,FALSE),\"\")","v":""},null,null,0,0,0,0,0,0,0,0,0,0,0,0,0,0,0,0,0]
[null,null,null,null,null,null,null,null,{"$f":"IFERROR(VLOOKUP(F11,Päästökertoimet!$B$6:'Päästökertoimet'!$D$737,3,FALSE),\"\")","v":""},{"$f":"IF(H11>0,AI11/$AI$6*100,\"\")","v":""},{"$f":"IF(H11>0,\"%\",\"\")","v":""},{"$f":"IFERROR(VLOOKUP(F11,Päästökertoimet!$B$6:'Päästökertoimet'!$C$737,2,FALSE)*H11,\"\")","v":""},null,null,null,null,null,null,null,null,null,null,null,null,null,null,null,null,null,null,null,null,null,{"$f":"IF(B11=0,\"\",B11)","v":""},{"$f":"IFERROR(VLOOKUP(F11,Päästökertoimet!$B$6:'Päästökertoimet'!$E$737,4,FALSE)*H11,0)","v":0},{"$f":"IF(D11=0,\"\",D11)","v":""},null,null,{"$f":"IF(B11=0,\"\",B11)","v":""},{"$f":"IFERROR(VLOOKUP(F11,Päästökertoimet!$B$6:'Päästökertoimet'!$C$737,2,FALSE),\"\")","v":""},null,null,0,0,0,0,0,0,0,0,0,0,0,0,0,0,0,0,0]
[null,null,null,null,null,null,null,null,{"$f":"IFERROR(VLOOKUP(F12,Päästökertoimet!$B$6:'Päästökertoimet'!$D$737,3,FALSE),\"\")","v":""},{"$f":"H12/$H$6*100","v":{"$error":"#DIV/0!"}},null,{"$f":"IFERROR(VLOOKUP(F12,Päästökertoimet!$B$6:'Päästökertoimet'!$C$737,2,FALSE)*H12,0)","v":0},null,null,null,null,null,null,null,null,null,null,null,null,null,null,null,null,null,null,null,null,null,"",{"$f":"IFERROR(VLOOKUP(F12,Päästökertoimet!$B$6:'Päästökertoimet'!$E$737,4,FALSE)*H12,0)","v":0},"",null,{"$f":"IFERROR(VLOOKUP(F12,Päästökertoimet!$B$6:'Päästökertoimet'!$C$737,2,FALSE),\"\")","v":""},"",{"$f":"IFERROR(VLOOKUP(F12,Päästökertoimet!$B$6:'Päästökertoimet'!$C$737,2,FALSE),\"\")","v":""},null,null,0,0,0,0,0,0,0,0,0,0,0,0,0,0,0,0,0]
[null,null,null,null,null,null,null,null,null,null,null,{"$f":"SUM(L7:L12)","v":0}]
[]
[null," Materiaalien kuljetus"]
[]
[null," Valitse kuljetettava osa",null,"Valitse kuljetustapa",null,"   Valitse kuljetusväline",null,null,"Syötä kuljetusmatka   ",null,null,"kg CO2e"]
[null,null,null,null,null,null,null,{"$f":"SUM(H19:H24)","v":0}]
[null,null,null,null,null,null,null,null,{"$f":"IF(B19>0,\"km\",\"\")","v":""},{"$f":"IFERROR(VLOOKUP(B19,$AH$7:$AI$89,2,FALSE)/1000*H19,\"\")","v":""},{"$f":"IF(H19>0,\"tkm\",\"\")","v":""},{"$f":"IFERROR(VLOOKUP(F19,Päästökertoimet!$B$4:$C$613,2,FALSE)*J19,\"\")","v":""},null,null,null,null,null,null,null,null,null,null,null,null,null,null,null,null,null,null,null,null,null,null,null,null,null,{"$f":"B19","v":0},{"$f":"IFERROR(VLOOKUP(F19,Päästökertoimet!$B$4:$C$613,2,FALSE),\"\")","v":""},{"$f":"H19","v":0},{"$f":"IF(D19=\"MAANTIERAHTI\",B19,\"\")","v":""},{"$f":"IF(D19=\"MAANTIERAHTI\",(VLOOKUP(F19,Päästökertoimet!$B$4:$C$613,2,FALSE)),0)","v":0},{"$f":"IF(D19=\"MAANTIERAHTI\",AN19,0)","v":0},{"$f":"BH19/1000*AQ19*AP19","v":0},{"$f":"IF(D19=\"JUNARAHTI\",B19,\"\")","v":""},{"$f":"IF(D19=\"JUNARAHTI\",(VLOOKUP(F19,Päästökertoimet!$B$4:$C$613,2,FALSE)),0)","v":0},{"$f":"IF(D19=\"JUNARAHTI\",AN19,0)","v":0},{"$f":"BH19/1000*AU19*AT19","v":0},{"$f":"IF(D19=\"LAIVARAHTI\",B19,\"\")","v":""},{"$f":"IF(D19=\"LAIVARAHTI\",(VLOOKUP(F19,Päästökertoimet!$B$4:$C$613,2,FALSE)),0)","v":0},{"$f":"IF(D19=\"LAIVARAHTI\",AN19,0)","v":0},{"$f":"BH19/1000*AY19*AX19","v":0},{"$f":"IF(D19=\"LENTORAHTI\",B19,\"\")","v":""},{"$f":"IF(D19=\"LENTORAHTI\",(VLOOKUP(F19,Päästökertoimet!$B$4:$C$613,2,FALSE)),0)","v":0},{"$f":"IF(D19=\"LENTORAHTI\",AN19,0)","v":0},{"$f":"BH19/1000*BC19*BB19","v":0},{"$f":"AO19&AS19&AW19&BA19","v":""},{"$f":"AP19+AT19+AX19+BB19","v":0},{"$f":"AQ19+AU19+AY19+BC19","v":0},{"$f":"IFERROR(VLOOKUP(BE19,Valmistus!$BA$7:$BB$211,2,FALSE),0)","v":0}]
[null,null,null,null,null,null,null,null,"",{"$f":"IFERROR(VLOOKUP(B20,$AH$7:$AI$89,2,FALSE)/1000*H20,\"\")","v":""},{"$f":"IF(H20>0,\"tkm\",\"\")","v":""},{"$f":"IFERROR(VLOOKUP(F20,Päästökertoimet!$B$4:$C$613,2,FALSE)*J20,\"\")","v":""},null,null,null,null,null,null,null,null,null,null,null,null,null,null,null,null,null,null,null,null,null,null,null,null,null,{"$f":"B20","v":0},{"$f":"IFERROR(VLOOKUP(F20,Päästökertoimet!$B$4:$C$613,2,FALSE),\"\")","v":""},0,{"$f":"IF(D20=\"MAANTIERAHTI\",B20,\"\")","v":""},{"$f":"IF(D20=\"MAANTIERAHTI\",(VLOOKUP(F20,Päästökertoimet!$B$4:$C$613,2,FALSE)),0)","v":0},{"$f":"IF(D20=\"MAANTIERAHTI\",AN20,0)","v":0},{"$f":"BH20/1000*AQ20*AP20","v":0},{"$f":"IF(D20=\"JUNARAHTI\",B20,\"\")","v":""},{"$f":"IF(D20=\"JUNARAHTI\",(VLOOKUP(F20,Päästökertoimet!$B$4:$C$613,2,FALSE)),0)","v":0},{"$f":"IF(D20=\"JUNARAHTI\",AN20,0)","v":0},{"$f":"BH20/1000*AU20*AT20","v":0},{"$f":"IF(D20=\"LAIVARAHTI\",B20,\"\")","v":""},{"$f":"IF(D20=\"LAIVARAHTI\",(VLOOKUP(F20,Päästökertoimet!$B$4:$C$613,2,FALSE)),0)","v":0},{"$f":"IF(D20=\"LAIVARAHTI\",AN20,0)","v":0},{"$f":"BH20/1000*AY20*AX20","v":0},{"$f":"IF(D20=\"LENTORAHTI\",B20,\"\")","v":""},{"$f":"IF(D20=\"LENTORAHTI\",(VLOOKUP(F20,Päästökertoimet!$B$4:$C$613,2,FALSE)),0)","v":0},{"$f":"IF(D20=\"LENTORAHTI\",AN20,0)","v":0},{"$f":"BH20/1000*BC20*BB20","v":0},{"$f":"AO20&AS20&AW20&BA20","v":""},{"$f":"AP20+AT20+AX20+BB20","v":0},{"$f":"AQ20+AU20+AY20+BC20","v":0},{"$f":"IFERROR(VLOOKUP(BE20,Valmistus!$BA$7:$BB$211,2,FALSE),0)","v":0}]
[null,null,null,null,null,null,null,null,"",{"$f":"IFERROR(VLOOKUP(B21,$AH$7:$AI$89,2,FALSE)/1000*H21,\"\")","v":""},"",{"$f":"IFERROR(VLOOKUP(F21,Päästökertoimet!$B$4:$C$613,2,FALSE)*J21,\"\")","v":""},null,null,null,null,null,null,null,null,null,null,null,null,null,null,null,null,null,null,null,null,null,null,null,null,null,0,{"$f":"IFERROR(VLOOKUP(F21,Päästökertoimet!$B$4:$C$613,2,FALSE),\"\")","v":""},0,"",{"$f":"IF(D21=\"MAANTIERAHTI\",(VLOOKUP(F21,Päästökertoimet!$B$4:$C$613,2,FALSE)),0)","v":0},0,0,"",{"$f":"IF(D21=\"JUNARAHTI\",(VLOOKUP(F21,Päästökertoimet!$B$4:$C$613,2,FALSE)),0)","v":0},0,0,"",{"$f":"IF(D21=\"LAIVARAHTI\",(VLOOKUP(F21,Päästökertoimet!$B$4:$C$613,2,FALSE)),0)","v":0},0,0,"",{"$f":"IF(D21=\"LENTORAHTI\",(VLOOKUP(F21,Päästökertoimet!$B$4:$C$613,2,FALSE)),0)","v":0},0,0,"",0,0,{"$f":"IFERROR(VLOOKUP(BE21,Valmistus!$BA$7:$BB$211,2,FALSE),0)","v":0}]
[null,null,null,null,null,null,null,null,{"$f":"IF(B22>0,\"km\",\"\")","v":""},{"$f":"IFERROR(VLOOKUP(B22,$AH$7:$AI$89,2,FALSE)/1000*H22,\"\")","v":""},{"$f":"IF(H22>0,\"tkm\",\"\")","v":""},{"$f":"IFERROR(VLOOKUP(F22,Päästökertoimet!$B$4:$C$613,2,FALSE)*J22,\"\")","v":""},null,null,null,null,null,null,null,null,null,null,null,null,null,null,null,null,null,null,null,null,null,null,null,null,null,{"$f":"B22","v":0},{"$f":"IFERROR(VLOOKUP(F22,Päästökertoimet!$B$4:$C$613,2,FALSE),\"\")","v":""},{"$f":"H22","v":0},{"$f":"IF(D22=\"MAANTIERAHTI\",B22,\"\")","v":""},{"$f":"IF(D22=\"MAANTIERAHTI\",(VLOOKUP(F22,Päästökertoimet!$B$4:$C$613,2,FALSE)),0)","v":0},{"$f":"IF(D22=\"MAANTIERAHTI\",AN22,0)","v":0},{"$f":"BH22/1000*AQ22*AP22","v":0},{"$f":"IF(D22=\"JUNARAHTI\",B22,\"\")","v":""},{"$f":"IF(D22=\"JUNARAHTI\",(VLOOKUP(F22,Päästökertoimet!$B$4:$C$613,2,FALSE)),0)","v":0},{"$f":"IF(D22=\"JUNARAHTI\",AN22,0)","v":0},{"$f":"BH22/1000*AU22*AT22","v":0},{"$f":"IF(D22=\"LAIVARAHTI\",B22,\"\")","v":""},{"$f":"IF(D22=\"LAIVARAHTI\",(VLOOKUP(F22,Päästökertoimet!$B$4:$C$613,2,FALSE)),0)","v":0},{"$f":"IF(D22=\"LAIVARAHTI\",AN22,0)","v":0},{"$f":"BH22/1000*AY22*AX22","v":0},{"$f":"IF(D22=\"LENTORAHTI\",B22,\"\")","v":""},{"$f":"IF(D22=\"LENTORAHTI\",(VLOOKUP(F22,Päästökertoimet!$B$4:$C$613,2,FALSE)),0)","v":0},{"$f":"IF(D22=\"LENTORAHTI\",AN22,0)","v":0},{"$f":"BH22/1000*BC22*BB22","v":0},{"$f":"AO22&AS22&AW22&BA22","v":""},{"$f":"AP22+AT22+AX22+BB22","v":0},{"$f":"AQ22+AU22+AY22+BC22","v":0},{"$f":"IFERROR(VLOOKUP(BE22,Valmistus!$BA$7:$BB$211,2,FALSE),0)","v":0}]
[null,null,null,null,null,null,null,null,{"$f":"IF(B23>0,\"km\",\"\")","v":""},{"$f":"IFERROR(VLOOKUP(B23,$AH$7:$AI$89,2,FALSE)/1000*H23,\"\")","v":""},{"$f":"IF(H23>0,\"tkm\",\"\")","v":""},{"$f":"IFERROR(VLOOKUP(F23,Päästökertoimet!$B$4:$C$613,2,FALSE)*J23,\"\")","v":""},null,null,null,null,null,null,null,null,null,null,null,null,null,null,null,null,null,null,null,null,null,null,null,null,null,{"$f":"B23","v":0},{"$f":"IFERROR(VLOOKUP(F23,Päästökertoimet!$B$4:$C$613,2,FALSE),\"\")","v":""},{"$f":"H23","v":0},{"$f":"IF(D23=\"MAANTIERAHTI\",B23,\"\")","v":""},{"$f":"IF(D23=\"MAANTIERAHTI\",(VLOOKUP(F23,Päästökertoimet!$B$4:$C$613,2,FALSE)),0)","v":0},{"$f":"IF(D23=\"MAANTIERAHTI\",AN23,0)","v":0},{"$f":"BH23/1000*AQ23*AP23","v":0},{"$f":"IF(D23=\"JUNARAHTI\",B23,\"\")","v":""},{"$f":"IF(D23=\"JUNARAHTI\",(VLOOKUP(F23,Päästökertoimet!$B$4:$C$613,2,FALSE)),0)","v":0},{"$f":"IF(D23=\"JUNARAHTI\",AN23,0)","v":0},{"$f":"BH23/1000*AU23*AT23","v":0},{"$f":"IF(D23=\"LAIVARAHTI\",B23,\"\")","v":""},{"$f":"IF(D23=\"LAIVARAHTI\",(VLOOKUP(F23,Päästökertoimet!$B$4:$C$613,2,FALSE)),0)","v":0},{"$f":"IF(D23=\"LAIVARAHTI\",AN23,0)","v":0},{"$f":"BH23/1000*AY23*AX23","v":0},{"$f":"IF(D23=\"LENTORAHTI\",B23,\"\")","v":""},{"$f":"IF(D23=\"LENTORAHTI\",(VLOOKUP(F23,Päästökertoimet!$B$4:$C$613,2,FALSE)),0)","v":0},{"$f":"IF(D23=\"LENTORAHTI\",AN23,0)","v":0},{"$f":"BH23/1000*BC23*BB23","v":0},{"$f":"AO23&AS23&AW23&BA23","v":""},{"$f":"AP23+AT23+AX23+BB23","v":0},{"$f":"AQ23+AU23+AY23+BC23","v":0},{"$f":"IFERROR(VLOOKUP(BE23,Valmistus!$BA$7:$BB$211,2,FALSE),0)","v":0}]
[null,null,null,null,null,null,null,null,{"$f":"IFERROR(VLOOKUP(F24,Päästökertoimet!$B$6:'Päästökertoimet'!$D$737,3,FALSE),\"\")","v":""},{"$f":"H24/$H$6*100","v":{"$error":"#DIV/0!"}},null,{"$f":"IFERROR(VLOOKUP(F24,Päästökertoimet!$B$6:'Päästökertoimet'!$C$737,2,FALSE)*H24,0)","v":0},null,null,null,null,null,null,null,null,null,null,null,null,null,null,null,null,null,null,null,null,null,null,null,null,null,0,{"$f":"IFERROR(VLOOKUP(F24,Päästökertoimet!$B$4:$C$613,2,FALSE),\"\")","v":""},0,"",{"$f":"IF(D24=\"MAANTIERAHTI\",(VLOOKUP(F24,Päästökertoimet!$B$4:$C$613,2,FALSE)),0)","v":0},0,0,"",{"$f":"IF(D24=\"JUNARAHTI\",(VLOOKUP(F24,Päästökertoimet!$B$4:$C$613,2,FALSE)),0)","v":0},0,0,"",{"$f":"IF(D24=\"LAIVARAHTI\",(VLOOKUP(F24,Päästökertoimet!$B$4:$C$613,2,FALSE)),0)","v":0},0,0,"",{"$f":"IF(D24=\"LENTORAHTI\",(VLOOKUP(F24,Päästökertoimet!$B$4:$C$613,2,FALSE)),0)","v":0},0,0,"",0,0,{"$f":"IFERROR(VLOOKUP(BE24,Valmistus!$BA$7:$BB$211,2,FALSE),0)","v":0}]
[null,null,null,null,null,null,null,null,null,null,null,{"$f":"SUM(L19:L24)","v":0}]

{"sheet":"Valmistus","index":3,"n_rows":69,"n_cols":61,"rows_kept":69,"cut":false,"hidden":false,"merged":[[60,1,60,11],[50,3,50,5],[4,7,4,9],[2,1,2,13],[36,1,36,15],[48,1,48,7],[24,1,24,11]]}
[null,"Tuotteen hiilijalanjäljen laskentatyökalu",null,null,null,null,null,null,null,null,null,null,null,null,null,null,null,null,null,null,null,null,null,null,1]
[]
[null," Valmistusprosessien energian kulutus"]
[]
[null," Valitse valmistettava osa",null,"Tuotantoprosessin kuvaus ",null,"  Kulutettu energia","tai","                Valitse tuotantomenetelmä",null,null,null,"Valitse energiamuoto",null,"kg CO2e"]
[]
[null,null,null,null,null,null,"kWh",null,null,{"$f":"IFERROR(VLOOKUP(H7,'Muut kertoimet'!$B$4:'Muut kertoimet'!$C$732,2,FALSE)*AK7,\"\")","v":""},"kWh",null,null,{"$f":"IFERROR(AO7,\"\")","v":""},null,null,null,null,null,null,null,null,null,null,null,null,null,null,null,null,null,null,null,null,null,null,{"$f":"IFERROR(VLOOKUP(B7,Materiaalit!$AH$7:$AI$189,2,FALSE),\"\")","v":""},{"$f":"IFERROR(VLOOKUP(L7,Päästökertoimet!$B$6:'Päästökertoimet'!$C$737,2,FALSE),\"\")","v":""},{"$f":"IF(J7<>\"\",J7,\"\")","v":""},{"$f":"IF(J7=\"\",F7,\"\")","v":0},{"$f":"SUM(AM7:AN7)*AL7","v":{"$error":"#VALUE!"}}]
[null,null,null,null,null,null,"kWh",null,null,{"$f":"IFERROR(VLOOKUP(H8,'Muut kertoimet'!$B$4:'Muut kertoimet'!$C$732,2,FALSE)*AK8,\"\")","v":""},"kWh",null,null,"",null,null,null,null,null,null,null,null,null,null,null,null,null,null,null,null,null,null,null,null,null,null,{"$f":"IFERROR(VLOOKUP(B8,Materiaalit!$AH$7:$AI$189,2,FALSE),\"\")","v":""},{"$f":"IFERROR(VLOOKUP(L8,Päästökertoimet!$B$6:'Päästökertoimet'!$C$737,2,FALSE),\"\")","v":""},{"$f":"IF(J8<>\"\",J8,\"\")","v":""},0,{"$f":"SUM(AM8:AN8)*AL8","v":{"$error":"#VALUE!"}}]
[null,null,null,null,null,null,"kWh",null,null,{"$f":"IFERROR(VLOOKUP(H9,'Muut kertoimet'!$B$4:'Muut kertoimet'!$C$732,2,FALSE)*AK9,\"\")","v":""},"kWh",null,null,"",null,null,null,null,null,null,null,null,null,null,null,null,null,null,null,null,null,null,null,null,null,null,{"$f":"IFERROR(VLOOKUP(B9,Materiaalit!$AH$7:$AI$189,2,FALSE),\"\")","v":""},{"$f":"IFERROR(VLOOKUP(L9,Päästökertoimet!$B$6:'Päästökertoimet'!$C$737,2,FALSE),\"\")","v":""},"",0,{"$f":"SUM(AM9:AN9)*AL9","v":{"$error":"#VALUE!"}}]
[null,null,null,null,null,null,"kWh",null,null,{"$f":"IFERROR(VLOOKUP(H10,'Muut kertoimet'!$B$4:'Muut kertoimet'!$C$732,2,FALSE)*AK10,\"\")","v":""},"kWh",null,null,"",null,null,null,null,null,null,null,null,null,null,null,null,null,null,null,null,null,null,null,null,null,null,{"$f":"IFERROR(VLOOKUP(B10,Materiaalit!$AH$7:$AI$189,2,FALSE),\"\")","v":""},{"$f":"IFERROR(VLOOKUP(L10,Päästökertoimet!$B$6:'Päästökertoimet'!$C$737,2,FALSE),\"\")","v":""},{"$f":"IF(J10<>\"\",J10,\"\")","v":""},0,{"$error":"#VALUE!"}]
[null,null,null,null,null,null,"kWh",null,null,{"$f":"IFERROR(VLOOKUP(H11,'Muut kertoimet'!$B$4:'Muut kertoimet'!$C$732,2,FALSE)*AK11,\"\")","v":""},"kWh",null,null,"",null,null,null,null,null,null,null,null,null,null,null,null,null,null,null,null,null,null,null,null,null,null,{"$f":"IFERROR(VLOOKUP(B11,Materiaalit!$AH$7:$AI$189,2,FALSE),\"\")","v":""},{"$f":"IFERROR(VLOOKUP(L11,Päästökertoimet!$B$6:'Päästökertoimet'!$C$737,2,FALSE),\"\")","v":""},{"$f":"IF(J11<>\"\",J11,\"\")","v":""},0,{"$error":"#VALUE!"}]
[null,null,null,null,null,null,null,null,null,{"$f":"#REF!/#REF!*100","v":{"$error":"#REF!"}},null,null,null,{"$f":"IFERROR(VLOOKUP(#REF!,Päästökertoimet!$B$6:'Päästökertoimet'!$C$737,2,FALSE)*#REF!,0)","v":0},null,null,null,null,null,null,null,null,null,null,null,null,null,null,null,null,null,null,null,null,null,null,{"$f":"IFERROR(VLOOKUP(B12,Materiaalit!$AH$7:$AI$189,2,FALSE),\"\")","v":""},{"$f":"IFERROR(VLOOKUP(L12,Päästökertoimet!$B$6:'Päästökertoimet'!$C$737,2,FALSE),\"\")","v":""},{"$error":"#REF!"},{"$f":"IF(J12=\"\",#REF!,\"\")","v":{"$error":"#REF!"}},{"$error":"#REF!"}]
[null,null,null,null,null,null,null,null,null,null,null,null,null,{"$f":"SUM(N7:N12)","v":0}]
[]
[null," Valmistusprosessien polttoaineen kulutus"]
[]
[null," Valitse valmistettava osa",null,"Tuotantoprosessin kuvaus ",null,"Polttoaineen tyyppi    ",null,"Syötä määrä",null,"kg CO2e"]
[]
[null,null,null,null,null,null,null,null,{"$f":"IFERROR(VLOOKUP(F19,Päästökertoimet!$B$4:'Päästökertoimet'!$D$737,3,FALSE),\"\")","v":""},{"$f":"IFERROR(VLOOKUP(F19,Päästökertoimet!$B$4:$C$613,2,FALSE)*H19,\"\")","v":""}]
[null,null,null,null,null,null,null,null,{"$f":"IFERROR(VLOOKUP(F20,Päästökertoimet!$B$4:'Päästökertoimet'!$D$737,3,FALSE),\"\")","v":""},{"$f":"IFERROR(VLOOKUP(F20,Päästökertoimet!$B$4:$C$613,2,FALSE)*H20,\"\")","v":""}]
[null,null,null,null,null,null,null,null,{"$f":"IFERROR(VLOOKUP(F21,Päästökertoimet!$B$4:'Päästökertoimet'!$D$737,3,FALSE),\"\")","v":""},{"$f":"IFERROR(VLOOKUP(F21,Päästökertoimet!$B$4:$C$613,2,FALSE)*H21,\"\")","v":""}]
[null,null,null,null,null,null,null,{"$f":"IFERROR(VLOOKUP(D22,'Muut kertoimet'!#REF!:'Muut kertoimet'!#REF!,3,FALSE),\"\")","v":""},null,{"$f":"IFERROR(VLOOKUP(#REF!,Päästökertoimet!$B$6:'Päästökertoimet'!$C$737,2,FALSE)*#REF!,0)","v":0}]
[null,null,null,null,null,null,null,null,null,{"$f":"SUM(J19:J22)","v":0}]
[]
[null," Valmistuksen aikainen kuljetus"]
[]
[null," Valitse kuljetettava osa",null,"Valitse kuljetustapa",null,"   Valitse kuljetusväline",null,null,"Syötä kuljetusmatka   ",null,null,"kg CO2e"]
[null,null,null,null,null,null,null,{"$f":"SUM(H29:H34)","v":0}]
[null,null,null,null,null,null,null,null,{"$f":"IF(B29>0,\"km\",\"\")","v":""},{"$f":"IFERROR(VLOOKUP(B29,Materiaalit!$AH$7:$AI$89,2,FALSE)/1000*H29,\"\")","v":""},{"$f":"IF(H29>0,\"tkm\",\"\")","v":""},{"$f":"IFERROR(VLOOKUP(F29,Päästökertoimet!$B$4:$C$613,2,FALSE)*J29,\"\")","v":""},null,null,null,null,null,null,null,null,null,null,null,null,null,null,null,null,null,null,null,null,null,null,null,null,null,{"$f":"B29","v":0},{"$f":"IFERROR(VLOOKUP(F29,Päästökertoimet!$B$4:$C$613,2,FALSE),\"\")","v":""},{"$f":"H29","v":0},{"$f":"IF(D29=\"MAANTIERAHTI\",B29,\"\")","v":""},{"$f":"IF(D29=\"MAANTIERAHTI\",(VLOOKUP(F29,Päästökertoimet!$B$4:$C$613,2,FALSE)),0)","v":0},{"$f":"IF(D29=\"MAANTIERAHTI\",AN29,0)","v":0},{"$f":"BH29/1000*AQ29*AP29","v":0},{"$f":"IF(D29=\"JUNARAHTI\",B29,\"\")","v":""},{"$f":"IF(D29=\"JUNARAHTI\",(VLOOKUP(F29,Päästökertoimet!$B$4:$C$613,2,FALSE)),0)","v":0},{"$f":"IF(D29=\"JUNARAHTI\",AN29,0)","v":0},{"$f":"BH29/1000*AU29*AT29","v":0},{"$f":"IF(D29=\"LAIVARAHTI\",B29,\"\")","v":""},{"$f":"IF(D29=\"LAIVARAHTI\",(VLOOKUP(F29,Päästökertoimet!$B$4:$C$613,2,FALSE)),0)","v":0},{"$f":"IF(D29=\"LAIVARAHTI\",AN29,0)","v":0},{"$f":"BH29/1000*AY29*AX29","v":0},{"$f":"IF(D29=\"LENTORAHTI\",B29,\"\")","v":""},{"$f":"IF(D29=\"LENTORAHTI\",(VLOOKUP(F29,Päästökertoimet!$B$4:$C$613,2,FALSE)),0)","v":0},{"$f":"IF(D29=\"LENTORAHTI\",AN29,0)","v":0},{"$f":"BH29/1000*BC29*BB29","v":0},{"$f":"AO29&AS29&AW29&BA29","v":""},{"$f":"AP29+AT29+AX29+BB29","v":0},{"$f":"AQ29+AU29+AY29+BC29","v":0},{"$f":"IFERROR(VLOOKUP(BE29,Valmistus!$BA$7:$BB$211,2,FALSE),0)","v":0}]
[null,null,null,null,null,null,null,null,"",{"$f":"IFERROR(VLOOKUP(B30,Materiaalit!$AH$7:$AI$89,2,FALSE)/1000*H30,\"\")","v":""},{"$f":"IF(H30>0,\"tkm\",\"\")","v":""},{"$f":"IFERROR(VLOOKUP(F30,Päästökertoimet!$B$4:$C$613,2,FALSE)*J30,\"\")","v":""},null,null,null,null,null,null,null,null,null,null,null,null,null,null,null,null,null,null,null,null,null,null,null,null,null,{"$f":"B30","v":0},{"$f":"IFERROR(VLOOKUP(F30,Päästökertoimet!$B$4:$C$613,2,FALSE),\"\")","v":""},0,{"$f":"IF(D30=\"MAANTIERAHTI\",B30,\"\")","v":""},{"$f":"IF(D30=\"MAANTIERAHTI\",(VLOOKUP(F30,Päästökertoimet!$B$4:$C$613,2,FALSE)),0)","v":0},{"$f":"IF(D30=\"MAANTIERAHTI\",AN30,0)","v":0},{"$f":"BH30/1000*AQ30*AP30","v":0},{"$f":"IF(D30=\"JUNARAHTI\",B30,\"\")","v":""},{"$f":"IF(D30=\"JUNARAHTI\",(VLOOKUP(F30,Päästökertoimet!$B$4:$C$613,2,FALSE)),0)","v":0},{"$f":"IF(D30=\"JUNARAHTI\",AN30,0)","v":0},{"$f":"BH30/1000*AU30*AT30","v":0},{"$f":"IF(D30=\"LAIVARAHTI\",B30,\"\")","v":""},{"$f":"IF(D30=\"LAIVARAHTI\",(VLOOKUP(F30,Päästökertoimet!$B$4:$C$613,2,FALSE)),0)","v":0},{"$f":"IF(D30=\"LAIVARAHTI\",AN30,0)","v":0},{"$f":"BH30/1000*AY30*AX30","v":0},{"$f":"IF(D30=\"LENTORAHTI\",B30,\"\")","v":""},{"$f":"IF(D30=\"LENTORAHTI\",(VLOOKUP(F30,Päästökertoimet!$B$4:$C$613,2,FALSE)),0)","v":0},{"$f":"IF(D30=\"LENTORAHTI\",AN30,0)","v":0},{"$f":"BH30/1000*BC30*BB30","v":0},{"$f":"AO30&AS30&AW30&BA30","v":""},{"$f":"AP30+AT30+AX30+BB30","v":0},0,{"$f":"IFERROR(VLOOKUP(BE30,Valmistus!$BA$7:$BB$211,2,FALSE),0)","v":0}]
[null,null,null,null,null,null,null,null,"",{"$f":"IFERROR(VLOOKUP(B31,Materiaalit!$AH$7:$AI$89,2,FALSE)/1000*H31,\"\")","v":""},"",{"$f":"IFERROR(VLOOKUP(F31,Päästökertoimet!$B$4:$C$613,2,FALSE)*J31,\"\")","v":""},null,null,null,null,null,null,null,null,null,null,null,null,null,null,null,null,null,null,null,null,null,null,null,null,null,0,{"$f":"IFERROR(VLOOKUP(F31,Päästökertoimet!$B$4:$C$613,2,FALSE),\"\")","v":""},0,"",{"$f":"IF(D31=\"MAANTIERAHTI\",(VLOOKUP(F31,Päästökertoimet!$B$4:$C$613,2,FALSE)),0)","v":0},0,0,"",{"$f":"IF(D31=\"JUNARAHTI\",(VLOOKUP(F31,Päästökertoimet!$B$4:$C$613,2,FALSE)),0)","v":0},0,0,"",{"$f":"IF(D31=\"LAIVARAHTI\",(VLOOKUP(F31,Päästökertoimet!$B$4:$C$613,2,FALSE)),0)","v":0},0,0,"",{"$f":"IF(D31=\"LENTORAHTI\",(VLOOKUP(F31,Päästökertoimet!$B$4:$C$613,2,FALSE)),0)","v":0},0,0,"",0,0,{"$f":"IFERROR(VLOOKUP(BE31,Valmistus!$BA$7:$BB$211,2,FALSE),0)","v":0}]
[null,null,null,null,null,null,null,null,"",{"$f":"IFERROR(VLOOKUP(B32,Materiaalit!$AH$7:$AI$89,2,FALSE)/1000*H32,\"\")","v":""},"",{"$f":"IFERROR(VLOOKUP(F32,Päästökertoimet!$B$4:$C$613,2,FALSE)*J32,\"\")","v":""},null,null,null,null,null,null,null,null,null,null,null,null,null,null,null,null,null,null,null,null,null,null,null,null,null,0,{"$f":"IFERROR(VLOOKUP(F32,Päästökertoimet!$B$4:$C$613,2,FALSE),\"\")","v":""},0,"",{"$f":"IF(D32=\"MAANTIERAHTI\",(VLOOKUP(F32,Päästökertoimet!$B$4:$C$613,2,FALSE)),0)","v":0},0,0,"",{"$f":"IF(D32=\"JUNARAHTI\",(VLOOKUP(F32,Päästökertoimet!$B$4:$C$613,2,FALSE)),0)","v":0},0,0,"",{"$f":"IF(D32=\"LAIVARAHTI\",(VLOOKUP(F32,Päästökertoimet!$B$4:$C$613,2,FALSE)),0)","v":0},0,0,"",{"$f":"IF(D32=\"LENTORAHTI\",(VLOOKUP(F32,Päästökertoimet!$B$4:$C$613,2,FALSE)),0)","v":0},0,0,"",0,0,{"$f":"IFERROR(VLOOKUP(BE32,Valmistus!$BA$7:$BB$211,2,FALSE),0)","v":0}]
[null,null,null,null,null,null,null,null,"",{"$f":"IFERROR(VLOOKUP(B33,Materiaalit!$AH$7:$AI$89,2,FALSE)/1000*H33,\"\")","v":""},"",{"$f":"IFERROR(VLOOKUP(F33,Päästökertoimet!$B$4:$C$613,2,FALSE)*J33,\"\")","v":""},null,null,null,null,null,null,null,null,null,null,null,null,null,null,null,null,null,null,null,null,null,null,null,null,null,0,{"$f":"IFERROR(VLOOKUP(F33,Päästökertoimet!$B$4:$C$613,2,FALSE),\"\")","v":""},0,"",{"$f":"IF(D33=\"MAANTIERAHTI\",(VLOOKUP(F33,Päästökertoimet!$B$4:$C$613,2,FALSE)),0)","v":0},0,0,"",{"$f":"IF(D33=\"JUNARAHTI\",(VLOOKUP(F33,Päästökertoimet!$B$4:$C$613,2,FALSE)),0)","v":0},0,0,"",{"$f":"IF(D33=\"LAIVARAHTI\",(VLOOKUP(F33,Päästökertoimet!$B$4:$C$613,2,FALSE)),0)","v":0},0,0,"",{"$f":"IF(D33=\"LENTORAHTI\",(VLOOKUP(F33,Päästökertoimet!$B$4:$C$613,2,FALSE)),0)","v":0},0,0,"",0,0,{"$f":"IFERROR(VLOOKUP(BE33,Valmistus!$BA$7:$BB$211,2,FALSE),0)","v":0}]
[null,null,null,null,null,null,null,null,{"$f":"IFERROR(VLOOKUP(F34,Päästökertoimet!$B$6:'Päästökertoimet'!$D$737,3,FALSE),\"\")","v":""},{"$f":"H34/$H$6*100","v":{"$error":"#DIV/0!"}},null,{"$f":"IFERROR(VLOOKUP(F34,Päästökertoimet!$B$6:'Päästökertoimet'!$C$737,2,FALSE)*H34,0)","v":0},null,null,null,null,null,null,null,null,null,null,null,null,null,null,null,null,null,null,null,null,null,null,null,null,null,0,{"$f":"IFERROR(VLOOKUP(F34,Päästökertoimet!$B$4:$C$613,2,FALSE),\"\")","v":""},0,"",{"$f":"IF(D34=\"MAANTIERAHTI\",(VLOOKUP(F34,Päästökertoimet!$B$4:$C$613,2,FALSE)),0)","v":0},0,0,"",{"$f":"IF(D34=\"JUNARAHTI\",(VLOOKUP(F34,Päästökertoimet!$B$4:$C$613,2,FALSE)),0)","v":0},0,0,"",{"$f":"IF(D34=\"LAIVARAHTI\",(VLOOKUP(F34,Päästökertoimet!$B$4:$C$613,2,FALSE)),0)","v":0},0,0,"",{"$f":"IF(D34=\"LENTORAHTI\",(VLOOKUP(F34,Päästökertoimet!$B$4:$C$613,2,FALSE)),0)","v":0},0,0,"",0,0,{"$f":"IFERROR(VLOOKUP(BE34,Valmistus!$BA$7:$BB$211,2,FALSE),0)","v":0}]
[null,null,null,null,null,null,null,null,null,null,null,{"$f":"SUM(L29:L34)","v":0}]
[]
[null," Valmistuksessa käytetyt apumateriaalit ja niiden kuljetus"]
[]
[null," Valitse materiaaliluokka",null,"Valitse materiaali",null,"Syötä määrä","ja","Valitse kuljetustapa",null,"Valitse kuljetusväline",null,"Syötä kuljetusmatka   ",null,null,null,"kg CO2e"]
[null,null,null,null,null,null,null,null,null,null,null,{"$f":"SUM(Q39:Q46)","v":0},null,null,null,null,null,null,null,null,null,null,null,null,null,null,null,null,null,null,null,null,null,null,null,null,{"$f":"SUM(AK41:AK46)","v":0},{"$f":"SUM(AL41:AL46)","v":0},null,{"$f":"SUM(AN41:AN46)","v":0}]
[null,null,null,null,null,null,{"$f":"IFERROR(VLOOKUP(D41,Päästökertoimet!$B$6:'Päästökertoimet'!$D$737,3,FALSE),\"\")","v":""},null,null,null,null,null,{"$f":"IF(H41>0,\"km\",\"\")","v":""},{"$f":"F41/1000*L41","v":0},{"$f":"IF(L41>0,\"tkm\",\"\")","v":""},{"$f":"IFERROR(AM41,\"\")","v":0},null,null,null,null,null,null,{"$f":"SUMIF(#REF!,\"TERÄKSET\",AN41:AN140)","v":{"$error":"#REF!"}},null,null,null,null,null,null,null,null,null,null,null,null,null,{"$f":"IFERROR(VLOOKUP(J41,Päästökertoimet!$B$6:'Päästökertoimet'!$C$737,2,FALSE)*N41,\"\")","v":""},{"$f":"IFERROR(VLOOKUP(D41,Päästökertoimet!$B$6:'Päästökertoimet'!$C$737,2,FALSE)*F41,\"\")","v":""},{"$f":"SUM(AK41:AL41)","v":0},{"$f":"IFERROR(VLOOKUP(#REF!,Päästökertoimet!$B$6:'Päästökertoimet'!$E$737,4,FALSE)*#REF!,0)","v":0}]
[null,null,null,null,null,null,{"$f":"IFERROR(VLOOKUP(D42,Päästökertoimet!$B$6:'Päästökertoimet'!$D$737,3,FALSE),\"\")","v":""},null,null,null,null,null,{"$f":"IF(H42>0,\"km\",\"\")","v":""},{"$f":"F42/1000*L42","v":0},{"$f":"IF(L42>0,\"tkm\",\"\")","v":""},{"$f":"IFERROR(AM42,\"\")","v":0},null,null,null,null,null,null,null,null,null,null,null,null,null,null,null,null,null,null,null,null,{"$f":"IFERROR(VLOOKUP(J42,Päästökertoimet!$B$6:'Päästökertoimet'!$C$737,2,FALSE)*N42,\"\")","v":""},{"$f":"IFERROR(VLOOKUP(D42,Päästökertoimet!$B$6:'Päästökertoimet'!$C$737,2,FALSE)*F42,\"\")","v":""},{"$f":"SUM(AK42:AL42)","v":0},{"$f":"IFERROR(VLOOKUP(#REF!,Päästökertoimet!$B$6:'Päästökertoimet'!$E$737,4,FALSE)*#REF!,0)","v":0}]
[null,null,null,null,null,null,{"$f":"IFERROR(VLOOKUP(D43,Päästökertoimet!$B$6:'Päästökertoimet'!$D$737,3,FALSE),\"\")","v":""},null,null,null,null,null,{"$f":"IF(H43>0,\"km\",\"\")","v":""},{"$f":"F43/1000*L43","v":0},"",{"$f":"IFERROR(AM43,\"\")","v":0},null,null,null,null,null,null,null,null,null,null,null,null,null,null,null,null,null,null,null,null,{"$f":"IFERROR(VLOOKUP(J43,Päästökertoimet!$B$6:'Päästökertoimet'!$C$737,2,FALSE)*N43,\"\")","v":""},{"$f":"IFERROR(VLOOKUP(D43,Päästökertoimet!$B$6:'Päästökertoimet'!$C$737,2,FALSE)*F43,\"\")","v":""},0,{"$f":"IFERROR(VLOOKUP(#REF!,Päästökertoimet!$B$6:'Päästökertoimet'!$E$737,4,FALSE)*#REF!,0)","v":0}]
[null,null,null,null,null,null,{"$f":"IFERROR(VLOOKUP(D44,Päästökertoimet!$B$6:'Päästökertoimet'!$D$737,3,FALSE),\"\")","v":""},null,null,null,null,null,{"$f":"IF(H44>0,\"km\",\"\")","v":""},{"$f":"F44/1000*L44","v":0},"",{"$f":"IFERROR(AM44,\"\")","v":0},null,null,null,null,null,null,null,null,null,null,null,null,null,null,null,null,null,null,null,null,{"$f":"IFERROR(VLOOKUP(J44,Päästökertoimet!$B$6:'Päästökertoimet'!$C$737,2,FALSE)*N44,\"\")","v":""},{"$f":"IFERROR(VLOOKUP(D44,Päästökertoimet!$B$6:'Päästökertoimet'!$C$737,2,FALSE)*F44,\"\")","v":""},0,{"$f":"IFERROR(VLOOKUP(#REF!,Päästökertoimet!$B$6:'Päästökertoimet'!$E$737,4,FALSE)*#REF!,0)","v":0}]
[null,null,null,null,null,null,{"$f":"IFERROR(VLOOKUP(D45,Päästökertoimet!$B$6:'Päästökertoimet'!$D$737,3,FALSE),\"\")","v":""},null,null,null,null,null,{"$f":"IF(H45>0,\"km\",\"\")","v":""},{"$f":"F45/1000*L45","v":0},{"$f":"IF(L45>0,\"tkm\",\"\")","v":""},{"$f":"IFERROR(AM45,\"\")","v":0},null,null,null,null,null,null,null,null,null,null,null,null,null,null,null,null,null,null,null,null,{"$f":"IFERROR(VLOOKUP(J45,Päästökertoimet!$B$6:'Päästökertoimet'!$C$737,2,FALSE)*N45,\"\")","v":""},{"$f":"IFERROR(VLOOKUP(D45,Päästökertoimet!$B$6:'Päästökertoimet'!$C$737,2,FALSE)*F45,\"\")","v":""},{"$f":"SUM(AK45:AL45)","v":0},{"$f":"IFERROR(VLOOKUP(#REF!,Päästökertoimet!$B$6:'Päästökertoimet'!$E$737,4,FALSE)*#REF!,0)","v":0}]
[null,null,null,null,null,null,{"$f":"IFERROR(VLOOKUP(D46,Päästökertoimet!$B$6:'Päästökertoimet'!$D$737,3,FALSE),\"\")","v":""},null,null,null,null,null,null,null,null,{"$f":"IFERROR(VLOOKUP(#REF!,Päästökertoimet!$B$6:'Päästökertoimet'!$C$737,2,FALSE)*#REF!,0)","v":0},null,null,null,null,null,null,null,null,null,null,null,null,null,null,null,null,null,null,null,null,{"$f":"IFERROR(VLOOKUP(J46,Päästökertoimet!$B$6:'Päästökertoimet'!$C$737,2,FALSE)*N46,\"\")","v":""},{"$f":"IFERROR(VLOOKUP(D46,Päästökertoimet!$B$6:'Päästökertoimet'!$C$737,2,FALSE)*F46,\"\")","v":""},0,{"$f":"IFERROR(VLOOKUP(#REF!,Päästökertoimet!$B$6:'Päästökertoimet'!$E$737,4,FALSE)*#REF!,0)","v":0}]
[null,null,null,null,null,null,null,null,null,null,null,null,null,null,null,{"$f":"SUM(P41:P46)","v":0}]
[]
[null," Valmistuksessa syntyvä hukka"]
[]
[null," Valitse valmistettava osa",null,"Syötä hukan määrä (%)",null,null,null,"kg CO2e",null,null,null,null,null,null,null,null,null,null,null,null,null,null,null,null,null,null,null,null,null,null,null,null,null,null,null,null,null,null,null,null,null,null,null,null,null,null,null,"massa","hukka","Mat.luokka","Jätetyyppi","HukkaJäte CO2e","Osa","Hukan määrä","Maantie","Juna","Laiva","Lento","Kulj.CO2e","Materiaali","Mat.CO2e"]
[null,null,null,null,null,null,null,null,null,null,null,null,null,null,null,null,null,null,null,null,null,null,null,null,null,null,null,null,null,null,null,null,null,null,null,null,null,null,null,null,null,null,null,null,null,null,null,null,null,null,null,{"$f":"SUM(AZ53:AZ58)","v":0},null,null,null,null,null,null,{"$f":"SUM(BG53:BG58)","v":0},null,{"$f":"SUM(BI53:BI58)","v":0}]
[null,null,{"$f":"IF(B53>0,B53,\"x\")","v":"x"},null,{"$f":"IF(B53>0,\"%\",\"\")","v":""},{"$f":"IF(D53>0,(AV53/(100-D53)*100-AV53),\"\")","v":""},{"$f":"IF(B53>0,\"kg\",\"\")","v":""},{"$f":"IFERROR(AZ53+BG53+BI53,\"\")","v":""},null,null,null,null,null,null,null,null,null,null,null,null,null,null,null,null,null,null,null,null,null,null,null,null,null,null,null,null,null,null,null,null,null,null,null,null,null,null,null,{"$f":"IFERROR(VLOOKUP(B53,Materiaalit!$AH$7:$AI$189,2,FALSE),\"\")","v":""},{"$f":"F53","v":""},{"$f":"IFERROR(VLOOKUP(B53,Materiaalit!$AH$7:$AJ$189,3,FALSE),\"\")","v":""},{"$f":"IF(AX53=\"AUTOMAATIOKOMPONENTIT\",\"Se-romu\",IF(AX53=\"MEKANIIKKAKOMPONENTIT\",\"Metalli\",IF(AX53=\"VALAISTUS_JA_ELEKTRONIIKKA\",\"Se-romu\",IF(AX53=\"KIINNITYSTARVIKKEET\",\"Metalli\",IF(AX53=\"TERÄKSET\",\"Metalli\",IF(AX53=\"RUOSTUMATTOMAT_TERÄKSET\",\"Metalli\",IF(AX53=\"MUUT_METALLIT\",\"Metalli\",IF(AX53=\"KUMI\",\"Kumi\",IF(AX53=\"MUOVIT\",\"Muovi\",IF(AX53=\"LASI\",\"Keräyslasi\",IF(AX53=\"PUUTUOTTEET\",\"Puu\",IF(AX53=\"TEKSTIILIT_JA_TEKSTIILIKUIDUT\",\"Energiapoltettava jäte\",IF(AX53=\"LIIMAT\",\"Vaarallinen jäte\",IF(AX53=\"MAALIT_JA_LIUOTTIMET\",\"Vaarallinen jäte\",IF(AX53=\"ERIKOISPINNOITTEET\",\"Metalli\",IF(AX53=\"PAKKAUSMATERIAALIT\",\"Energiapoltettava jäte\",IF(AX53=\"LUOKITTELEMATTOMAT_MATERIAALIT\",\"Energiapoltettava jäte\")))))))))))))))))","v":false},{"$f":"IFERROR(VLOOKUP(AY53,Päästökertoimet!$B$6:'Päästökertoimet'!$E$737,2,FALSE)*AW53,\"\")","v":""},{"$f":"B53","v":0},{"$f":"F53","v":""},{"$f":"IFERROR(VLOOKUP(C53,Materiaalit!$AO$7:$AR$189,4,FALSE),\"\")","v":""},{"$f":"IFERROR(VLOOKUP(C53,Materiaalit!$AS$7:$AV$189,4,FALSE),\"\")","v":""},{"$f":"IFERROR(VLOOKUP(C53,Materiaalit!$AW$7:$AZ$189,4,FALSE),\"\")","v":""},{"$f":"IFERROR(VLOOKUP(C53,Materiaalit!$BA$7:$BD$189,4,FALSE),\"\")","v":""},{"$f":"SUM(BC53:BF53)","v":0},{"$f":"IFERROR(VLOOKUP(B53,Materiaalit!$AM$7:$AN$189,2,FALSE),\"\")","v":""},{"$f":"IFERROR(AW53*BH53,0)","v":0}]
[null,null,{"$f":"IF(B54>0,B54,\"x\")","v":"x"},null,"","","",{"$f":"IFERROR(AZ54+BG54+BI54,\"\")","v":""},null,null,null,null,null,null,null,null,null,null,null,null,null,null,null,null,null,null,null,null,null,null,null,null,null,null,null,null,null,null,null,null,null,null,null,null,null,null,null,{"$f":"IFERROR(VLOOKUP(B54,Materiaalit!$AH$7:$AI$189,2,FALSE),\"\")","v":""},"",{"$f":"IFERROR(VLOOKUP(B54,Materiaalit!$AH$7:$AJ$189,3,FALSE),\"\")","v":""},{"$f":"IF(AX54=\"AUTOMAATIOKOMPONENTIT\",\"Se-romu\",IF(AX54=\"MEKANIIKKAKOMPONENTIT\",\"Metalli\",IF(AX54=\"VALAISTUS_JA_ELEKTRONIIKKA\",\"Se-romu\",IF(AX54=\"KIINNITYSTARVIKKEET\",\"Metalli\",IF(AX54=\"TERÄKSET\",\"Metalli\",IF(AX54=\"RUOSTUMATTOMAT_TERÄKSET\",\"Metalli\",IF(AX54=\"MUUT_METALLIT\",\"Metalli\",IF(AX54=\"KUMI\",\"Kumi\",IF(AX54=\"MUOVIT\",\"Muovi\",IF(AX54=\"LASI\",\"Keräyslasi\",IF(AX54=\"PUUTUOTTEET\",\"Puu\",IF(AX54=\"TEKSTIILIT_JA_TEKSTIILIKUIDUT\",\"Energiapoltettava jäte\",IF(AX54=\"LIIMAT\",\"Vaarallinen jäte\",IF(AX54=\"MAALIT_JA_LIUOTTIMET\",\"Vaarallinen jäte\",IF(AX54=\"ERIKOISPINNOITTEET\",\"Metalli\",IF(AX54=\"PAKKAUSMATERIAALIT\",\"Energiapoltettava jäte\",IF(AX54=\"LUOKITTELEMATTOMAT_MATERIAALIT\",\"Energiapoltettava jäte\")))))))))))))))))","v":false},{"$f":"IFERROR(VLOOKUP(AY54,Päästökertoimet!$B$6:'Päästökertoimet'!$E$737,2,FALSE)*AW54,\"\")","v":""},0,"",{"$f":"IFERROR(VLOOKUP(C54,Materiaalit!$AO$7:$AR$189,4,FALSE),\"\")","v":""},{"$f":"IFERROR(VLOOKUP(C54,Materiaalit!$AS$7:$AV$189,4,FALSE),\"\")","v":""},{"$f":"IFERROR(VLOOKUP(C54,Materiaalit!$AW$7:$AZ$189,4,FALSE),\"\")","v":""},{"$f":"IFERROR(VLOOKUP(C54,Materiaalit!$BA$7:$BD$189,4,FALSE),\"\")","v":""},{"$f":"SUM(BC54:BF54)","v":0},{"$f":"IFERROR(VLOOKUP(B54,Materiaalit!$AM$7:$AN$189,2,FALSE),\"\")","v":""},{"$f":"IFERROR(AW54*BH54,0)","v":0}]
[null,null,"x",null,"","","","",null,null,null,null,null,null,null,null,null,null,null,null,null,null,null,null,null,null,null,null,null,null,null,null,null,null,null,null,null,null,null,null,null,null,null,null,null,null,null,{"$f":"IFERROR(VLOOKUP(B55,Materiaalit!$AH$7:$AI$189,2,FALSE),\"\")","v":""},"",{"$f":"IFERROR(VLOOKUP(B55,Materiaalit!$AH$7:$AJ$189,3,FALSE),\"\")","v":""},false,{"$f":"IFERROR(VLOOKUP(AY55,Päästökertoimet!$B$6:'Päästökertoimet'!$E$737,2,FALSE)*AW55,\"\")","v":""},0,"",{"$f":"IFERROR(VLOOKUP(C55,Materiaalit!$AO$7:$AR$189,4,FALSE),\"\")","v":""},{"$f":"IFERROR(VLOOKUP(C55,Materiaalit!$AS$7:$AV$189,4,FALSE),\"\")","v":""},{"$f":"IFERROR(VLOOKUP(C55,Materiaalit!$AW$7:$AZ$189,4,FALSE),\"\")","v":""},{"$f":"IFERROR(VLOOKUP(C55,Materiaalit!$BA$7:$BD$189,4,FALSE),\"\")","v":""},0,{"$f":"IFERROR(VLOOKUP(B55,Materiaalit!$AM$7:$AN$189,2,FALSE),\"\")","v":""},0]
[null,null,"x",null,"","","","",null,null,null,null,null,null,null,null,null,null,null,null,null,null,null,null,null,null,null,null,null,null,null,null,null,null,null,null,null,null,null,null,null,null,null,null,null,null,null,{"$f":"IFERROR(VLOOKUP(B56,Materiaalit!$AH$7:$AI$189,2,FALSE),\"\")","v":""},"",{"$f":"IFERROR(VLOOKUP(B56,Materiaalit!$AH$7:$AJ$189,3,FALSE),\"\")","v":""},false,{"$f":"IFERROR(VLOOKUP(AY56,Päästökertoimet!$B$6:'Päästökertoimet'!$E$737,2,FALSE)*AW56,\"\")","v":""},0,"",{"$f":"IFERROR(VLOOKUP(C56,Materiaalit!$AO$7:$AR$189,4,FALSE),\"\")","v":""},{"$f":"IFERROR(VLOOKUP(C56,Materiaalit!$AS$7:$AV$189,4,FALSE),\"\")","v":""},{"$f":"IFERROR(VLOOKUP(C56,Materiaalit!$AW$7:$AZ$189,4,FALSE),\"\")","v":""},{"$f":"IFERROR(VLOOKUP(C56,Materiaalit!$BA$7:$BD$189,4,FALSE),\"\")","v":""},0,{"$f":"IFERROR(VLOOKUP(B56,Materiaalit!$AM$7:$AN$189,2,FALSE),\"\")","v":""},0]
[null,null,"x",null,{"$f":"IF(B57>0,\"%\",\"\")","v":""},"","",{"$f":"IFERROR(AZ57+BG57+BI57,\"\")","v":""},null,null,null,null,null,null,null,null,null,null,null,null,null,null,null,null,null,null,null,null,null,null,null,null,null,null,null,null,null,null,null,null,null,null,null,null,null,null,null,{"$f":"IFERROR(VLOOKUP(B57,Materiaalit!$AH$7:$AI$189,2,FALSE),\"\")","v":""},"",{"$f":"IFERROR(VLOOKUP(B57,Materiaalit!$AH$7:$AJ$189,3,FALSE),\"\")","v":""},{"$f":"IF(AX57=\"AUTOMAATIOKOMPONENTIT\",\"Se-romu\",IF(AX57=\"MEKANIIKKAKOMPONENTIT\",\"Metalli\",IF(AX57=\"VALAISTUS_JA_ELEKTRONIIKKA\",\"Se-romu\",IF(AX57=\"KIINNITYSTARVIKKEET\",\"Metalli\",IF(AX57=\"TERÄKSET\",\"Metalli\",IF(AX57=\"RUOSTUMATTOMAT_TERÄKSET\",\"Metalli\",IF(AX57=\"MUUT_METALLIT\",\"Metalli\",IF(AX57=\"KUMI\",\"Kumi\",IF(AX57=\"MUOVIT\",\"Muovi\",IF(AX57=\"LASI\",\"Keräyslasi\",IF(AX57=\"PUUTUOTTEET\",\"Puu\",IF(AX57=\"TEKSTIILIT_JA_TEKSTIILIKUIDUT\",\"Energiapoltettava jäte\",IF(AX57=\"LIIMAT\",\"Vaarallinen jäte\",IF(AX57=\"MAALIT_JA_LIUOTTIMET\",\"Vaarallinen jäte\",IF(AX57=\"ERIKOISPINNOITTEET\",\"Metalli\",IF(AX57=\"PAKKAUSMATERIAALIT\",\"Energiapoltettava jäte\",IF(AX57=\"LUOKITTELEMATTOMAT_MATERIAALIT\",\"Energiapoltettava jäte\")))))))))))))))))","v":false},{"$f":"IFERROR(VLOOKUP(AY57,Päästökertoimet!$B$6:'Päästökertoimet'!$E$737,2,FALSE)*AW57,\"\")","v":""},{"$f":"B57","v":0},{"$f":"F57","v":""},{"$f":"IFERROR(VLOOKUP(C57,Materiaalit!$AO$7:$AR$189,4,FALSE),\"\")","v":""},{"$f":"IFERROR(VLOOKUP(C57,Materiaalit!$AS$7:$AV$189,4,FALSE),\"\")","v":""},{"$f":"IFERROR(VLOOKUP(C57,Materiaalit!$AW$7:$AZ$189,4,FALSE),\"\")","v":""},{"$f":"IFERROR(VLOOKUP(C57,Materiaalit!$BA$7:$BD$189,4,FALSE),\"\")","v":""},{"$f":"SUM(BC57:BF57)","v":0},{"$f":"IFERROR(VLOOKUP(B57,Materiaalit!$AM$7:$AN$189,2,FALSE),\"\")","v":""},{"$f":"IFERROR(AW57*BH57,0)","v":0}]
[null,null,"x",null,null,null,null,{"$f":"IFERROR(VLOOKUP(#REF!,Päästökertoimet!$B$6:'Päästökertoimet'!$C$737,2,FALSE)*#REF!,0)","v":0},null,null,null,null,null,null,null,null,null,null,null,null,null,null,null,null,null,null,null,null,null,null,null,null,null,null,null,null,null,null,null,null,null,null,null,null,null,null,null,{"$f":"IFERROR(VLOOKUP(B58,Materiaalit!$AH$7:$AI$189,2,FALSE),\"\")","v":""},{"$f":"IF(G58>0,G58*AV58,\"\")","v":""},{"$f":"IFERROR(VLOOKUP(B58,Materiaalit!$AH$7:$AJ$189,3,FALSE),\"\")","v":""},false,{"$f":"IFERROR(VLOOKUP(AY58,Päästökertoimet!$B$6:'Päästökertoimet'!$E$737,2,FALSE)*AW58,\"\")","v":""},0,0,{"$f":"IFERROR(VLOOKUP(C58,Materiaalit!$AO$7:$AR$189,4,FALSE),\"\")","v":""},{"$f":"IFERROR(VLOOKUP(C58,Materiaalit!$AS$7:$AV$189,4,FALSE),\"\")","v":""},{"$f":"IFERROR(VLOOKUP(C58,Materiaalit!$AW$7:$AZ$189,4,FALSE),\"\")","v":""},{"$f":"IFERROR(VLOOKUP(C58,Materiaalit!$BA$7:$BD$189,4,FALSE),\"\")","v":""},0,{"$f":"IFERROR(VLOOKUP(B58,Materiaalit!$AM$7:$AN$189,2,FALSE),\"\")","v":""},0]
[null,null,null,null,null,null,null,{"$f":"SUM(H53:H58)","v":0}]
[]
[null," Tuotantotilojen päästöjen allokointi laskettavalle tuotteelle"]
[]
[null," Valitse päästölähteen tyyppi",null,"Valitse päästölähde",null,"Määrä per vuosi",null," Syötä tuotteen osuus kulutuksesta",null," Valmistusmäärä vuodessa",null,"kg CO2e"]
[]
[null,null,null,null,null,null,{"$f":"IFERROR(VLOOKUP(D65,Päästökertoimet!$B$6:'Päästökertoimet'!$D$737,3,FALSE),\"\")","v":""},null,{"$f":"IF(F65>0,\"%\",\"\")","v":""},null,{"$f":"IF(F65>0,\"kpl\",\"\")","v":""},{"$f":"IFERROR(VLOOKUP(D65,Päästökertoimet!$B$6:'Päästökertoimet'!$C$737,2,FALSE)*F65*(H65/100)/J65,\"\")","v":""}]
[null,null,null,null,null,null,{"$f":"IFERROR(VLOOKUP(D66,Päästökertoimet!$B$6:'Päästökertoimet'!$D$737,3,FALSE),\"\")","v":""},null,{"$f":"IF(F66>0,\"%\",\"\")","v":""},null,{"$f":"IF(F66>0,\"kpl\",\"\")","v":""},{"$f":"IFERROR(VLOOKUP(D66,Päästökertoimet!$B$6:'Päästökertoimet'!$C$737,2,FALSE)*F66*(H66/100)/J66,\"\")","v":""}]
[null,null,null,null,null,null,{"$f":"IFERROR(VLOOKUP(D67,Päästökertoimet!$B$6:'Päästökertoimet'!$D$737,3,FALSE),\"\")","v":""},null,"",null,{"$f":"IF(F67>0,\"kpl\",\"\")","v":""},{"$f":"IFERROR(VLOOKUP(D67,Päästökertoimet!$B$6:'Päästökertoimet'!$C$737,2,FALSE)*F67*(H67/100)/J67,\"\")","v":""}]
[null,null,null,null,null,null,null,null,null,null,null,null,null,null,null,null,null,null,null,null,null,null,{"$f":"IF(I68>0,\"kpl\",\"\")","v":""}]
[null,null,null,null,null,null,null,null,null,null,null,{"$f":"SUM(L65:Z68)","v":0}]

{"sheet":"Kuljetus ja käyttö","index":4,"n_rows":44,"n_cols":14,"rows_kept":44,"cut":false,"hidden":false,"merged":[[2,1,2,9],[13,1,13,9],[23,1,23,9],[25,5,25,6],[32,5,32,6],[4,5,4,7],[20,5,20,6],[15,5,15,6]]}
[null,"Tuotteen hiilijalanjäljen laskentatyökalu",null,null,null,null,null,null,null,null,null,null,null,1]
[]
[null," Valmiin tuotteen kuljetus"]
[]
[null," Valitse kuljetustapa",null,"Valitse kuljetusväline",null,"       Syötä kuljetusmatka   ",null,null,null,"kg CO2e"]
[null,null,null,null,null,{"$f":"SUM(F7:F11)","v":0}]
[null,null,null,null,null,null,{"$f":"IF(B7>0,\"km\",\"\")","v":""},{"$f":"IF(B7>0,Yhteenveto!$G$8/1000*F7,\"\")","v":""},{"$f":"IF(F7>0,\"tkm\",\"\")","v":""},{"$f":"IFERROR(VLOOKUP(D7,Päästökertoimet!$B$4:$C$613,2,FALSE)*H7,\"\")","v":""}]
[null,null,null,null,null,null,"",{"$f":"IF(B8>0,Yhteenveto!$G$8/1000*F8,\"\")","v":""},{"$f":"IF(F8>0,\"tkm\",\"\")","v":""},{"$f":"IFERROR(VLOOKUP(D8,Päästökertoimet!$B$4:$C$613,2,FALSE)*H8,\"\")","v":""}]
[null,null,null,null,null,null,"",{"$f":"IF(B9>0,Yhteenveto!$G$8/1000*F9,\"\")","v":""},{"$f":"IF(F9>0,\"tkm\",\"\")","v":""},{"$f":"IFERROR(VLOOKUP(D9,Päästökertoimet!$B$4:$C$613,2,FALSE)*H9,\"\")","v":""}]
[null,null,null,null,null,null,{"$f":"IF(B10>0,\"km\",\"\")","v":""},{"$f":"IF(B10>0,Yhteenveto!$G$8/1000*F10,\"\")","v":""},{"$f":"IF(F10>0,\"tkm\",\"\")","v":""},{"$f":"IFERROR(VLOOKUP(D10,Päästökertoimet!$B$4:$C$613,2,FALSE)*H10,\"\")","v":""}]
[null,null,null,null,null,null,{"$f":"IFERROR(VLOOKUP(#REF!,Päästökertoimet!$B$6:'Päästökertoimet'!$D$737,3,FALSE),\"\")","v":""},null,{"$f":"IF(B11>0,Yhteenveto!$G$8/1000*F11,\"\")","v":""},{"$f":"IFERROR(VLOOKUP(D11,'Muut kertoimet'!$B$4:$C$584,2,FALSE)*I11,\"\")","v":""}]
[null,null,null,null,null,null,null,null,null,{"$f":"SUM(J7:J11)","v":0}]
[]
[null," Tuotteen käytönaikainen energiankulutus"]
[]
[null," Valitse energian tyyppi",null,"Valitse energiamuoto",null,"   Syötä määrä  ",null,null,null,"kg CO2e"]
[null,null,null,null,null,{"$f":"SUM(F18:F21)","v":0}]
[null,null,null,null,null,null,{"$f":"IFERROR(VLOOKUP(D18,Päästökertoimet!$B$4:'Päästökertoimet'!$D$737,3,FALSE),\"\")","v":""},null,null,{"$f":"IFERROR(VLOOKUP(D18,Päästökertoimet!$B$4:$C$613,2,FALSE)*F18,\"\")","v":""}]
[null,null,null,null,null,null,{"$f":"IFERROR(VLOOKUP(D19,Päästökertoimet!$B$4:'Päästökertoimet'!$D$737,3,FALSE),\"\")","v":""},null,null,{"$f":"IFERROR(VLOOKUP(D19,Päästökertoimet!$B$4:$C$613,2,FALSE)*F19,\"\")","v":""}]
[null,null,null,null,null,null,{"$f":"IFERROR(VLOOKUP(D20,Päästökertoimet!$B$4:'Päästökertoimet'!$D$737,3,FALSE),\"\")","v":""},null,null,{"$f":"IFERROR(VLOOKUP(D20,Päästökertoimet!$B$4:$C$613,2,FALSE)*F20,\"\")","v":""}]
[null,null,null,null,null,null,null,{"$f":"IFERROR(VLOOKUP(D21,'Muut kertoimet'!#REF!:'Muut kertoimet'!#REF!,3,FALSE),\"\")","v":""},null,{"$f":"IFERROR(VLOOKUP(#REF!,Päästökertoimet!$B$6:'Päästökertoimet'!$C$737,2,FALSE)*F21,0)","v":0}]
[null,null,null,null,null,null,null,null,null,{"$f":"SUM(J18:J21)","v":0}]
[]
[null," Tuotteen käytönaikainen materiaalien kulutus"]
[]
[null," Valitse materiaaliluokka",null,"Valitse materiaali",null,"   Syötä määrä  ",null,null,null,"kg CO2e"]
[null,null,null,null,null,{"$f":"SUM(F28:F33)","v":0}]
[null,null,null,null,null,null,{"$f":"IFERROR(VLOOKUP(D28,Päästökertoimet!$B$4:'Päästökertoimet'!$D$737,3,FALSE),\"\")","v":""},null,null,{"$f":"IFERROR(VLOOKUP(D28,Päästökertoimet!$B$4:$C$613,2,FALSE)*F28,\"\")","v":""}]
[null,null,null,null,null,null,{"$f":"IFERROR(VLOOKUP(D29,Päästökertoimet!$B$4:'Päästökertoimet'!$D$737,3,FALSE),\"\")","v":""},null,null,{"$f":"IFERROR(VLOOKUP(D29,Päästökertoimet!$B$4:$C$613,2,FALSE)*F29,\"\")","v":""}]
[null,null,null,null,null,null,{"$f":"IFERROR(VLOOKUP(D30,Päästökertoimet!$B$4:'Päästökertoimet'!$D$737,3,FALSE),\"\")","v":""},null,null,{"$f":"IFERROR(VLOOKUP(D30,Päästökertoimet!$B$4:$C$613,2,FALSE)*F30,\"\")","v":""}]
[null,null,null,null,null,null,{"$f":"IFERROR(VLOOKUP(D31,Päästökertoimet!$B$4:'Päästökertoimet'!$D$737,3,FALSE),\"\")","v":""},null,null,{"$f":"IFERROR(VLOOKUP(D31,Päästökertoimet!$B$4:$C$613,2,FALSE)*F31,\"\")","v":""}]
[null,null,null,null,null,null,{"$f":"IFERROR(VLOOKUP(D32,Päästökertoimet!$B$4:'Päästökertoimet'!$D$737,3,FALSE),\"\")","v":""},null,null,{"$f":"IFERROR(VLOOKUP(D32,Päästökertoimet!$B$4:$C$613,2,FALSE)*F32,\"\")","v":""}]
[null,null,null,null,null,null,null,{"$f":"IFERROR(VLOOKUP(D33,'Muut kertoimet'!#REF!:'Muut kertoimet'!#REF!,3,FALSE),\"\")","v":""},null,{"$f":"IFERROR(VLOOKUP(#REF!,Päästökertoimet!$B$6:'Päästökertoimet'!$C$737,2,FALSE)*F33,0)","v":0}]
[null,null,null,null,null,null,null,null,null,{"$f":"SUM(J28:J33)","v":0}]
[]
[null," Tuotteen käytönaikaiset jätteet"]
[]
[null," Valitse jätejae",null,"Syötä määrä",null,null,null,null,null,"kg CO2e"]
[null,null,null,{"$f":"SUM(D40:D43)","v":0}]
[null,null,null,null,{"$f":"IFERROR(VLOOKUP(B40,Päästökertoimet!$B$4:'Päästökertoimet'!$D$737,3,FALSE),\"\")","v":""},null,null,null,null,{"$f":"IFERROR(VLOOKUP(B40,Päästökertoimet!$B$4:$C$613,2,FALSE)*D40,\"\")","v":""}]
[null,null,null,null,{"$f":"IFERROR(VLOOKUP(B41,Päästökertoimet!$B$4:'Päästökertoimet'!$D$737,3,FALSE),\"\")","v":""},null,null,null,null,{"$f":"IFERROR(VLOOKUP(B41,Päästökertoimet!$B$4:$C$613,2,FALSE)*D41,\"\")","v":""}]
[null,null,null,null,{"$f":"IFERROR(VLOOKUP(B42,Päästökertoimet!$B$4:'Päästökertoimet'!$D$737,3,FALSE),\"\")","v":""},null,null,null,null,{"$f":"IFERROR(VLOOKUP(B42,Päästökertoimet!$B$4:$C$613,2,FALSE)*D42,\"\")","v":""}]
[null,null,null,null,null,{"$f":"IFERROR(VLOOKUP(B43,'Muut kertoimet'!#REF!:'Muut kertoimet'!#REF!,3,FALSE),\"\")","v":""},null,null,null,{"$f":"IFERROR(VLOOKUP(#REF!,Päästökertoimet!$B$6:'Päästökertoimet'!$C$737,2,FALSE)*D43,0)","v":0}]
[null,null,null,null,null,null,null,null,null,{"$f":"SUM(J40:J43)","v":0}]

{"sheet":"Elinkaaren loppu","index":5,"n_rows":23,"n_cols":21,"rows_kept":23,"cut":false,"hidden":false,"merged":[[2,1,2,6]]}
[null,"Tuotteen hiilijalanjäljen laskentatyökalu"]
[]
[null,"Tuotteen hävittäminen"]
[]
[null," Jätelaji",null,"          Syötä määrä",null,null,"kg CO2e"]
[]
[null,"Pahvi",null,null,"kg",null,{"$f":"IF(D7>0,U7,\"\")","v":""},null,null,null,null,null,null,null,null,null,null,null,null,null,{"$f":"IFERROR(VLOOKUP(B7,Päästökertoimet!$B$6:'Päästökertoimet'!$C$737,2,FALSE)*D7,\"\")","v":0}]
[null,"Keräyspaperi",null,null,"kg",null,{"$f":"IF(D8>0,U8,\"\")","v":""},null,null,null,null,null,null,null,null,null,null,null,null,null,{"$f":"IFERROR(VLOOKUP(B8,Päästökertoimet!$B$6:'Päästökertoimet'!$C$737,2,FALSE)*D8,\"\")","v":0}]
[null,"Keräyslasi",null,null,"kg",null,"",null,null,null,null,null,null,null,null,null,null,null,null,null,{"$f":"IFERROR(VLOOKUP(B9,Päästökertoimet!$B$6:'Päästökertoimet'!$C$737,2,FALSE)*D9,\"\")","v":0}]
[null,"Keräysmuovi",null,null,"kg",null,"",null,null,null,null,null,null,null,null,null,null,null,null,null,{"$f":"IFERROR(VLOOKUP(B10,Päästökertoimet!$B$6:'Päästökertoimet'!$C$737,2,FALSE)*D10,\"\")","v":0}]
[null,"Metalli",null,null,"kg",null,"",null,null,null,null,null,null,null,null,null,null,null,null,null,{"$f":"IFERROR(VLOOKUP(B11,Päästökertoimet!$B$6:'Päästökertoimet'!$C$737,2,FALSE)*D11,\"\")","v":0}]
[null,"Akut, paristot",null,null,"kg",null,"",null,null,null,null,null,null,null,null,null,null,null,null,null,{"$f":"IFERROR(VLOOKUP(B12,Päästökertoimet!$B$6:'Päästökertoimet'!$C$737,2,FALSE)*D12,\"\")","v":0}]
[null,"Muovi",null,null,"kg",null,"",null,null,null,null,null,null,null,null,null,null,null,null,null,{"$f":"IFERROR(VLOOKUP(B13,Päästökertoimet!$B$6:'Päästökertoimet'!$C$737,2,FALSE)*D13,\"\")","v":0}]
[null,"Puu",null,null,"kg",null,"",null,null,null,null,null,null,null,null,null,null,null,null,null,{"$f":"IFERROR(VLOOKUP(B14,Päästökertoimet!$B$6:'Päästökertoimet'!$C$737,2,FALSE)*D14,\"\")","v":0}]
[null,"Kyllästetty puu",null,null,"kg",null,"",null,null,null,null,null,null,null,null,null,null,null,null,null,{"$f":"IFERROR(VLOOKUP(B15,Päästökertoimet!$B$6:'Päästökertoimet'!$C$737,2,FALSE)*D15,\"\")","v":0}]
[null,"Kumi",null,null,"kg",null,"",null,null,null,null,null,null,null,null,null,null,null,null,null,{"$f":"IFERROR(VLOOKUP(B16,Päästökertoimet!$B$6:'Päästökertoimet'!$C$737,2,FALSE)*D16,\"\")","v":0}]
[null,"Se-romu",null,null,"kg",null,"",null,null,null,null,null,null,null,null,null,null,null,null,null,{"$f":"IFERROR(VLOOKUP(B17,Päästökertoimet!$B$6:'Päästökertoimet'!$C$737,2,FALSE)*D17,\"\")","v":0}]
[null,"Metalli, alumiini",null,null,"kg",null,{"$f":"IF(D18>0,U18,\"\")","v":""},null,null,null,null,null,null,null,null,null,null,null,null,null,{"$f":"IFERROR(VLOOKUP(B18,Päästökertoimet!$B$6:'Päästökertoimet'!$C$737,2,FALSE)*D18,\"\")","v":0}]
[null,"Metalli, kaapelit",null,null,"kg",null,{"$f":"IF(D19>0,U19,\"\")","v":""},null,null,null,null,null,null,null,null,null,null,null,null,null,{"$f":"IFERROR(VLOOKUP(B19,Päästökertoimet!$B$6:'Päästökertoimet'!$C$737,2,FALSE)*D19,\"\")","v":0}]
[null,"Energiapoltettava jäte",null,null,"kg",null,"",null,null,null,null,null,null,null,null,null,null,null,null,null,{"$f":"IFERROR(VLOOKUP(B20,Päästökertoimet!$B$6:'Päästökertoimet'!$C$737,2,FALSE)*D20,\"\")","v":0}]
[null,"Vaarallinen jäte",null,null,"kg",null,"",null,null,null,null,null,null,null,null,null,null,null,null,null,{"$f":"IFERROR(VLOOKUP(B21,Päästökertoimet!$B$6:'Päästökertoimet'!$C$737,2,FALSE)*D21,\"\")","v":0}]
[]
[null,null,null,null,null,null,{"$f":"SUM(G7:G22)","v":0}]

{"sheet":"Päästökertoimet","index":6,"n_rows":489,"n_cols":7,"rows_kept":489,"cut":false,"hidden":false,"merged":[]}
[null,"Päästölähde","kgCO2e","yksikkö","kg per\nyksikkö","Tietolähde","Huomiot"]
[]
[null,"KOMPONENTIT JA MATERIAALIT"]
[]
[null,"AUTOMAATIOKOMPONENTIT","Sarake1","Sarake2","Sarake3","Sarake4","Sarake5"]
[null,"Anturit - Absoluuttianturi",6.9350399999999999,"kpl",0.59,"ELCD / IPCC 2013 GWP 100a","Päästökerroin johdettu käyttäen ELCD tietokantaa ja IPCC 2013 GWP 100a arviointimenetelmää."]
[null,"Anturit - Induktiivianturi",0.56156000000000006,"kpl",9.9000000000000005E-2,"ELCD / IPCC 2013 GWP 100a","Päästökerroin johdettu käyttäen ELCD tietokantaa ja IPCC 2013 GWP 100a arviointimenetelmää."]
[null,"Anturit - Kapasitiivinen anturi",3.7423200000000003,"kpl",0.22,"ELCD / IPCC 2013 GWP 100a","Päästökerroin johdettu käyttäen ELCD tietokantaa ja IPCC 2013 GWP 100a arviointimenetelmää."]
[null,"Anturit - Laser mittausanturi, metallirunko",8.2051200000000009,"kpl",1.65,"ELCD / IPCC 2013 GWP 100a","Päästökerroin johdettu käyttäen ELCD tietokantaa ja IPCC 2013 GWP 100a arviointimenetelmää."]
[null,"Anturit - Laser mittausanturi, muovirunko",5.4741999999999997,"kpl",0.2,"ELCD / IPCC 2013 GWP 100a","Päästökerroin johdettu käyttäen ELCD tietokantaa ja IPCC 2013 GWP 100a arviointimenetelmää."]
[null,"Anturit - Mekaaninen rajakytkin, metallirunko",1.53918,"kpl",0.2,"ELCD / IPCC 2013 GWP 100a","Päästökerroin johdettu käyttäen ELCD tietokantaa ja IPCC 2013 GWP 100a arviointimenetelmää."]
[null,"Anturit - Mekaaninen rajakytkin, muovirunko",0.95760000000000001,"kpl",0.12,"ELCD / IPCC 2013 GWP 100a","Päästökerroin johdettu käyttäen ELCD tietokantaa ja IPCC 2013 GWP 100a arviointimenetelmää."]
[null,"Anturit - Ultraäänianturi",1.5251000000000001,"kpl",0.14000000000000001,"ELCD / IPCC 2013 GWP 100a","Päästökerroin johdettu käyttäen ELCD tietokantaa ja IPCC 2013 GWP 100a arviointimenetelmää."]
[null,"Anturit - Valokenno, lähetin/vastaanotinpari",2.85704,"kpl",0.25,"ELCD / IPCC 2013 GWP 100a","Päästökerroin johdettu käyttäen ELCD tietokantaa ja IPCC 2013 GWP 100a arviointimenetelmää."]
[null,"Anturit - Valokenno, peili/kohteesta heijastava",2.2780799999999997,"kpl",0.185,"ELCD / IPCC 2013 GWP 100a","Päästökerroin johdettu käyttäen ELCD tietokantaa ja IPCC 2013 GWP 100a arviointimenetelmää."]
[null,"Kenttäl. - Cat 5 väyläkaapeli",0.20704999999999998,"m",3.5999999999999997E-2,"ELCD / IPCC 2013 GWP 100a","Päästökerroin johdettu käyttäen ELCD tietokantaa ja IPCC 2013 GWP 100a arviointimenetelmää."]
[null,"Kenttäl. - Tasavirtamoottori DC (per kg tuotetta)",1.6096000000000001,"kg",1,"ELCD / IPCC 2013 GWP 100a","Päästökerroin johdettu käyttäen ELCD tietokantaa ja IPCC 2013 GWP 100a arviointimenetelmää."]
[null,"Keskus - 1-vaihe johdonsuojakatkaisija 0 - 25 A",1.4918400000000001,"kpl",0.115,"ELCD / IPCC 2013 GWP 100a","Päästökerroin johdettu käyttäen ELCD tietokantaa ja IPCC 2013 GWP 100a arviointimenetelmää."]
[null,"Keskus - 1-vaihe johdonsuojakatkaisija 15 - 60 A",4.2824,"kpl",0.43,"ELCD / IPCC 2013 GWP 100a","Päästökerroin johdettu käyttäen ELCD tietokantaa ja IPCC 2013 GWP 100a arviointimenetelmää."]
[null,"Keskus - 1-vaihe johdonsuojakatkaisija 60 - 160 A",6.8709800000000003,"kpl",0.9,"ELCD / IPCC 2013 GWP 100a","Päästökerroin johdettu käyttäen ELCD tietokantaa ja IPCC 2013 GWP 100a arviointimenetelmää."]
[null,"Keskus - 400 VAC Sähkömoottori (per kg tuotetta)",2.1268799999999999,"kg",1,"ELCD / IPCC 2013 GWP 100a","Päästökerroin johdettu käyttäen ELCD tietokantaa ja IPCC 2013 GWP 100a arviointimenetelmää."]
[null,"Keskus - 240 VAC Taajuusmuuttaja, 0,18 - 4 kW",42.1372,"kpl",1.8,"ELCD / IPCC 2013 GWP 100a","Päästökerroin johdettu käyttäen ELCD tietokantaa ja IPCC 2013 GWP 100a arviointimenetelmää."]
[null,"Keskus - 400 VAC Taajuusmuuttaja, 0,75 - 4 kW",78.468000000000004,"kpl",3.6,"ELCD / IPCC 2013 GWP 100a","Päästökerroin johdettu käyttäen ELCD tietokantaa ja IPCC 2013 GWP 100a arviointimenetelmää."]
[null,"Keskus - 400 VAC Taajuusmuuttaja, 5,5 - 11 kW",116.928,"kpl",9.5,"ELCD / IPCC 2013 GWP 100a","Päästökerroin johdettu käyttäen ELCD tietokantaa ja IPCC 2013 GWP 100a arviointimenetelmää."]
[null,"Keskus - 400 VAC Taajuusmuuttaja, 11 - 22 kW",158.57,"kpl",15,"ELCD / IPCC 2013 GWP 100a","Päästökerroin johdettu käyttäen ELCD tietokantaa ja IPCC 2013 GWP 100a arviointimenetelmää."]
[null,"Keskus - 400 VAC Taajuusmuuttaja, 30 - 75 kW",548.27,"kpl",52,"ELCD / IPCC 2013 GWP 100a","Päästökerroin johdettu käyttäen ELCD tietokantaa ja IPCC 2013 GWP 100a arviointimenetelmää."]
[null,"Keskus - 400 VAC Vaihdemoottori (per kg tuotetta)",2.2780799999999997,"kg",1,"ELCD / IPCC 2013 GWP 100a","Päästökerroin johdettu käyttäen ELCD tietokantaa ja IPCC 2013 GWP 100a arviointimenetelmää."]
[null,"Keskus - Analog IO-moduli (per kg tuotetta)",76.002499999999998,"kg",1,"ELCD / IPCC 2013 GWP 100a","Päästökerroin johdettu käyttäen ELCD tietokantaa ja IPCC 2013 GWP 100a arviointimenetelmää."]
[null,"Keskus - Apukosketin",0.43761,"kpl",4.2000000000000003E-2,"ELCD / IPCC 2013 GWP 100a","Päästökerroin johdettu käyttäen ELCD tietokantaa ja IPCC 2013 GWP 100a arviointimenetelmää."]
[null,"Keskus - Didital IO-moduli (per kg tuotetta)",61.568640000000002,"kg",1,"ELCD / IPCC 2013 GWP 100a","Päästökerroin johdettu käyttäen ELCD tietokantaa ja IPCC 2013 GWP 100a arviointimenetelmää."]
[null,"Keskus - Hakkurivirtalähde 24VDC, 5 A",6.4640000000000004,"kpl",0.44,"ELCD / IPCC 2013 GWP 100a","Päästökerroin johdettu käyttäen ELCD tietokantaa ja IPCC 2013 GWP 100a arviointimenetelmää."]
[null,"Keskus - Kompaktikatkaisija 40 - 80 A",5.7845000000000004,"kpl",0.73,"ELCD / IPCC 2013 GWP 100a","Päästökerroin johdettu käyttäen ELCD tietokantaa ja IPCC 2013 GWP 100a arviointimenetelmää."]
[null,"Keskus - Kompaktikatkaisija 100 - 160 A",6.2496,"kpl",1.05,"ELCD / IPCC 2013 GWP 100a","Päästökerroin johdettu käyttäen ELCD tietokantaa ja IPCC 2013 GWP 100a arviointimenetelmää."]
[null,"Keskus - Kontaktori 9 - 18 A",2.7168999999999999,"kpl",0.4,"ELCD / IPCC 2013 GWP 100a","Päästökerroin johdettu käyttäen ELCD tietokantaa ja IPCC 2013 GWP 100a arviointimenetelmää."]
[null,"Keskus - Kontaktori 25 - 38 A",3.02806,"kpl",0.42,"ELCD / IPCC 2013 GWP 100a","Päästökerroin johdettu käyttäen ELCD tietokantaa ja IPCC 2013 GWP 100a arviointimenetelmää."]
[null,"Keskus - Kontaktori 40 - 65 A",7.6406400000000003,"kpl",0.94,"ELCD / IPCC 2013 GWP 100a","Päästökerroin johdettu käyttäen ELCD tietokantaa ja IPCC 2013 GWP 100a arviointimenetelmää."]
[null,"Keskus - Kuparijohdin",1.2625,"kg",1,"ELCD / IPCC 2013 GWP 100a","Päästökerroin johdettu käyttäen ELCD tietokantaa ja IPCC 2013 GWP 100a arviointimenetelmää."]
[null,"Keskus - Moottorinsuojakatkaisija 16 A",3.60148,"kpl",0.26,"ELCD / IPCC 2013 GWP 100a","Päästökerroin johdettu käyttäen ELCD tietokantaa ja IPCC 2013 GWP 100a arviointimenetelmää."]
[null,"Keskus - Moottorinsuojakatkaisija 25 A",6.9350399999999999,"kpl",0.5,"ELCD / IPCC 2013 GWP 100a","Päästökerroin johdettu käyttäen ELCD tietokantaa ja IPCC 2013 GWP 100a arviointimenetelmää."]
[null,"Keskus - Moottorinsuojakatkaisija 40 A",7.0800999999999998,"kpl",0.66,"ELCD / IPCC 2013 GWP 100a","Päästökerroin johdettu käyttäen ELCD tietokantaa ja IPCC 2013 GWP 100a arviointimenetelmää."]
[null,"Keskus - Moottorinsuojakatkaisija 65 A",7.1929000000000007,"kpl",0.72,"ELCD / IPCC 2013 GWP 100a","Päästökerroin johdettu käyttäen ELCD tietokantaa ja IPCC 2013 GWP 100a arviointimenetelmää."]
[null,"Keskus - Moottorinsuojakatkaisija 80 A",7.7616000000000005,"kpl",0.86,"ELCD / IPCC 2013 GWP 100a","Päästökerroin johdettu käyttäen ELCD tietokantaa ja IPCC 2013 GWP 100a arviointimenetelmää."]
[null,"Keskus - Muuntaja, 230 - 400 VAC > 230 VAC, 250 VA",54.54,"kpl",12,"ELCD / IPCC 2013 GWP 100a","Päästökerroin johdettu käyttäen ELCD tietokantaa ja IPCC 2013 GWP 100a arviointimenetelmää."]
[null,"Keskus - Ohjelmoitava logiikka (per kg tuotetta)",96.948220000000006,"kg",1,"ELCD / IPCC 2013 GWP 100a","Päästökerroin johdettu käyttäen ELCD tietokantaa ja IPCC 2013 GWP 100a arviointimenetelmää."]
[null,"Keskus - Rele (interface relay)",1.0584,"kpl",0.03,"ELCD / IPCC 2013 GWP 100a","Päästökerroin johdettu käyttäen ELCD tietokantaa ja IPCC 2013 GWP 100a arviointimenetelmää."]
[null,"Keskus - Riviliitin",4.9489999999999999E-2,"kpl",8.0000000000000002E-3,"ELCD / IPCC 2013 GWP 100a","Päästökerroin johdettu käyttäen ELCD tietokantaa ja IPCC 2013 GWP 100a arviointimenetelmää."]
[null,"Keskus - Turvarele",4.8388599999999995,"kpl",1.03,"ELCD / IPCC 2013 GWP 100a","Päästökerroin johdettu käyttäen ELCD tietokantaa ja IPCC 2013 GWP 100a arviointimenetelmää."]
[null,"Keskus - Väylämoduli (per kg tuotetta)",22.06512,"kg",1,"ELCD / IPCC 2013 GWP 100a","Päästökerroin johdettu käyttäen ELCD tietokantaa ja IPCC 2013 GWP 100a arviointimenetelmää."]
[null,"Keskus - Yleisvirtalähde, 24 VDC, 5 A",8.8880000000000017,"kpl",0.53,"ELCD / IPCC 2013 GWP 100a","Päästökerroin johdettu käyttäen ELCD tietokantaa ja IPCC 2013 GWP 100a arviointimenetelmää."]
[null,"Keskus - Yleisvirtalähde, 24 VDC, 10 A",11.468400000000001,"kpl",0.88,"ELCD / IPCC 2013 GWP 100a","Päästökerroin johdettu käyttäen ELCD tietokantaa ja IPCC 2013 GWP 100a arviointimenetelmää."]
[null,"Ohjaus - Avainkytkin + avain",2.2478400000000001,"kpl",0.18,"ELCD / IPCC 2013 GWP 100a","Päästökerroin johdettu käyttäen ELCD tietokantaa ja IPCC 2013 GWP 100a arviointimenetelmää."]
[null,"Ohjaus - HMI paneeli (per kg tuotetta)",194.93,"kg",1,"ELCD / IPCC 2013 GWP 100a","Päästökerroin johdettu käyttäen ELCD tietokantaa ja IPCC 2013 GWP 100a arviointimenetelmää."]
[null,"Ohjaus - Hätäseis kytkin",2.0924800000000001,"kpl",0.15,"ELCD / IPCC 2013 GWP 100a","Päästökerroin johdettu käyttäen ELCD tietokantaa ja IPCC 2013 GWP 100a arviointimenetelmää."]
[null,"Ohjaus - Kytkin + pohja, muovia",0.314496,"kpl",2.5999999999999999E-2,"ELCD / IPCC 2013 GWP 100a","Päästökerroin johdettu käyttäen ELCD tietokantaa ja IPCC 2013 GWP 100a arviointimenetelmää."]
[null,"Ohjaus - Kytkin metallirunko + pohja muovia",0.67468000000000006,"kpl",8.5000000000000006E-2,"ELCD / IPCC 2013 GWP 100a","Päästökerroin johdettu käyttäen ELCD tietokantaa ja IPCC 2013 GWP 100a arviointimenetelmää."]
[null,"Ohjaus - LED merkkivalo/ohjauspainike",0.60963599999999996,"kpl",4.2999999999999997E-2,"ELCD / IPCC 2013 GWP 100a","Päästökerroin johdettu käyttäen ELCD tietokantaa ja IPCC 2013 GWP 100a arviointimenetelmää."]
[]
[null,"MEKANIIKKAKOMPONENTIT","Sarake1","Sarake2","Sarake3","Sarake4","Sarake5"]
[null,"PI sylinteri - Kompakti 2-toiminen (per kg tuotetta)",16.117920000000002,"kg",1,"ELCD / IPCC 2013 GWP 100a","Esimerkiksi Festo AEVC tai SMC JCQ sarja. Päästökerroin johdettu käyttäen ELCD tietokantaa ja IPCC 2013 GWP 100a arviointimenetelmää."]
[null,"PI sylinteri - Standardi 2-toiminen (per kg tuotetta)",5.3630999999999993,"kg",1,"ELCD / IPCC 2013 GWP 100a","Esimerkiksi Festo DSBC tai SMC JCQ sarja. Päästökerroin johdettu käyttäen ELCD tietokantaa ja IPCC 2013 GWP 100a arviointimenetelmää."]
[null,"PI sylinteri - Pyöreä 2-toiminen (per kg tuotetta)",11.770199999999999,"kg",1,"ELCD / IPCC 2013 GWP 100a","Esimerkiksi Festo DSNU tai SMC JCM sarja. Päästökerroin johdettu käyttäen ELCD tietokantaa ja IPCC 2013 GWP 100a arviointimenetelmää."]
[null,"PI sylinteri - Johdesylinteri 2-toiminen (per kg tuotetta)",10.54368,"kg",1,"ELCD / IPCC 2013 GWP 100a","Esimerkiksi Festo DFM tai SMC MGP sarja. Päästökerroin johdettu käyttäen ELCD tietokantaa ja IPCC 2013 GWP 100a arviointimenetelmää."]
[null,"PI sylinteri - Männänvarreton (per kg tuotetta)",10.9282,"kg",1,"ELCD / IPCC 2013 GWP 100a","Esimerkiksi Festo DGC-K tai SMC MY1 sarja. Päästökerroin johdettu käyttäen ELCD tietokantaa ja IPCC 2013 GWP 100a arviointimenetelmää."]
[null,"PI sylinteri - Männänvarreton, johteella (per kg tuotetta)",9.6576000000000004,"kg",1,"ELCD / IPCC 2013 GWP 100a","Esimerkiksi Festo DGC-G tai SMC CY1 sarja. Päästökerroin johdettu käyttäen ELCD tietokantaa ja IPCC 2013 GWP 100a arviointimenetelmää."]
[null,"PI venttiili",1.8244800000000001,"kpl",3.5000000000000003E-2,"ELCD / IPCC 2013 GWP 100a","Päästökerroin johdettu käyttäen ELCD tietokantaa ja IPCC 2013 GWP 100a arviointimenetelmää."]
[null,"PI venttiiliterminaali (per venttiili)",0.71709999999999996,"kpl",1.0999999999999999E-2,"ELCD / IPCC 2013 GWP 100a","Päästökerroin johdettu käyttäen ELCD tietokantaa ja IPCC 2013 GWP 100a arviointimenetelmää."]
[null,"PI suodatin, max 12500 l/min",1.7303200000000001,"kpl",0.37,"ELCD / IPCC 2013 GWP 100a","Esimerkiksi Festo MS tai SMC AF-A sarja. Päästökerroin johdettu käyttäen ELCD tietokantaa ja IPCC 2013 GWP 100a arviointimenetelmää."]
[null,"PI huoltoyksikkö (suodatin + säädin + voitelu)",6.4915200000000004,"kpl",0.42,"ELCD / IPCC 2013 GWP 100a","Esimerkiksi Festo MSB4 tai SMC AC-A sarja. Päästökerroin johdettu käyttäen ELCD tietokantaa ja IPCC 2013 GWP 100a arviointimenetelmää."]
[null,"PI liitin, Ø 4 - 6 mm, messinki",6.8680000000000005E-2,"kpl",6.0000000000000001E-3,"ELCD / IPCC 2013 GWP 100a","Päästökerroin johdettu käyttäen ELCD tietokantaa ja IPCC 2013 GWP 100a arviointimenetelmää."]
[null,"PI liitin, Ø 8 - 10 mm, messinki",0.170014,"kpl",1.4E-2,"ELCD / IPCC 2013 GWP 100a","Päästökerroin johdettu käyttäen ELCD tietokantaa ja IPCC 2013 GWP 100a arviointimenetelmää."]
[null,"PI liitin, Ø 12 mm, messinki",0.23486400000000002,"kpl",2.4E-2,"ELCD / IPCC 2013 GWP 100a","Päästökerroin johdettu käyttäen ELCD tietokantaa ja IPCC 2013 GWP 100a arviointimenetelmää."]
[null,"PI liitin, Ø 16 mm, messinki",0.43430000000000002,"kpl",3.5999999999999997E-2,"ELCD / IPCC 2013 GWP 100a","Päästökerroin johdettu käyttäen ELCD tietokantaa ja IPCC 2013 GWP 100a arviointimenetelmää."]
[null,"PI letku, Ø 4 - 6 mm, TPU",0.117702,"m",8.9999999999999993E-3,"ELCD / IPCC 2013 GWP 100a","Päästökerroin johdettu käyttäen ELCD tietokantaa ja IPCC 2013 GWP 100a arviointimenetelmää."]
[null,"PI letku, Ø 8 - 10 mm, TPU",0.29937599999999998,"m",3.3000000000000002E-2,"ELCD / IPCC 2013 GWP 100a","Päästökerroin johdettu käyttäen ELCD tietokantaa ja IPCC 2013 GWP 100a arviointimenetelmää."]
[null,"PI letku, Ø 12 mm, TPU",0.47066000000000002,"m",0.06,"ELCD / IPCC 2013 GWP 100a","Päästökerroin johdettu käyttäen ELCD tietokantaa ja IPCC 2013 GWP 100a arviointimenetelmää."]
[null,"PI letku, Ø 16 mm, TPU",0.79071600000000009,"m",9.1999999999999998E-2,"ELCD / IPCC 2013 GWP 100a","Päästökerroin johdettu käyttäen ELCD tietokantaa ja IPCC 2013 GWP 100a arviointimenetelmää."]
[null,"Hydr. sylinteri - Mäntä Ø 25 - 32 mm (per kg tuotetta)",4.5864000000000003,"kg",1,"ELCD / IPCC 2013 GWP 100a","Referenssi iskunpituus 400 mm. Päästökerroin johdettu käyttäen ELCD tietokantaa ja IPCC 2013 GWP 100a arviointimenetelmää."]
[null,"Hydr. sylinteri - Mäntä Ø 40 - 50 mm (per kg tuotetta)",4.1006,"kg",1,"ELCD / IPCC 2013 GWP 100a","Referenssi iskunpituus 400 mm. Päästökerroin johdettu käyttäen ELCD tietokantaa ja IPCC 2013 GWP 100a arviointimenetelmää."]
[null,"Hydr. sylinteri - Mäntä Ø 63 - 80 mm (per kg tuotetta)",3.6417200000000003,"kg",1,"ELCD / IPCC 2013 GWP 100a","Referenssi iskunpituus 400 mm. Päästökerroin johdettu käyttäen ELCD tietokantaa ja IPCC 2013 GWP 100a arviointimenetelmää."]
[null,"Hydr. sylinteri - Mäntä Ø 100 - 125 mm (per kg tuotetta)",3.2659200000000004,"kg",1,"ELCD / IPCC 2013 GWP 100a","Referenssi iskunpituus 400 mm. Päästökerroin johdettu käyttäen ELCD tietokantaa ja IPCC 2013 GWP 100a arviointimenetelmää."]
[null,"Hydr. sylinteri - Mäntä Ø 160 mm (per kg tuotetta)",3.2016999999999998,"kg",1,"ELCD / IPCC 2013 GWP 100a","Referenssi iskunpituus 400 mm. Päästökerroin johdettu käyttäen ELCD tietokantaa ja IPCC 2013 GWP 100a arviointimenetelmää."]
[null,"Hydrauli kumiletku - 1-kerros tekstiilivahviste (per kg tuotetta)",4.1608160000000005,"kg",1,"ELCD / IPCC 2013 GWP 100a","Päästökerroin johdettu käyttäen ELCD tietokantaa ja IPCC 2013 GWP 100a arviointimenetelmää."]
[null,"Hydrauli kumiletku - 2-kerros tekstiilivahviste (per kg tuotetta)",4.3908480000000001,"kg",1,"ELCD / IPCC 2013 GWP 100a","Päästökerroin johdettu käyttäen ELCD tietokantaa ja IPCC 2013 GWP 100a arviointimenetelmää."]
[null,"Hydrauli kumiletku - 1-kerros teräsvahviste (per kg tuotetta)",2.95526,"kg",1,"ELCD / IPCC 2013 GWP 100a","Päästökerroin johdettu käyttäen ELCD tietokantaa ja IPCC 2013 GWP 100a arviointimenetelmää."]
[null,"Hydrauli kumiletku - 2-kerros teräsvahviste (per kg tuotetta)",2.8298780000000003,"kg",1,"ELCD / IPCC 2013 GWP 100a","Päästökerroin johdettu käyttäen ELCD tietokantaa ja IPCC 2013 GWP 100a arviointimenetelmää."]
[null,"Hydrauliliitin, sinkitty (per kg tuotetta)",2.5804800000000001,"kg",1,"ELCD / IPCC 2013 GWP 100a","Päästökerroin johdettu käyttäen ELCD tietokantaa ja IPCC 2013 GWP 100a arviointimenetelmää."]
[null,"Hydrauliputki (per kg tuotetta)",2.74518,"kg",1,"ELCD / IPCC 2013 GWP 100a","Päästökerroin johdettu käyttäen ELCD tietokantaa ja IPCC 2013 GWP 100a arviointimenetelmää."]
[null,"Hydraulipumppu (per kg tuotetta)",2.7866200000000001,"kg",1,"ELCD / IPCC 2013 GWP 100a","Päästökerroin johdettu käyttäen ELCD tietokantaa ja IPCC 2013 GWP 100a arviointimenetelmää."]
[null,"Hydraulimoottori (per kg tuotetta)",2.79216,"kg",1,"ELCD / IPCC 2013 GWP 100a","Päästökerroin johdettu käyttäen ELCD tietokantaa ja IPCC 2013 GWP 100a arviointimenetelmää."]
[null,"Laakeri (ilman laakeripesää) (per kg tuotetta)",2.4845999999999999,"kg",1,"ELCD / IPCC 2013 GWP 100a","Päästökerroin johdettu käyttäen ELCD tietokantaa ja IPCC 2013 GWP 100a arviointimenetelmää."]
[null,"Laakeripesä, valurauta (per kg tuotetta)",2.1588759999999998,"kg",1,"ELCD / IPCC 2013 GWP 100a","Päästökerroin johdettu käyttäen ELCD tietokantaa ja IPCC 2013 GWP 100a arviointimenetelmää."]
[null,"Sulkuventtiili (yleiskäyttöinen)",7.17,"kg",1,"EPD International","Päästökerroin johdettu käyttäen ELCD tietokantaa ja IPCC 2013 GWP 100a arviointimenetelmää."]
[]
[null,"VALAISTUS JA ELEKTRONIIKKA","Sarake1","Sarake2","Sarake3","Sarake4","Sarake5"]
[null,"Kompakti loistelamppu",0.88704000000000005,"kpl",4.2999999999999997E-2,"ELCD / IPCC 2013 GWP 100a","Referenssituote teholtaan 8 W. Päästökerroin johdettu käyttäen ELCD tietokantaa ja IPCC 2013 GWP 100a arviointimenetelmää."]
[null,"Hehkulamppu",0.14140000000000003,"kpl",2.4E-2,"ELCD / IPCC 2013 GWP 100a","Referenssituote teholtaan 40 W. Päästökerroin johdettu käyttäen ELCD tietokantaa ja IPCC 2013 GWP 100a arviointimenetelmää."]
[null,"Halogeenilamppu",0.33198,"kpl",2.4E-2,"ELCD / IPCC 2013 GWP 100a","Referenssituote teholtaan 42 W. Päästökerroin johdettu käyttäen ELCD tietokantaa ja IPCC 2013 GWP 100a arviointimenetelmää."]
[null,"LED lamppu",2.4192,"kpl",0.17499999999999999,"ELCD / IPCC 2013 GWP 100a","Referenssituote teholtaan 8 W. Päästökerroin johdettu käyttäen ELCD tietokantaa ja IPCC 2013 GWP 100a arviointimenetelmää."]
[null,"Piirilevy, pinta-asennettava, ilman komponentteja",356.67140000000001,"m2",3.26,"ELCD / IPCC 2013 GWP 100a","Päästökerroin johdettu käyttäen ELCD tietokantaa ja IPCC 2013 GWP 100a arviointimenetelmää."]
[null,"Piirilevy, pinta-asennettava, sisältää komponentit",373.53786000000002,"kg",1,"ELCD / IPCC 2013 GWP 100a","Päästökerroin johdettu käyttäen ELCD tietokantaa ja IPCC 2013 GWP 100a arviointimenetelmää."]
[null,"LED ohjain",16.259039999999999,"kpl",6.0999999999999999E-2,"ELCD / IPCC 2013 GWP 100a","Päästökerroin johdettu käyttäen ELCD tietokantaa ja IPCC 2013 GWP 100a arviointimenetelmää."]
[null,"LED (yksittäinen valodiodi)",9.2920000000000003E-2,"kpl",3.5E-4,"ELCD / IPCC 2013 GWP 100a","Päästökerroin johdettu käyttäen ELCD tietokantaa ja IPCC 2013 GWP 100a arviointimenetelmää."]
[null,"Kondensaattori",7.0420000000000005E-3,"kpl",1E-4,"ELCD / IPCC 2013 GWP 100a","Päästökerroin johdettu käyttäen ELCD tietokantaa ja IPCC 2013 GWP 100a arviointimenetelmää."]
[null,"Vastus",3.6287999999999997E-3,"kpl",9.7999999999999997E-3,"ELCD / IPCC 2013 GWP 100a","Päästökerroin johdettu käyttäen ELCD tietokantaa ja IPCC 2013 GWP 100a arviointimenetelmää."]
[null,"Diodi, lasiputki",8.4840000000000002E-3,"kg",3.2000000000000001E-2,"ELCD / IPCC 2013 GWP 100a","Päästökerroin johdettu käyttäen ELCD tietokantaa ja IPCC 2013 GWP 100a arviointimenetelmää."]
[]
[null,"KIINNITYSTARVIKKEET","Sarake1","Sarake2","Sarake3","Sarake4","Sarake5"]
[null,"Ruuvit, mutterit, aluslaatat - keltapassivoitu",2.0260799999999999,"kg",1,"ELCD / IPCC 2013 GWP 100a","Päästökerroin johdettu käyttäen ELCD tietokantaa ja IPCC 2013 GWP 100a arviointimenetelmää."]
[null,"Ruuvit, mutterit, aluslaatat - sähkösinkitty",1.9392,"kg",1,"ELCD / IPCC 2013 GWP 100a","Päästökerroin johdettu käyttäen ELCD tietokantaa ja IPCC 2013 GWP 100a arviointimenetelmää."]
[null,"Ruuvit, mutterit, aluslaatat - kuumasinkitty",1.9818199999999999,"kg",1,"ELCD / IPCC 2013 GWP 100a","Päästökerroin johdettu käyttäen ELCD tietokantaa ja IPCC 2013 GWP 100a arviointimenetelmää."]
[null,"Ruuvit, mutterit, aluslaatat - ruostumaton (RST)",2.9736000000000002,"kg",1,"ELCD / IPCC 2013 GWP 100a","Päästökerroin johdettu käyttäen ELCD tietokantaa ja IPCC 2013 GWP 100a arviointimenetelmää."]
[null,"Konenaula - kirkas",1.5958000000000001,"kg",1,"ELCD / IPCC 2013 GWP 100a","Päästökerroin johdettu käyttäen ELCD tietokantaa ja IPCC 2013 GWP 100a arviointimenetelmää."]
[null,"Konenaula - sähkösinkitty",1.9315199999999999,"kg",1,"ELCD / IPCC 2013 GWP 100a","Päästökerroin johdettu käyttäen ELCD tietokantaa ja IPCC 2013 GWP 100a arviointimenetelmää."]
[null,"Konenaula - kuumasinkitty",1.98576,"kg",1,"ELCD / IPCC 2013 GWP 100a","Päästökerroin johdettu käyttäen ELCD tietokantaa ja IPCC 2013 GWP 100a arviointimenetelmää."]
[null,"Konenaula - ruostumaton (RST)",2.9795000000000003,"kg",1,"ELCD / IPCC 2013 GWP 100a","Päästökerroin johdettu käyttäen ELCD tietokantaa ja IPCC 2013 GWP 100a arviointimenetelmää."]
[null,"Lankanaula - kirkas",1.54924,"kg",1,"ELCD / IPCC 2013 GWP 100a","Päästökerroin johdettu käyttäen ELCD tietokantaa ja IPCC 2013 GWP 100a arviointimenetelmää."]
[null,"Lankanaula - sähkösinkitty",1.8950399999999998,"kg",1,"ELCD / IPCC 2013 GWP 100a","Päästökerroin johdettu käyttäen ELCD tietokantaa ja IPCC 2013 GWP 100a arviointimenetelmää."]
[null,"Lankanaula - kuumasinkitty",1.9695,"kg",1,"ELCD / IPCC 2013 GWP 100a","Päästökerroin johdettu käyttäen ELCD tietokantaa ja IPCC 2013 GWP 100a arviointimenetelmää."]
[null,"Puu-, lastulevy- ja hobayruuvit - keltapassivoitu",2.0220599999999997,"kg",1,"ELCD / IPCC 2013 GWP 100a","Päästökerroin johdettu käyttäen ELCD tietokantaa ja IPCC 2013 GWP 100a arviointimenetelmää."]
[null,"Puu-, lastulevy- ja hobayruuvit - sähkösinkitty",1.93536,"kg",1,"ELCD / IPCC 2013 GWP 100a","Päästökerroin johdettu käyttäen ELCD tietokantaa ja IPCC 2013 GWP 100a arviointimenetelmää."]
[null,"Viimeistelynaulat, hakaset ja sinkilät - sähkösinkitty",2.0402,"kg",1,"ELCD / IPCC 2013 GWP 100a","Päästökerroin johdettu käyttäen ELCD tietokantaa ja IPCC 2013 GWP 100a arviointimenetelmää."]
[null,"Muovitulpat - nylon (PA)",9.7682600000000015,"kg",1,"ELCD / IPCC 2013 GWP 100a","Päästökerroin johdettu käyttäen ELCD tietokantaa ja IPCC 2013 GWP 100a arviointimenetelmää."]
[null,"Kiila-ankkuri - sähkösinkitty",1.93536,"kg",1,"ELCD / IPCC 2013 GWP 100a","Päästökerroin johdettu käyttäen ELCD tietokantaa ja IPCC 2013 GWP 100a arviointimenetelmää."]
[null,"Kiila-ankkuri - ruostumaton (RST)",2.9795000000000003,"kg",1,"ELCD / IPCC 2013 GWP 100a","Päästökerroin johdettu käyttäen ELCD tietokantaa ja IPCC 2013 GWP 100a arviointimenetelmää."]
[]
[null,"TERÄKSET","Sarake1","Sarake2","Sarake3","Sarake4","Sarake5"]
[null,"Ainesputki",2.1974400000000003,"kg",1,"ELCD / IPCC 2013 GWP 100a","Päästökerroin johdettu käyttäen ELCD tietokantaa ja IPCC 2013 GWP 100a arviointimenetelmää."]
[null,"HEA ja HEB palkki, S235, S355",2.2624000000000004,"kg",1,"ELCD / IPCC 2013 GWP 100a","Päästökerroin johdettu käyttäen ELCD tietokantaa ja IPCC 2013 GWP 100a arviointimenetelmää."]
[null,"HEA ja HEB palkki, S235, S355 - NORSK STÅL AS",1.18,"kg",1,"Norsk Stål AS","Kierrätysmateriaalin osuus 92 %"]
[null,"Huonekaluputki, S235, S355",2.4393599999999998,"kg",1,"ELCD / IPCC 2013 GWP 100a","Päästökerroin johdettu käyttäen ELCD tietokantaa ja IPCC 2013 GWP 100a arviointimenetelmää."]
[null,"I ja U palkki, S235, S355",2.1432199999999999,"kg",1,"ELCD / IPCC 2013 GWP 100a","Päästökerroin johdettu käyttäen ELCD tietokantaa ja IPCC 2013 GWP 100a arviointimenetelmää."]
[null,"I ja U palkki, S235, S355 - NORSK STÅL AS",1.18,"kg",1,"Norsk Stål AS","Kierrätysmateriaalin osuus 92 %"]
[null,"Jousiteräs - Özkan Steel",0.97199999999999998,"kg",1,"EPD International","Pääraaka-aine on 100 % kierrätettyä."]
[null,"Kiilateräs",2.1654400000000003,"kg",1,"ELCD / IPCC 2013 GWP 100a","Päästökerroin johdettu käyttäen ELCD tietokantaa ja IPCC 2013 GWP 100a arviointimenetelmää."]
[null,"Kulmatanko, S235, S355",1.9969100000000002,"kg",1,"ELCD / IPCC 2013 GWP 100a","Päästökerroin johdettu käyttäen ELCD tietokantaa ja IPCC 2013 GWP 100a arviointimenetelmää."]
[null,"Kulmatanko, S235, S355 - NORSK STÅL AS",1.2,"kg",1,"Norsk Stål AS","Kierrätysmateriaalin osuus 98,5 %"]
[null,"Kulutusteräs",3.1714000000000002,"kg",1,"ELCD / IPCC 2013 GWP 100a","Esimerkiksi SSAB Hardox tai Ovako WR-Steel. Päästökerroin johdettu käyttäen ELCD tietokantaa ja IPCC 2013 GWP 100a arviointimenetelmää."]
[null,"Kuumavalssattu teräslevy, S235, S355",1.9969100000000002,"kg",1,"ELCD / IPCC 2013 GWP 100a","Päästökerroin johdettu käyttäen ELCD tietokantaa ja IPCC 2013 GWP 100a arviointimenetelmää."]
[null,"Kuumasinkitty teräs - EGGA",2.58,"kg",1,"EPD International","Perustuu euroopan keskimääräisiin tietoihin (European General Galvanizers Association, EGGA) "]
[null,"Kuumavalssattu teräslevy, S235, S355 - SSAB",2.16,"kg",1,"EPD International","Valmistaja: SSAB"]
[null,"Kylmävalssattu teräslevy, S235, S355",2.1820140000000001,"kg",1,"ELCD / IPCC 2013 GWP 100a","Päästökerroin johdettu käyttäen ELCD tietokantaa ja IPCC 2013 GWP 100a arviointimenetelmää."]
[null,"Kylmävalssattu teräslevy, S235, S355 - SSAB",2.34,"kg",1,"EPD International","Valmistaja: SSAB"]
[null,"Lattatanko, S235, S355",2.1644299999999999,"kg",1,"ELCD / IPCC 2013 GWP 100a","Päästökerroin johdettu käyttäen ELCD tietokantaa ja IPCC 2013 GWP 100a arviointimenetelmää."]
[null,"Lattatanko, S235, S355 - NORSK STÅL AS",1.2,"kg",1,"Norsk Stål AS","Kierrätysmateriaalin osuus 98,5 %"]
[null,"Neliö- / kuusiotanko, S235, S355",2.1601439999999998,"kg",1,"ELCD / IPCC 2013 GWP 100a","Päästökerroin johdettu käyttäen ELCD tietokantaa ja IPCC 2013 GWP 100a arviointimenetelmää."]
[null,"Neliö- / kuusiotanko, S235, S355 - NORSK STÅL AS",1.2,"kg",1,"Norsk Stål AS"]
[null,"Pinnoitettu pelti - SSAB GeenCoat",2.63,"kg",1,"EPD International","Väripinnoitettu teräs, levyinä ja rullalla"]
[null,"Pinnoitettu pelti - TATA Steel Colorcoat",2.69,"kg",1,"Tata Steel Europe","Väripinnoitettu teräs, rullalla"]
[null,"Pinnoitettu pelti - RUUKKI",2.74,"kg",1,"Rakennustietosäätiö RTS","Valmiit Ruukki ja Plannja tuotteet: Rakennusten katot, katteet, sadevesijärjestelmät, lattiat, rangat, ulko- ja sisäseinien verhoukset"]
[null,"Pyöreä putkipalkki, S235, S355",2.1930800000000001,"kg",1,"ELCD / IPCC 2013 GWP 100a","Päästökerroin johdettu käyttäen ELCD tietokantaa ja IPCC 2013 GWP 100a arviointimenetelmää."]
[null,"Pyöreä putkipalkki, S235, S355 - SSAB",2.41,"kg",1,"EPD International","Valmistaja: SSAB"]
[null,"Pyörötanko, S235, S355",1.9796,"kg",1,"ELCD / IPCC 2013 GWP 100a","Päästökerroin johdettu käyttäen ELCD tietokantaa ja IPCC 2013 GWP 100a arviointimenetelmää."]
[null,"Pyörötanko, S235, S355 - NORSK STÅL AS",1.2,"kg",1,"Norsk Stål AS","Kierrätysmateriaalin osuus 98,5 %"]
[null,"Pyörötanko - OVAKO Imatra",0.44500000000000001,"kg",1,"EPD International","Kuumavalssattu tankoterästuote on valmistettu 96 % kierrätetystä teräksestä ja 4 % seosaineista."]
[null,"Pyörötanko - OVAKO Hofors",0.46700000000000003,"kg",1,"EPD International","Kuumavalssattu tankoterästuote on valmistettu 96 % kierrätetystä teräksestä ja 4 % seosaineista."]
[null,"Suorakaide / neliö putkipalkki, S235, S355",2.1930800000000001,"kg",1,"ELCD / IPCC 2013 GWP 100a","Päästökerroin johdettu käyttäen ELCD tietokantaa ja IPCC 2013 GWP 100a arviointimenetelmää."]
[null,"Suorakaide / neliö putkipalkki, S235, S355 - SSAB",2.41,"kg",1,"EPD International","Kylmämuovattu"]
[null,"Suorakaide / neliö putkipalkki, S235, S355 - NORSK STÅL AS",2.4900000000000002,"kg",1,"Norsk Stål AS","Kylmämuovattu"]
[null,"Sinkitty pelti",2.4033339999999996,"kg",1,"ELCD / IPCC 2013 GWP 100a","Päästökerroin johdettu käyttäen ELCD tietokantaa ja IPCC 2013 GWP 100a arviointimenetelmää."]
[null,"Sinkitty pelti - SSAB",2.42,"kg",1,"EPD International","Sinkkipinnoite (Z) 100–600 g/m2 on lyijytön ja sen sinkkipitoisuus on vähintään 99 %. Valmistaja: SSAB"]
[null,"Sinkki-alumiini pinnoitettu pelti - SSAB",2.42,"kg",1,"EPD International","Sinkki-alumiiniseospinnoite (ZA) 95-300 g/m2 sisältää 95 % sinkkiä ja 5 % alumiinia."]
[null,"Sinkki-rautaseos pinnoitettu pelti - SSAB",2.42,"kg",1,"EPD International","Sinkki-rautaseospinnoite (ZF) 80–140 g/m2. Rautapitoisuus on noin 10 %."]
[null,"Tarkkuusteräsputki, hitsattu - SSAB",2.5,"kg",1,"EPD International","Hitsatut kylmämuovatut pyöreät, neliömäiset ja suorakaiteen muotoiset putket tarkkuussovelluksiin"]
[null,"Tarkkuusteräsputki, saumaton",2.74518,"kg",1,"ELCD / IPCC 2013 GWP 100a","Päästökerroin johdettu käyttäen ELCD tietokantaa ja IPCC 2013 GWP 100a arviointimenetelmää."]
[null,"Teräslanka",2.1528400000000003,"kg",1,"ELCD / IPCC 2013 GWP 100a","Päästökerroin johdettu käyttäen ELCD tietokantaa ja IPCC 2013 GWP 100a arviointimenetelmää."]
[null,"Työkaluteräs",4.1963040000000005,"kg",1,"ELCD / IPCC 2013 GWP 100a","Päästökerroin johdettu käyttäen ELCD tietokantaa ja IPCC 2013 GWP 100a arviointimenetelmää."]
[]
[null,"RUOSTUMATTOMAT TERÄKSET","Sarake1","Sarake2","Sarake3","Sarake4","Sarake5"]
[null,"RST kuumavalssattu levy, AISI 304, AISI 316L",4.37,"kg",1,"ELCD / IPCC 2013 GWP 100a","Päästökerroin johdettu käyttäen ELCD tietokantaa ja IPCC 2013 GWP 100a arviointimenetelmää."]
[null,"RST kuumavalssattu levy, AISI 304, AISI 316L - OUTOKUMPU",2.74,"kg",1,"Outokumpu Oyj","Kierrätysmateriaalin osuus 71,32 %"]
[null,"RST kuumavalssattu levy, AISI 304, AISI 316L - NORSK STÅL AS",2.56,"kg",1,"Norsk Stål AS","Kierrätysmateriaalin osuus 95 %"]
[null,"RST kylmävalssattu levy, AISI 304, AISI 316L",4.5540000000000003,"kg",1,"ELCD / IPCC 2013 GWP 100a","Päästökerroin johdettu käyttäen ELCD tietokantaa ja IPCC 2013 GWP 100a arviointimenetelmää."]
[null,"RST kylmävalssattu levy, AISI 304, AISI 316L - OUTOKUMPU",3.39,"kg",1,"Outokumpu Oyj","Kierrätysmateriaalin osuus 65,2 %"]
[null,"RST kylmävalssattu levy, AISI 304, AISI 316L - NORSK STÅL AS",2.02,"kg",1,"Norsk Stål AS","Kierrätysmateriaalin osuus 95 %"]
[null,"RST lattatanko, AISI 304, AISI 316L",4.7350000000000003,"kg",1,"ELCD / IPCC 2013 GWP 100a","Päästökerroin johdettu käyttäen ELCD tietokantaa ja IPCC 2013 GWP 100a arviointimenetelmää."]
[null,"RST lattatanko, AISI 304, AISI 316L - OUTOKUMPU",2.89,"kg",1,"Outokumpu Oyj","Kierrätysmateriaalin osuus 76 %"]
[null,"RST muototeräs, AISI 304, AISI 316L - OUTOKUMPU",2.89,"kg",1,"Outokumpu Oyj","Kierrätysmateriaalin osuus 76 %"]
[null,"RST putki, AISI 304, AISI 316L",4.57,"kg",1,"ELCD / IPCC 2013 GWP 100a","Päästökerroin johdettu käyttäen ELCD tietokantaa ja IPCC 2013 GWP 100a arviointimenetelmää."]
[null,"RST putki, AISI 304, AISI 316L - OUTOKUMPU",2.89,"kg",1,"Outokumpu Oyj","Kierrätysmateriaalin osuus 76 %"]
[]
[null,"MUUT METALLIT","Sarake1","Sarake2","Sarake3","Sarake4","Sarake5"]
[null,"Alumiinilevy",16.38,"kg",1,"ELCD / IPCC 2013 GWP 100a","Päästökerroin johdettu käyttäen ELCD tietokantaa ja IPCC 2013 GWP 100a arviointimenetelmää."]
[null,"Alumiinilevy - ASSAN ALUMINIUM",10.1,"kg",1,"EPD International"]
[null,"Alumiinilevy, maalattu - ASSAN ALUMINIUM",10.48,"kg",1,"EPD International"]
[null,"Alumiiniprofiili",16.47072,"kg",1,"ELCD / IPCC 2013 GWP 100a","Päästökerroin johdettu käyttäen ELCD tietokantaa ja IPCC 2013 GWP 100a arviointimenetelmää."]
[null,"Alumiiniprofiili - HYDRO EXTRUSION",6.03,"kg",1,"EPD International"]
[null,"Alumiiniprofiili - ALUMINCO S.A.",10.4,"kg",1,"EPD International"]
[null,"Alumiiniputki",16.47072,"kg",1,"ELCD / IPCC 2013 GWP 100a","Päästökerroin johdettu käyttäen ELCD tietokantaa ja IPCC 2013 GWP 100a arviointimenetelmää."]
[null,"Alumiinitangot (latta, pyörö, jne.)",16.412500000000001,"kg",1,"ELCD / IPCC 2013 GWP 100a","Päästökerroin johdettu käyttäen ELCD tietokantaa ja IPCC 2013 GWP 100a arviointimenetelmää."]
[null,"Alumiinitanko (pyörötanko) - MIDAL CABLES",6.74,"kg",1,"EPD International"]
[null,"Kuparilanka",0.78800000000000003,"kg",1,"VTT"]
[null,"Kuparilanka - LA FARGA",1.24,"kg",1,"EPD International"]
[null,"Kuparilevy",0.97299999999999998,"kg",1,"VTT"]
[null,"Kuparilevy - KME GERMANY",0.71,"kg",1,"Institut Bauen und Umwelt e.V"]
[null,"Kuparilevy, hapetettu - KME GERMANY",0.94,"kg",1,"Institut Bauen und Umwelt e.V"]
[null,"Kuparilevy, patinoitu - KME GERMANY",1.1000000000000001,"kg",1,"Institut Bauen und Umwelt e.V"]
[null,"Kupariputki",0.97099999999999997,"kg",1,"VTT"]
[null,"Kuparitangot (latta, pyörö, jne.)",1.1918,"kg",1,"ELCD / IPCC 2013 GWP 100a","Päästökerroin johdettu käyttäen ELCD tietokantaa ja IPCC 2013 GWP 100a arviointimenetelmää."]
[null,"Messinki",5.56318,"kg",1,"ELCD / IPCC 2013 GWP 100a","Päästökerroin johdettu käyttäen ELCD tietokantaa ja IPCC 2013 GWP 100a arviointimenetelmää."]
[null,"Pronssi",6.9148800000000001,"kg",1,"ELCD / IPCC 2013 GWP 100a","Päästökerroin johdettu käyttäen ELCD tietokantaa ja IPCC 2013 GWP 100a arviointimenetelmää."]
[null,"Valurauta",1.7877000000000001,"kg",1,"ELCD / IPCC 2013 GWP 100a","Päästökerroin johdettu käyttäen ELCD tietokantaa ja IPCC 2013 GWP 100a arviointimenetelmää."]
[]
[null,"KUMI JA UREATAANI","Sarake1","Sarake2","Sarake3","Sarake4","Sarake5"]
[null,"Kumiletku",3.9211200000000002,"kg",1,"ELCD / IPCC 2013 GWP 100a","Päästökerroin johdettu käyttäen ELCD tietokantaa ja IPCC 2013 GWP 100a arviointimenetelmää."]
[null,"Kumilevy",3.3229000000000002,"kg",1,"ELCD / IPCC 2013 GWP 100a","Päästökerroin johdettu käyttäen ELCD tietokantaa ja IPCC 2013 GWP 100a arviointimenetelmää."]
[null,"Kumiprofiili",3.9133400000000003,"kg",1,"ELCD / IPCC 2013 GWP 100a","Päästökerroin johdettu käyttäen ELCD tietokantaa ja IPCC 2013 GWP 100a arviointimenetelmää."]
[null,"Luonnonkumi (Latex)",2.7820799999999997,"kg",1,"ELCD / IPCC 2013 GWP 100a","Päästökerroin johdettu käyttäen ELCD tietokantaa ja IPCC 2013 GWP 100a arviointimenetelmää."]
[null,"Synteettinen kumi",2.8279999999999998,"kg",1,"ELCD / IPCC 2013 GWP 100a","Päästökerroin johdettu käyttäen ELCD tietokantaa ja IPCC 2013 GWP 100a arviointimenetelmää."]
[null,"Uretaani",5.4424600000000005,"kg",1,"ELCD / IPCC 2013 GWP 100a","Päästökerroin johdettu käyttäen ELCD tietokantaa ja IPCC 2013 GWP 100a arviointimenetelmää."]
[]
[null,"MUOVIT JA LASIKUITU","Sarake1","Sarake2","Sarake3","Sarake4","Sarake5"]
[null,"ABS komponentti, valettu",4.9291199999999993,"kg",1,"ELCD / IPCC 2013 GWP 100a","Päästökerroin johdettu käyttäen ELCD tietokantaa ja IPCC 2013 GWP 100a arviointimenetelmää."]
[null,"ABS putki",4.5864000000000003,"kg",1,"ELCD / IPCC 2013 GWP 100a","Päästökerroin johdettu käyttäen ELCD tietokantaa ja IPCC 2013 GWP 100a arviointimenetelmää."]
[null,"Iskunkestävä polystyreeni (HIPS) levy",3.4261919999999999,"kg",1,"ELCD / IPCC 2013 GWP 100a","Päästökerroin johdettu käyttäen ELCD tietokantaa ja IPCC 2013 GWP 100a arviointimenetelmää."]
[null,"PC komponentti, valettu ",8.6284799999999997,"kg",1,"ELCD / IPCC 2013 GWP 100a","Päästökerroin johdettu käyttäen ELCD tietokantaa ja IPCC 2013 GWP 100a arviointimenetelmää."]
[null,"PEHD levy",2.4333120000000004,"kg",1,"ELCD / IPCC 2013 GWP 100a","Päästökerroin johdettu käyttäen ELCD tietokantaa ja IPCC 2013 GWP 100a arviointimenetelmää."]
[null,"PEHD tanko",3.031056,"kg",1,"ELCD / IPCC 2013 GWP 100a","Päästökerroin johdettu käyttäen ELCD tietokantaa ja IPCC 2013 GWP 100a arviointimenetelmää."]
[null,"PET levy",3.8011680000000001,"kg",1,"ELCD / IPCC 2013 GWP 100a","Päästökerroin johdettu käyttäen ELCD tietokantaa ja IPCC 2013 GWP 100a arviointimenetelmää."]
[null,"PET tanko",4.3989120000000002,"kg",1,"ELCD / IPCC 2013 GWP 100a","Päästökerroin johdettu käyttäen ELCD tietokantaa ja IPCC 2013 GWP 100a arviointimenetelmää."]
[null,"PET peitetulppa",5.3020800000000001,"kg",1,"ELCD / IPCC 2013 GWP 100a","Päästökerroin johdettu käyttäen ELCD tietokantaa ja IPCC 2013 GWP 100a arviointimenetelmää."]
[null,"Plexilasi PMMA - RÖHM GMBH",4.3142399999999999,"kg",1,"Institut Bauen und Umwelt e.V","Polymetyylimetakrylaatti"]
[null,"Polyamidi (Nylon) levy",8.2857600000000016,"kg",1,"ELCD / IPCC 2013 GWP 100a","Päästökerroin johdettu käyttäen ELCD tietokantaa ja IPCC 2013 GWP 100a arviointimenetelmää."]
[null,"Polyamidi (Nylon) tanko",8.8835039999999985,"kg",1,"ELCD / IPCC 2013 GWP 100a","Päästökerroin johdettu käyttäen ELCD tietokantaa ja IPCC 2013 GWP 100a arviointimenetelmää."]
[null,"Polykarbonaatti (PC) levy",7.6910400000000001,"kg",1,"ELCD / IPCC 2013 GWP 100a","Päästökerroin johdettu käyttäen ELCD tietokantaa ja IPCC 2013 GWP 100a arviointimenetelmää."]
[null,"Polykarbonaatti (PC) tanko",8.2857600000000016,"kg",1,"ELCD / IPCC 2013 GWP 100a","Päästökerroin johdettu käyttäen ELCD tietokantaa ja IPCC 2013 GWP 100a arviointimenetelmää."]
[null,"Polypropyleeni (PP) levy",3.2245919999999999,"kg",1,"ELCD / IPCC 2013 GWP 100a","Päästökerroin johdettu käyttäen ELCD tietokantaa ja IPCC 2013 GWP 100a arviointimenetelmää."]
[null,"Polypropyleeni (PP) tanko",3.8233440000000001,"kg",1,"ELCD / IPCC 2013 GWP 100a","Päästökerroin johdettu käyttäen ELCD tietokantaa ja IPCC 2013 GWP 100a arviointimenetelmää."]
[null,"Polypropyleeni (PP) peitetulppa",4.7275200000000002,"kg",1,"ELCD / IPCC 2013 GWP 100a","Päästökerroin johdettu käyttäen ELCD tietokantaa ja IPCC 2013 GWP 100a arviointimenetelmää."]
[null,"Polystyreeni (PS) levy",3.3455520000000001,"kg",1,"ELCD / IPCC 2013 GWP 100a","Päästökerroin johdettu käyttäen ELCD tietokantaa ja IPCC 2013 GWP 100a arviointimenetelmää."]
[null,"PVC kalvo",3.4322399999999997,"kg",1,"ELCD / IPCC 2013 GWP 100a","Päästökerroin johdettu käyttäen ELCD tietokantaa ja IPCC 2013 GWP 100a arviointimenetelmää."]
[null,"PVC komponentti, valettu",1.4495039999999999,"kg",1,"ELCD / IPCC 2013 GWP 100a","Päästökerroin johdettu käyttäen ELCD tietokantaa ja IPCC 2013 GWP 100a arviointimenetelmää."]
[null,"PVC levy",2.392992,"kg",1,"ELCD / IPCC 2013 GWP 100a","Päästökerroin johdettu käyttäen ELCD tietokantaa ja IPCC 2013 GWP 100a arviointimenetelmää."]
[null,"PVC putki",2.9907360000000001,"kg",1,"ELCD / IPCC 2013 GWP 100a","Päästökerroin johdettu käyttäen ELCD tietokantaa ja IPCC 2013 GWP 100a arviointimenetelmää."]
[null,"TPU putki",6.1286399999999999,"kg",1,"ELCD / IPCC 2013 GWP 100a","Päästökerroin johdettu käyttäen ELCD tietokantaa ja IPCC 2013 GWP 100a arviointimenetelmää."]
[null,"Akryylinitriilibutadieenistyreeni  (ABS) granulaatti",3.4876800000000001,"kg",1,"ELCD / IPCC 2013 GWP 100a","Päästökerroin johdettu käyttäen ELCD tietokantaa ja IPCC 2013 GWP 100a arviointimenetelmää."]
[null,"Etyylivinyyliasetaatti (EVA) jauhe",2.3688000000000002,"kg",1,"ELCD / IPCC 2013 GWP 100a","Päästökerroin johdettu käyttäen ELCD tietokantaa ja IPCC 2013 GWP 100a arviointimenetelmää."]
[null,"Iskunkestävä polystyreeni (HIPS) granulaatti",2.9232,"kg",1,"ELCD / IPCC 2013 GWP 100a","Päästökerroin johdettu käyttäen ELCD tietokantaa ja IPCC 2013 GWP 100a arviointimenetelmää."]
[null,"Korkeatiheyksinen polyeteeni (HDPE), granulaatti",1.9293119999999999,"kg",1,"ELCD / IPCC 2013 GWP 100a","Päästökerroin johdettu käyttäen ELCD tietokantaa ja IPCC 2013 GWP 100a arviointimenetelmää."]
[null,"Lasikuitu",2.5300799999999999,"kg",1,"ELCD / IPCC 2013 GWP 100a","Päästökerroin johdettu käyttäen ELCD tietokantaa ja IPCC 2013 GWP 100a arviointimenetelmää."]
[null,"Matalatiheyksinen polyeteeni (LDPE), granulaatti",2.1107519999999997,"kg",1,"ELCD / IPCC 2013 GWP 100a","Päästökerroin johdettu käyttäen ELCD tietokantaa ja IPCC 2013 GWP 100a arviointimenetelmää."]
[null,"Polyamidi (PA, Nylon) granulaatti",7.7817600000000002,"kg",1,"ELCD / IPCC 2013 GWP 100a","Päästökerroin johdettu käyttäen ELCD tietokantaa ja IPCC 2013 GWP 100a arviointimenetelmää."]
[null,"Polyesterihartsi",5.8867199999999995,"kg",1,"ELCD / IPCC 2013 GWP 100a","Päästökerroin johdettu käyttäen ELCD tietokantaa ja IPCC 2013 GWP 100a arviointimenetelmää."]
[null,"Polyeteenitereftalaatti (PET) granulaatti",3.2971680000000001,"kg",1,"ELCD / IPCC 2013 GWP 100a","Päästökerroin johdettu käyttäen ELCD tietokantaa ja IPCC 2013 GWP 100a arviointimenetelmää."]
[null,"Polyeteenitereftalaatti (PET) granulaatti (bottle quality)",3.4372800000000003,"kg",1,"ELCD / IPCC 2013 GWP 100a","Päästökerroin johdettu käyttäen ELCD tietokantaa ja IPCC 2013 GWP 100a arviointimenetelmää."]
[null,"Polykarbonaatti (PC) granulaatti",7.1870399999999997,"kg",1,"ELCD / IPCC 2013 GWP 100a","Päästökerroin johdettu käyttäen ELCD tietokantaa ja IPCC 2013 GWP 100a arviointimenetelmää."]
[null,"Polypropyleeni (PP) granulaatti",2.7216,"kg",1,"ELCD / IPCC 2013 GWP 100a","Päästökerroin johdettu käyttäen ELCD tietokantaa ja IPCC 2013 GWP 100a arviointimenetelmää."]
[null,"Polystyreeni (PS) granulaatti",2.8425599999999998,"kg",1,"ELCD / IPCC 2013 GWP 100a","Päästökerroin johdettu käyttäen ELCD tietokantaa ja IPCC 2013 GWP 100a arviointimenetelmää."]
[null,"Polyuretaani (PU) granulaatti",5.0299200000000006,"kg",1,"ELCD / IPCC 2013 GWP 100a","Päästökerroin johdettu käyttäen ELCD tietokantaa ja IPCC 2013 GWP 100a arviointimenetelmää."]
[null,"Polyvinyylikloridi (PVC) granulaatti",1.8889920000000002,"kg",1,"ELCD / IPCC 2013 GWP 100a","Päästökerroin johdettu käyttäen ELCD tietokantaa ja IPCC 2013 GWP 100a arviointimenetelmää."]
[null,"Termoplastinen polyuretaani (TPU) granulaatti",6.1185600000000004,"kg",1,"ELCD / IPCC 2013 GWP 100a","Päästökerroin johdettu käyttäen ELCD tietokantaa ja IPCC 2013 GWP 100a arviointimenetelmää."]
[null,"Tunnistamaton muovilaatu, keskiarvo",2.3688000000000002,"kg",1,"ELCD / IPCC 2013 GWP 100a","Päästökerroin johdettu käyttäen ELCD tietokantaa ja IPCC 2013 GWP 100a arviointimenetelmää."]
[null,"Vaahtomuovi (solumuovi)",3.7396799999999999,"kg",1,"ELCD / IPCC 2013 GWP 100a","Päästökerroin johdettu käyttäen ELCD tietokantaa ja IPCC 2013 GWP 100a arviointimenetelmää."]
[]
[null,"LASI","Sarake1","Sarake2","Sarake3","Sarake4","Sarake5"]
[null,"Tasolasi (paksuus 1mm)",2.8123200000000002,"m2",2.5,"ELCD / IPCC 2013 GWP 100a","Jos käytetyn lasin koko on esim. 1m x 1m x 4mm, syötetään laskuriin määräksi 4m2"]
[null,"Tasolasi (paksuus 1mm) - PILKINGTON",2.4300000000000002,"m2",2.5,"ift Rosenheim","Jos käytetyn lasin koko on esim. 1m x 1m x 4mm, syötetään laskuriin määräksi 4m2"]
[null,"Karkaistu lasi (paksuus 1mm)",3.2356799999999999,"m2",2.5,"ELCD / IPCC 2013 GWP 100a","Jos käytetyn lasin koko on esim. 1m x 1m x 4mm, syötetään laskuriin määräksi 4m2"]
[null,"Karkaistu lasi (paksuus 1mm) - PILKINGTON",3.46,"m2",2.5,"ift Rosenheim","Jos käytetyn lasin koko on esim. 1m x 1m x 4mm, syötetään laskuriin määräksi 4m2"]
[null,"Laminoitu lasi (paksuus 1mm)",7.9430399999999999,"m2",2.5,"ELCD / IPCC 2013 GWP 100a","Jos käytetyn lasin koko on esim. 1m x 1m x 4mm, syötetään laskuriin määräksi 4m2"]
[null,"Laminoitu lasi (paksuus 1mm) - PILKINGTON",7.93,"m2",2.5,"ift Rosenheim","Jos käytetyn lasin koko on esim. 1m x 1m x 4mm, syötetään laskuriin määräksi 4m2"]
[null,"Peilin pinnoitus",2.0299999999999998,"m2",0.1,"ift Rosenheim","Pelkkä lasin pinnoitus peiliksi"]
[]
[null,"PUUTUOTTEET","Sarake1","Sarake2","Sarake3","Sarake4","Kertoimet sisältävät valmistuksen aikaiset fossiiliset päästöt mutta eivät tuotteeseen sitoutunutta hiiltä."]
[null,"CLT levy",198.57599999999999,"m3",470,"ELCD / IPCC 2013 GWP 100a","Päästökerroin johdettu käyttäen ELCD tietokantaa ja IPCC 2013 GWP 100a arviointimenetelmää."]
[null,"CLT levy - STORA ENSO",53.8,"m3",470,"EPD International"]
[null,"Koivu-/ kuusi-/ mäntyvaneri, pinnoittamaton",767.08799999999997,"m3",560,"ELCD / IPCC 2013 GWP 100a","Päästökerroin johdettu käyttäen ELCD tietokantaa ja IPCC 2013 GWP 100a arviointimenetelmää."]
[null,"Koivuvaneri, pinnoittamaton - RIGA WOOD",291,"m3",630,"EPD International"]
[null,"Koivuvaneri, pinnoitettu - RIGA WOOD",17.899999999999999,"m2",630,"EPD International"]
[null,"Kuusivaneri, pinnoittamaton - UPM",142,"m3",460,"EPD International"]
[null,"Kuusivaneri, pinnoitettu - UPM",175,"m3",460,"EPD International"]
[null,"Laminoitu viilupuutavara",187.488,"m3",450,"ELCD / IPCC 2013 GWP 100a","Päästökerroin johdettu käyttäen ELCD tietokantaa ja IPCC 2013 GWP 100a arviointimenetelmää."]
[null,"Laminoitu viilupuutavara, paksuus 19 - 40 mm - L.A. COST",338,"m3",450,"EPD International"]
[null,"Lastulevy, pinnoittamaton",268,"m3",670,"VTT"]
[null,"Lastulevy, pinnoittamaton - AKRITAS",399,"m3",620,"EPD International"]
[null,"Lastulevy, Melamiini pinnoitus - AKRITAS",9.85,"m2",620,"EPD International"]
[null,"MDF levy, pinnoittamaton",773.13599999999997,"m3",750,"ELCD / IPCC 2013 GWP 100a","Päästökerroin johdettu käyttäen ELCD tietokantaa ja IPCC 2013 GWP 100a arviointimenetelmää."]
[null,"MDF levy, pinnoittamaton - FINSA",420,"m3",840,"EPD International"]
[null,"MDF levy, pinnoittamaton - AGT",365,"m3",700,"EPD International"]
[null,"MDF levy, melamiini pinnoitus",23.21424,"m2",20,"ELCD / IPCC 2013 GWP 100a","Laskennassa käytetyn levyn paino 20,0 kg/m2"]
[null,"MDF levy, melamiini pinnoitus - AGT",11.7,"m2",26.6,"EPD International","Laskennassa käytetyn levyn paino 26,6 kg/m2"]
[null,"MDF levy, PVC pinnoitus - AGT",11.3,"m2",14.8,"EPD International","Laskennassa käytetyn levyn paino 14,8 kg/m2"]
[null,"Melamiinipinnoitus",2.6177760000000001,"m2",0.3,"ELCD / IPCC 2013 GWP 100a","Pelkästään pinnoite. Ei sisällä pinnoitettavaa levyä."]
[null,"Mänty ja kuusi sahatavara - STORA ENSO",33.9,"m3",460,"EPD International"]
[null,"Mänty ja kuusi sahatavara - SWEDISH WOOD",31.6,"m3",455,"EPD International"]
[null,"Mänty ja kuusi, mitallistettu sahatavara",125.69760000000001,"m3",460,"ELCD / IPCC 2013 GWP 100a","Päästökerroin johdettu käyttäen ELCD tietokantaa ja IPCC 2013 GWP 100a arviointimenetelmää."]
[null,"Mänty ja kuusi, mitallistettu sahatavara - STORA ENSO",38.799999999999997,"m3",460,"EPD International"]
[null,"Mäntyvaneri, pinnoittamaton - SAINT-GOBAIN",214,"m3",470,"EPD International"]
[null,"Puukuitulevy",149.68799999999999,"m3",240,"ELCD / IPCC 2013 GWP 100a","Päästökerroin johdettu käyttäen ELCD tietokantaa ja IPCC 2013 GWP 100a arviointimenetelmää."]
[]
[null,"TEKSTIILIT JA TEKSTIILIKUIDUT","Sarake1","Sarake2","Sarake3","Sarake4","Sarake5"]
[null,"Akryyli, kangas",11.53,"kg",1,"Waste and Recources Action Program"]
[null,"Huopa",21.974399999999999,"kg",1,"ELCD / IPCC 2013 GWP 100a","Päästökerroin johdettu käyttäen ELCD tietokantaa ja IPCC 2013 GWP 100a arviointimenetelmää."]
[null,"Juutti, kuitu",2.0663999999999998,"kg",1,"ELCD / IPCC 2013 GWP 100a","Päästökerroin johdettu käyttäen ELCD tietokantaa ja IPCC 2013 GWP 100a arviointimenetelmää."]
[null,"Juutti, lanka",1.5019199999999999,"kg",1,"ELCD / IPCC 2013 GWP 100a","Päästökerroin johdettu käyttäen ELCD tietokantaa ja IPCC 2013 GWP 100a arviointimenetelmää."]
[null,"Juutti, kangas",1.9656,"kg",1,"ELCD / IPCC 2013 GWP 100a","Päästökerroin johdettu käyttäen ELCD tietokantaa ja IPCC 2013 GWP 100a arviointimenetelmää."]
[null,"Keinonahka",21.94,"kg",1,"GaBi"]
[null,"Kenaf, kuitu",1.3204800000000001,"kg",1,"ELCD / IPCC 2013 GWP 100a","Päästökerroin johdettu käyttäen ELCD tietokantaa ja IPCC 2013 GWP 100a arviointimenetelmää."]
[null,"Kenaf, lanka",1.93536,"kg",1,"ELCD / IPCC 2013 GWP 100a","Päästökerroin johdettu käyttäen ELCD tietokantaa ja IPCC 2013 GWP 100a arviointimenetelmää."]
[null,"Kenaf, kangas",2.59056,"kg",1,"ELCD / IPCC 2013 GWP 100a","Päästökerroin johdettu käyttäen ELCD tietokantaa ja IPCC 2013 GWP 100a arviointimenetelmää."]
[null,"Nahka",46.9,"kg",1,"Ganni clothing"]
[null,"Nailon, kangas",7.31,"kg",1,"Waste and Recources Action Program"]
[null,"Pellava, kuitu",1.1188800000000001,"kg",1,"ELCD / IPCC 2013 GWP 100a","Päästökerroin johdettu käyttäen ELCD tietokantaa ja IPCC 2013 GWP 100a arviointimenetelmää."]
[null,"Pellava, kangas",4.5,"kg",1,"Waste and Recources Action Program"]
[null,"Polyesteri, fleece kangas",3.0844800000000001,"kg",1,"ELCD / IPCC 2013 GWP 100a","Päästökerroin johdettu käyttäen ELCD tietokantaa ja IPCC 2013 GWP 100a arviointimenetelmää."]
[null,"Polyesteri, kangas (non-woven)",5.3423999999999996,"kg",1,"ELCD / IPCC 2013 GWP 100a","Päästökerroin johdettu käyttäen ELCD tietokantaa ja IPCC 2013 GWP 100a arviointimenetelmää."]
[null,"Polyesteri, kangas - WRAP",8.19,"kg",1,"Waste and Recources Action Program"]
[null,"Polypropyleeni, kangas (non-woven)",2.7820799999999997,"kg",1,"ELCD / IPCC 2013 GWP 100a","Päästökerroin johdettu käyttäen ELCD tietokantaa ja IPCC 2013 GWP 100a arviointimenetelmää."]
[null,"Puuvilla, lanka",5.7052800000000001,"kg",1,"ELCD / IPCC 2013 GWP 100a","Päästökerroin johdettu käyttäen ELCD tietokantaa ja IPCC 2013 GWP 100a arviointimenetelmää."]
[null,"Puuvilla, neulos",8.3563199999999984,"kg",1,"ELCD / IPCC 2013 GWP 100a","Päästökerroin johdettu käyttäen ELCD tietokantaa ja IPCC 2013 GWP 100a arviointimenetelmää."]
[null,"Puuvilla, kudottu kangas",10.52352,"kg",1,"ELCD / IPCC 2013 GWP 100a","Päästökerroin johdettu käyttäen ELCD tietokantaa ja IPCC 2013 GWP 100a arviointimenetelmää."]
[null,"Silkki, kangas",12.17,"kg",1,"Waste and Recources Action Program"]
[null,"Spinnova, kuitu",1.28,"kg",1,"Spinnova"]
[null,"Villa, raakavilla",20.79,"kg",1,"Waste and Recources Action Program"]
[null,"Villa, lanka",29.44,"kg",1,"Waste and Recources Action Program"]
[null,"Villa, kangas",35.11,"kg",1,"Waste and Recources Action Program"]
[null,"Viskoosi, kangas",14.112,"kg",1,"ELCD / IPCC 2013 GWP 100a","Päästökerroin johdettu käyttäen ELCD tietokantaa ja IPCC 2013 GWP 100a arviointimenetelmää."]
[]
[null,"LIIMAT","Sarake1","Sarake2","Sarake3","Sarake4","Sarake5"]
[null,"Polyuretaaniliima",5.43,"kg",1,"ELCD / IPCC 2013 GWP 100a","Päästökerroin johdettu käyttäen ELCD tietokantaa ja IPCC 2013 GWP 100a arviointimenetelmää."]
[null,"Melamiini-urea-formaldehydiliima (MUF)",2.6308799999999999,"kg",1,"ELCD / IPCC 2013 GWP 100a","Päästökerroin johdettu käyttäen ELCD tietokantaa ja IPCC 2013 GWP 100a arviointimenetelmää."]
[null,"Epoksiliima",3.57,"kg",1,"ELCD / IPCC 2013 GWP 100a","Päästökerroin johdettu käyttäen ELCD tietokantaa ja IPCC 2013 GWP 100a arviointimenetelmää."]
[]
[null,"MAALIT JA LIUOTTIMET","Sarake1","Sarake2","Sarake3","Sarake4","Sarake5"]
[null,"Alkydimaali, metallille ja puulle, liuotinohenteinen",5.6750400000000001,"l",1.2,"ELCD / IPCC 2013 GWP 100a","Päästökerroin johdettu käyttäen ELCD tietokantaa ja IPCC 2013 GWP 100a arviointimenetelmää."]
[null,"Alkydimaali, metallille ja puulle, vesiohenteinen",5.6448,"l",1.2,"ELCD / IPCC 2013 GWP 100a","Päästökerroin johdettu käyttäen ELCD tietokantaa ja IPCC 2013 GWP 100a arviointimenetelmää."]
[null,"Alkydimaali, pohjamaali puulle, ulkokäyttöön - TIKKURILA",0.58699999999999997,"l",1.1870000000000001,"Rakennustietosäätiö RTS"]
[null,"Akryylimaali, metallille, vesiohenteinen - TIKKURILA",3.09,"l",1.2,"Rakennustietosäätiö RTS"]
[null,"Akrylaattimaali, sisäpinnoille, vesiohenteinen - TIKKURILA",1.84,"l",1.331,"Rakennustietosäätiö RTS"]
[null,"2K epoksimaali metallille, vesiohenteinen - TIKKURILA",5.08,"l",1.377,"Rakennustietosäätiö RTS"]
[null,"2K PU-maali metallille, liuotinohenteinen - AKZONOBEL",3.4119999999999999,"l",1.2,"MRPI-EPD"]
[null,"Lakkasprii",0.5292,"kg",1,"ELCD / IPCC 2013 GWP 100a","Päästökerroin johdettu käyttäen ELCD tietokantaa ja IPCC 2013 GWP 100a arviointimenetelmää."]
[null,"Liuotin, keskimääräinen",0.54432000000000003,"kg",1,"ELCD / IPCC 2013 GWP 100a","Päästökerroin johdettu käyttäen ELCD tietokantaa ja IPCC 2013 GWP 100a arviointimenetelmää."]
[null,"Pulverimaali",7.6708800000000004,"kg",1,"ELCD / IPCC 2013 GWP 100a","Päästökerroin johdettu käyttäen ELCD tietokantaa ja IPCC 2013 GWP 100a arviointimenetelmää."]
[null,"Pulverimaali, Class 1 - PULVER",4.1100000000000003,"kg",1,"EPD International","Tavalliset kestävät jauhemaalit"]
[null,"Pulverimaali, Class 2 - PULVER",4.58,"kg",1,"EPD International","Erittäin kestävät jauhemaalit"]
[null,"Pulverimaali, Class 3 - PULVER",6.08,"kg",1,"EPD International","Hyper kestävät jauhemaalit"]
[null,"Tärpätti",2.5179840000000002,"kg",1,"ELCD / IPCC 2013 GWP 100a","Päästökerroin johdettu käyttäen ELCD tietokantaa ja IPCC 2013 GWP 100a arviointimenetelmää."]
[]
[null,"ERIKOISPINNOITTEET","Sarake1","Sarake2","Sarake3","Sarake4","Sarake5"]
[null,"Kromioksidi",6.0782400000000001,"kg",1,"ELCD / IPCC 2013 GWP 100a","Päästökerroin johdettu käyttäen ELCD tietokantaa ja IPCC 2013 GWP 100a arviointimenetelmää."]
[null,"Volframikarbidi",26.530560000000001,"kg",1,"ELCD / IPCC 2013 GWP 100a","Päästökerroin johdettu käyttäen ELCD tietokantaa ja IPCC 2013 GWP 100a arviointimenetelmää."]
[null,"Kobolttioksidi",30.67,"kg",1,"ELCD / IPCC 2013 GWP 100a","Päästökerroin johdettu käyttäen ELCD tietokantaa ja IPCC 2013 GWP 100a arviointimenetelmää."]
[null,"Yttriumoksidi",25.97,"kg",1,"ELCD / IPCC 2013 GWP 100a","Päästökerroin johdettu käyttäen ELCD tietokantaa ja IPCC 2013 GWP 100a arviointimenetelmää."]
[]
[null,"PAKKAUSMATERIAALIT","Sarake2","Sarake3","Sarake4","Sarake5","Sarake6"]
[null,"Kuormalava - EUR",7.7212800000000001,"kpl",20,"ELCD / IPCC 2013 GWP 100a","Päästökerroin johdettu käyttäen ELCD tietokantaa ja IPCC 2013 GWP 100a arviointimenetelmää."]
[null,"Kuormalava - FIN",9.6465600000000009,"kpl",25,"ELCD / IPCC 2013 GWP 100a","Päästökerroin johdettu käyttäen ELCD tietokantaa ja IPCC 2013 GWP 100a arviointimenetelmää."]
[null,"Kraft paperi",0.71567999999999998,"kg",1,"ELCD / IPCC 2013 GWP 100a","Päästökerroin johdettu käyttäen ELCD tietokantaa ja IPCC 2013 GWP 100a arviointimenetelmää."]
[null,"Muovivanne leveys 12 mm (PET)",3.024E-2,"m",8.0000000000000002E-3,"ELCD / IPCC 2013 GWP 100a","Päästökerroin johdettu käyttäen ELCD tietokantaa ja IPCC 2013 GWP 100a arviointimenetelmää."]
[null,"Muovivanne leveys 16 mm (PET)",6.4512E-2,"m",1.7000000000000001E-2,"ELCD / IPCC 2013 GWP 100a","Päästökerroin johdettu käyttäen ELCD tietokantaa ja IPCC 2013 GWP 100a arviointimenetelmää."]
[null,"Pakkausmuovi (kalvo)",3.1147199999999997,"kg",1,"ELCD / IPCC 2013 GWP 100a","Päästökerroin johdettu käyttäen ELCD tietokantaa ja IPCC 2013 GWP 100a arviointimenetelmää."]
[null,"Pahvilaatikko (aaltopahvi)",1.0069920000000001,"kg",1,"ELCD / IPCC 2013 GWP 100a","Päästökerroin johdettu käyttäen ELCD tietokantaa ja IPCC 2013 GWP 100a arviointimenetelmää."]
[null,"Pahvilaatikko (kartonki)",0.73583999999999994,"kg",1,"ELCD / IPCC 2013 GWP 100a","Päästökerroin johdettu käyttäen ELCD tietokantaa ja IPCC 2013 GWP 100a arviointimenetelmää."]
[null,"Styrox pehmuste",3.1449600000000002,"kg",1,"ELCD / IPCC 2013 GWP 100a","Päästökerroin johdettu käyttäen ELCD tietokantaa ja IPCC 2013 GWP 100a arviointimenetelmää."]
[]
[null,"LUOKITTELEMATTOMAT MATERIAALIT","Sarake2","Sarake3","Sarake4","Sarake5","Sarake6"]
[null,"Yrityksen sisäisesti kierrättämä materiaali",0.01,"kg",1,"Yrityksen oma laskelma"]
[null,null,null,"kg",1]
[null,null,null,"kg",1]
[null,null,null,"kg",1]
[null,null,null,"kg",1]
[]
[null,"APUMATERIAALIT"]
[]
[null,"RAEPUHALLUSAINEET","Sarake1","Sarake2","Sarake3","Sarake4","Sarake5"]
[null,"Raepuhallus - Hiekka",1.1087999999999999E-2,"kg",1,"ELCD / IPCC 2013 GWP 100a","Päästökerroin johdettu käyttäen ELCD tietokantaa ja IPCC 2013 GWP 100a arviointimenetelmää."]
[null,"Raepuhallus - Kvartsihiekka",5.04E-2,"kg",1,"ELCD / IPCC 2013 GWP 100a","Päästökerroin johdettu käyttäen ELCD tietokantaa ja IPCC 2013 GWP 100a arviointimenetelmää."]
[null,"Raepuhallus - Sooda",1.26,"kg",1,"ELCD / IPCC 2013 GWP 100a","Päästökerroin johdettu käyttäen ELCD tietokantaa ja IPCC 2013 GWP 100a arviointimenetelmää."]
[null,"Raepuhallus - Lasikuula",2.5300799999999999,"kg",1,"ELCD / IPCC 2013 GWP 100a","Päästökerroin johdettu käyttäen ELCD tietokantaa ja IPCC 2013 GWP 100a arviointimenetelmää."]
[null,"Raepuhallus - Teräskuula",2.1571199999999999,"kg",1,"ELCD / IPCC 2013 GWP 100a","Päästökerroin johdettu käyttäen ELCD tietokantaa ja IPCC 2013 GWP 100a arviointimenetelmää."]
[null,"Raepuhallus - Alumiinioksidi",2.2400000000000002,"kg",1,"MDPI"]
[null,"Raepuhallus - Sirkonioksidirae",3.4675199999999999,"kg",1,"ELCD / IPCC 2013 GWP 100a","Päästökerroin johdettu käyttäen ELCD tietokantaa ja IPCC 2013 GWP 100a arviointimenetelmää."]
[null,"Raepuhallus - Piikarbidirae",9.0921599999999998,"kg",1,"ELCD / IPCC 2013 GWP 100a","Päästökerroin johdettu käyttäen ELCD tietokantaa ja IPCC 2013 GWP 100a arviointimenetelmää."]
[null,"Raepuhallus - Ruostumaton teräskuula",4.7678400000000005,"kg",1,"ELCD / IPCC 2013 GWP 100a","Päästökerroin johdettu käyttäen ELCD tietokantaa ja IPCC 2013 GWP 100a arviointimenetelmää."]
[]
[null,"PUHDISTUSAINEET","Sarake1","Sarake2","Sarake3","Sarake4","Sarake5"]
[null,"Hapan puhdistusaine",0.39,"l",1,"EPD International"]
[null,"Kloriitti puhdistusaine",0.69,"l",1,"EPD International"]
[null,"Emäksinen puhdistusaine",0.31,"l",1,"EPD International"]
[null,"Puhdistusaine, keskimäärin ",3.29,"l",1,"ELCD / IPCC 2013 GWP 100a","Päästökerroin johdettu käyttäen ELCD tietokantaa ja IPCC 2013 GWP 100a arviointimenetelmää."]
[]
[null,"HITSAUSKAASUT","Sarake1","Sarake2","Sarake3","Sarake4","Sarake5"]
[null,"Asetyleeni",5.8867199999999995,"kg",1,"ELCD / IPCC 2013 GWP 100a","Päästökerroin johdettu käyttäen ELCD tietokantaa ja IPCC 2013 GWP 100a arviointimenetelmää."]
[null,"Hiilidioksidi",1,"kg",1]
[null,"SK-2, hiilidioksidi (2%) + argon - WOIKOSKI",2.0160000000000001E-2,"kg",1,"ELCD / IPCC 2013 GWP 100a","Austeniittisten ja ferriittisten, sekä vakiolaatuisten duplex-terästen MAG-hitsaukseen."]
[null,"SK-8, hiilidioksidi (8%) + argon - WOIKOSKI",8.0640000000000003E-2,"kg",1,"ELCD / IPCC 2013 GWP 100a","Seostamattomien ja niukkaseosteisten terästen MAG-hitsaukseen."]
[null,"SK-12, hiilidioksidi (12%) + argon - WOIKOSKI",0.12096,"kg",1,"ELCD / IPCC 2013 GWP 100a","Seostamattomien ja niukkaseosteisten terästen MAG-hitsaukseen."]
[null,"SK-18, hiilidioksidi (18%) + argon - WOIKOSKI",0.18143999999999999,"kg",1,"ELCD / IPCC 2013 GWP 100a","Seostamattomien ja niukkaseosteisten terästen MAG-hitsaukseen."]
[null,"SK-25, hiilidioksidi (18%) + argon - WOIKOSKI",0.252,"kg",1,"ELCD / IPCC 2013 GWP 100a","Seostamattomien ja niukkaseosteisten terästen MAG-hitsaukseen."]
[]
[null,"POLTTOAINEET, ENERGIA, RAHTI"]
[]
[null,"POLTTOAINEET","Sarake1","Sarake2","Sarake3","Sarake4","Sarake5"]
[null,"Bensiini",2.88,"l ","na","SFS-EN 16258 / Tilastokeskus 2022","Bensiini, joka sisältää biokomponenttia (etanolia ym.) 4.8 % lämpöarvosta."]
[null,"Diesel",3.24,"l ","na","SFS-EN 16258 / Tilastokeskus 2022","Diesel, joka sisältää biokomponenttia (uusiutuvaa dieseliä) 11.5 % lämpöarvosta"]
[null,"Neste My uusiutuva biodiesel",1.1339999999999999,"l ","na","SFS-EN 16258 / Tilastokeskus 2022","Uusiutuvalla dieselillä on 40-90 % pienemmät päästöt, jolloin keskiarvoksi saadaan 65% fossiiliseen dieseliin verrattuna"]
[null,"Biokaasu",1.1200000000000001,"kg","na","SFS-EN 16258 / Tilastokeskus 2022","Biopolttoaineen energiakäytön katsotaan olevan hiilidioksidin osalta nollapäästöistä. Päästökertoimessa otettu huomioon CH4 ja N2O ja valmistus."]
[null,"Kevyt polttoöljy",2.5230000000000001,"l ","na","SFS-EN 16258 / Tilastokeskus 2022","Oletetaan sisältävän 4,0 % bio-osuuden energiasisällöstä."]
[null,"Raskas polttoöljy",2.91,"l ","na","SFS-EN 16258 / Tilastokeskus 2022","Rikkipitoisuus <0,5% "]
[null,"Nesteytetty maakaasu (LNG)",3.0049999999999999,"kg","na","SFS-EN 16258 / Tilastokeskus 2022"]
[null,"Puu (hake, kuori, pelletti)",3.0000000000000001E-3,"kWh","na","SFS-EN 16258 / Tilastokeskus 2022","Biopolttoaineen energiakäytön katsotaan olevan hiilidioksidin osalta nollapäästöistä. Päästökertoimessa otettu huomioon CH4 ja N2O ja valmistus."]
[null,"Palaturve",0.373,"kWh","na","SFS-EN 16258 / Tilastokeskus 2022"]
[]
[null,"SÄHKÖ JA LÄMPÖENERGIA","Sarake1","Sarake2","Sarake3","Sarake4","Sarake5"]
[null,"Sähkö (valtakunnallinen keskiarvo)",8.8999999999999996E-2,"kWh","na","Motiva 2021","Keskimääräinen sähköntuotannon CO2-päästökerroin Suomessa, laskettuna kolmen vuoden keskiarvona energiamenetelmällä."]
[null,"Sähkö (alkuperävarmennettu)",0,"kWh","na","Energiavirasto"]
[null,"Sähkö (Forssan Energia)",0.22900000000000001,"kWh","na","Forssan Energia 2020"]
[null,"Sähkö (Fortum yleissähkö)",0,"kWh","na","Fortum 2021"]
[null,"Sähkö (Helen yleissähkö)",7.3999999999999996E-2,"kWh","na","Helen 2021"]
[null,"Sähkö (Imatran Seudun Sähkö)",0.17899999999999999,"kWh","na","Imatran Seudun Sähkö 2020"]
[null,"Sähkö (Kokkolan Energia)",9.6000000000000002E-2,"kWh","na","Kokkolan Energia 2020"]
[null,"Sähkö (Korpelan voima)",0.23499999999999999,"kWh","na","Korpelan voima 2021"]
[null,"Sähkö (KSS Energia)",0.159,"kWh","na","KSS Energia 2021"]
[null,"Sähkö (Kymenlaakson Sähkö)",0.17499999999999999,"kWh","na","Kymenlaakson Sähkö 2021"]
[null,"Sähkö (Leppäkosken Energia)",0.17100000000000001,"kWh","na","Leppäkosken Energia 2020"]
[null,"Sähkö (Nurmijärven Sähkö)",0.23499999999999999,"kWh","na","Nurmijärven Sähkö 2021"]
[null,"Sähkö (Lumme energia yleissähkö)",0.184,"kWh","na","Lumme energia 2020"]
[null,"Sähkö (Omavoima)",0.19500000000000001,"kWh","na","Omavoima 2020"]
[null,"Sähkö (Oomi energia yleissähkö)",0.16900000000000001,"kWh","na","Oomi 2020"]
[null,"Sähkö (Pohjois-Karjalan Sähkö)",0.23499999999999999,"kWh","na","Pohjois-Karjalan Sähkö 2020"]
[null,"Sähkö (Seinäjoen energia yleissähkö)",0.23499999999999999,"kWh","na","Seinäjoen Energia 2021"]
[null,"Sähkö (Turku energia yleissähkö)",2.9000000000000001E-2,"kWh","na","Turku energia 2021"]
[null,"Sähkö (Vaasan sähkön yleissähkö)",0.14799999999999999,"kWh","na","Vaasan sähkö 2021"]
[null,"Sähkö (Vattenfall yleissähkö)",0.152,"kWh","na","Vattenfall 2020"]
[null,"Sähkö (Väre yleissähkö)",0.19,"kWh","na","Väre 2021"]
[null,"Kaukolämpö (valtakunnallinen keskiarvo)",0.17699999999999999,"kWh","na","Motiva 2021","Keskimääräinen kaukolämmön CO2-päästökerroin Suomessa, laskettuna kolmen vuoden keskiarvona energiamenetelmällä."]
[null,"Kaukolämpö (alkuperävarmennettu)",0,"kWh","na","Motiva 2021"]
[null,"Kaukolämpö (Erillistuotanto, Alajärvi)",0.2,"kWh","na","Motiva 2022"]
[null,"Kaukolämpö (Erillistuotanto, Kauhajoki)",0.35,"kWh","na","Motiva 2022"]
[null,"Kaukolämpö (Erillistuotanto, Kauhava)",5.0000000000000001E-3,"kWh","na","Motiva 2022"]
[null,"Kaukolämpö (Erillistuotanto, Seinäjoki)",0.3,"kWh","na","Motiva 2022"]
[null,"Kaukolämpö (Erillistuotanto, Teuva)",0.3,"kWh","na","Motiva 2022"]
[null,"Kaukolämpö (Erillistuotanto, Vimpeli)",0.35,"kWh","na","Motiva 2022"]
[null,"Kaukolämpö (Erillistuotanto, Muut EP:n erillistuotanto kunnat)",0.10299999999999999,"kWh","na","Motiva 2022"]
[]
[null,"MAANTIERAHTI","Sarake1","Sarake2","Sarake3","Sarake4","Sarake5"]
[null,"Pakettiauto (diesel) - HBEFA",0.13800000000000001,"tkm","na","HBEFA (2020)","Light commercial vehicle (LCV)"]
[null,"Pakettiauto (bensiini) - HBEFA",0.17199999999999999,"tkm","na","HBEFA (2020)","Light commercial vehicle (LCV)"]
[null,"Pakettiauto (maakaasu) - HBEFA",6.0000000000000001E-3,"tkm","na","HBEFA (2020)","Light commercial vehicle (LCV)"]
[null,"Pakettiauto (sähkö) - HBEFA",0,"tkm","na","HBEFA (2020)","Light commercial vehicle (LCV)"]
[null,"Pakettiauto (polttoaine ei tiedossa) - HBEFA",0.14099999999999999,"tkm","na","HBEFA (2020)","Light commercial vehicle (LCV)"]
[null,"Raskas tavarakuljetusauto (diesel) - HBEFA",0.63400000000000001,"tkm","na","HBEFA (2020)","Heavy goods vehicle (HGV)"]
[null,"Raskas tavarakuljetusauto (maakaasu) - HBEFA",2.3E-2,"tkm","na","HBEFA (2020)","Heavy goods vehicle (HGV)"]
[null,"Raskas tavarak.auto (p-aine ei tiedossa) - HBEFA",0.63,"tkm","na","HBEFA (2020)","Heavy goods vehicle (HGV)"]
[null,"Pakettiauto - VTT Lipasto",0.32800000000000001,"tkm","na","VTT Lipasto 2017","Osakuorma 50%"]
[null,"Jakelukuorma-auto 6 t - VTT Lipasto",0.186,"tkm","na","VTT Lipasto 2017","Osakuorma 50%"]
[null,"Jakelukuorma-auto 15 t - VTT Lipasto",0.11600000000000001,"tkm","na","VTT Lipasto 2017","Osakuorma 50%"]
[null,"Puoliperävaunuyhdistelmä 40 t - VTT Lipasto",4.9000000000000002E-2,"tkm","na","VTT Lipasto 2017","Osakuorma 70%"]
[null,"Perävaunullinen yhdistelmä 60 t - VTT Lipasto",3.9E-2,"tkm","na","VTT Lipasto 2017","Osakuorma 70%"]
[null,"Perävaunullinen yhdistelmä 76 t - VTT Lipasto",3.5000000000000003E-2,"tkm","na","VTT Lipasto 2017","Osakuorma 70%"]
[null,"Kuorma-auto, maansiirto 32 t - VTT Lipasto",0.04,"tkm","na","VTT Lipasto 2017","Täysi kuorma"]
[]
[null,"JUNARAHTI","Sarake1","Sarake2","Sarake3","Sarake4","Sarake5"]
[null,"Sekatavara tai konttijuna",5.4000000000000003E-3,"tkm","na","VR GROUP Vuosiraportti 2021","Tavarakuljetusten päästöintensiteetti keskimäärin"]
[]
[null,"LAIVARAHTI","Sarake1","Sarake2","Sarake3","Sarake4","Sarake5"]
[null,"Konttialus, 1000 TEU",4.2000000000000003E-2,"tkm","na","VTT Lipasto 2017","TEU = konttiyksikkö. 20. jalan kontti on 1 TEU"]
[null,"Konttialus, 2000 TEU",2.8000000000000001E-2,"tkm","na","VTT Lipasto 2017","TEU = konttiyksikkö. 40 jalan kontti on 2 TEU"]
[null,"Autolautta, 18 solmua",8.2000000000000003E-2,"tkm","na","VTT Lipasto 2017","Autolautta kuljettaa sekä matkustajia että rahtia; päästöistä 80 % on allokoitu matkustajille, 20 % rahdille."]
[null,"Roro, 18 solmua",0.14299999999999999,"tkm","na","VTT Lipasto 2017","Ro-Ro (roll on – roll off) -lastinkäsittelyä käyttävät lastilautat"]
[null,"Ropax, 21 solmua",0.10100000000000001,"tkm","na","VTT Lipasto 2017","Ropax (roro-matkustaja-alus) kuljettaa sekä matkustajia että rahtia; päästöistä 84 % on allokoitu rahdille, 16 % matkustajille."]
[null,"Ropax, 24 solmua",0.14599999999999999,"tkm","na","VTT Lipasto 2017","Ropax (roro-matkustaja-alus) kuljettaa sekä matkustajia että rahtia; päästöistä 84 % on allokoitu rahdille, 16 % matkustajille."]
[]
[null,"LENTORAHTI","Sarake1","Sarake2","Sarake3","Sarake4","Sarake5"]
[null,"Lentorahti alle 400 km",1.095,"tkm","na","SAS 2022"," Laskennassa kaikki etäisyydet on määritetty isoympyräetäisyyksinä (great circle distance, GCD)"]
[null,"Lentorahti 400 < 1200 km",1.0189999999999999,"tkm","na","SAS 2022"," Laskennassa kaikki etäisyydet on määritetty isoympyräetäisyyksinä (great circle distance, GCD)"]
[null,"Lentorahti 1200 > 4000 km",0.93300000000000005,"tkm","na","SAS 2022"," Laskennassa kaikki etäisyydet on määritetty isoympyräetäisyyksinä (great circle distance, GCD)"]
[null,"Lentorahti yli 4000 km",0.74299999999999999,"tkm","na","SAS 2022"," Laskennassa kaikki etäisyydet on määritetty isoympyräetäisyyksinä (great circle distance, GCD)"]
[]
[null,"JÄTTEET"]
[]
[null,"KIERRÄTETTÄVÄT JÄTTEET"]
[null,"Pahvi",5.3423999999999999E-2,"kg",1,"ELCD / IPCC 2013 GWP 100a","Päästökerroin johdettu käyttäen ELCD tietokantaa ja IPCC 2013 GWP 100a arviointimenetelmää."]
[null,"Keräyspaperi",7.3583999999999997E-2,"kg",1,"ELCD / IPCC 2013 GWP 100a","Päästökerroin johdettu käyttäen ELCD tietokantaa ja IPCC 2013 GWP 100a arviointimenetelmää."]
[null,"Keräyslasi",1.3103999999999999E-2,"kg",1,"ELCD / IPCC 2013 GWP 100a","Päästökerroin johdettu käyttäen ELCD tietokantaa ja IPCC 2013 GWP 100a arviointimenetelmää."]
[null,"Keräysmuovi",0.36892799999999998,"kg",1,"ELCD / IPCC 2013 GWP 100a","Päästökerroin johdettu käyttäen ELCD tietokantaa ja IPCC 2013 GWP 100a arviointimenetelmää."]
[null,"Metalli",0.23,"kg",1,"EPA"]
[null,"Akut, paristot",0.93542400000000003,"kg",1,"ELCD / IPCC 2013 GWP 100a","Päästökerroin johdettu käyttäen ELCD tietokantaa ja IPCC 2013 GWP 100a arviointimenetelmää."]
[]
[null,"HYÖTYKÄYTETTÄVÄT JÄTTEET"]
[null,"Muovi",1.853,"kg",1,"Tilastokeskus 2022"]
[null,"Puu",0.14299999999999999,"kg",1,"Tilastokeskus 2022"]
[null,"Kyllästetty puu",0.13700000000000001,"kg",1,"Tilastokeskus 2022"]
[null,"Kumi",3.5999999999999997E-2,"kg",1,"Tilastokeskus 2022"]
[null,"Se-romu",0.87,"kg",1,"EPA"]
[null,"Metalli, alumiini",0.05,"kg",1,"EPA"]
[null,"Metalli, kaapelit",0.18,"kg",1,"EPA"]
[null,"Energiapoltettava jäte",0.41,"kg",1,"Tilastokeskus 2022"]
[null,"Vaarallinen jäte",1.17,"kg",1,"Tilastokeskus 2022"]

{"sheet":"Muut kertoimet","index":7,"n_rows":23,"n_cols":6,"rows_kept":23,"cut":false,"hidden":false,"merged":[]}
[null,"Työstömenetelmä","kWh per yksikkö","yksikkö","Tietolähde","Huomiot"]
[]
[null,"TYÖSTÖMENETELMÄ","Sarake1","Sarake2","Sarake3","Sarake4"]
[null,"Alumiinin sorvaus",0.35,"kg","ELCD","Keskimääräinen energiankulutus valmistettaessa 1 kg valmista tuotetta"]
[null,"Alumiinin jyrsintä",0.36,"kg","ELCD","Keskimääräinen energiankulutus valmistettaessa 1 kg valmista tuotetta"]
[null,"Alumiinin poraus",7.5999999999999998E-2,"kg","ELCD","Keskimääräinen energiankulutus valmistettaessa 1 kg valmista tuotetta"]
[null,"Kromiteräksen sorvaus",0.47699999999999998,"kg","ELCD","Keskimääräinen energiankulutus valmistettaessa 1 kg valmista tuotetta"]
[null,"Kromiteräksen poraus",0.25,"kg","ELCD","Keskimääräinen energiankulutus valmistettaessa 1 kg valmista tuotetta"]
[null,"Messingin sorvaus",0.189,"kg","ELCD","Keskimääräinen energiankulutus valmistettaessa 1 kg valmista tuotetta"]
[null,"Messingin poraus",2.1000000000000001E-2,"kg","ELCD","Keskimääräinen energiankulutus valmistettaessa 1 kg valmista tuotetta"]
[null,"Teräksen sorvaus",0.21,"kg","ELCD","Keskimääräinen energiankulutus valmistettaessa 1 kg valmista tuotetta"]
[null,"Teräksen jyrsintä",0.192,"kg","ELCD","Keskimääräinen energiankulutus valmistettaessa 1 kg valmista tuotetta"]
[null,"Teräksen poraus",9.5000000000000001E-2,"kg","ELCD","Keskimääräinen energiankulutus valmistettaessa 1 kg valmista tuotetta"]
[null,"Valuraudan sorvaus",0.218,"kg","ELCD","Keskimääräinen energiankulutus valmistettaessa 1 kg valmista tuotetta"]
[null,"Valuraudan jyrsintä",0.14799999999999999,"kg","ELCD","Keskimääräinen energiankulutus valmistettaessa 1 kg valmista tuotetta"]
[null,"Valuraudan poraus",5.6000000000000001E-2,"kg","ELCD","Keskimääräinen energiankulutus valmistettaessa 1 kg valmista tuotetta"]
[null,"Muovin ekstruusio",1.39,"kg","ELCD","Kuuma muovi työnnetään muotoillun suulakkeen läpi. Näin syntyvät esimerkiksi putket ja erilaiset profiilit."]
[null,"Muovin kalanterointi",0.505,"kg","ELCD","Kuumennettu muovi syötetään telan väliin. Telat puristavat muovin ohueksi levyksi."]
[null,"Muovin puhallusmuovaus",2.19,"kg","ELCD","Sula muovi puhalletaan muotin reunoille, jolloin saadaan sisältä ontto kappale."]
[null,"Muovin venytys puhallusmuovaus ",2.5499999999999998,"kg","ELCD","Muoviaihio kuumennetaan muotissa. Sula aihio puhalletaan muotin reunoille, jolloin saadaan sisältä ontto kappale."]
[null,"Muovin rotaatiovalu",2.3199999999999998,"kg","ELCD","Muovi kuumennetaan suljetussa muotissa, jota pyöritetään kunnes sen seinämät ovat peittyneet tasaisella kerroksella."]
[null,"Muovin ruiskuvalu",0.21099999999999999,"kg","ELCD","Muovi kuumennetaan ja sekoitetaan. Massaa suihkutetaan suurella paineella suljettuun muottiin"]
[null,"Muovin tyhjiömuovaus",0.60499999999999998,"kg","ELCD","Lämmitetty muovilevy imaistaan alipaineen avulla muotin pinnan muotoiseksi."]

{"sheet":"Misc.","index":8,"n_rows":22,"n_cols":9,"rows_kept":22,"cut":false,"hidden":true,"merged":[]}
[]
[null,null,null,"Listaus materiaaliluokista","Listaus kuljetustavoista","Listaus energiamuodoista","Listaus tuotantomenetelmistä","Listaus valmistuksen apuaineista","Jätelistaus"]
[null,null,null,"AUTOMAATIOKOMPONENTIT","MAANTIERAHTI","SÄHKÖ_JA_LÄMPÖENERGIA","KONEPAJATEOLLISUUS","RAEPUHALLUSAINEET","Pahvi"]
[null,null,null,"MEKANIIKKAKOMPONENTIT","JUNARAHTI","POLTTOAINEET","MUOVITEOLLISUUS","PUHDISTUSAINEET","Keräyspaperi"]
[null,null,null,"VALAISTUS_JA_ELEKTRONIIKKA","LAIVARAHTI",null,"PINTAKÄSITTELY","HITSAUSKAASUT","Keräyslasi"]
[null,null,null,"KIINNITYSTARVIKKEET","LENTORAHTI",null,null,null,"Keräysmuovi"]
[null,null,null,"TERÄKSET",null,null,null,null,"Metalli"]
[null,null,null,"RUOSTUMATTOMAT_TERÄKSET",null,null,null,null,"Akut, paristot"]
[null,null,null,"MUUT_METALLIT",null,null,null,null,"Muovi"]
[null,null,null,"KUMI",null,null,null,null,"Puu"]
[null,null,null,"MUOVIT",null,null,null,null,"Kyllästetty puu"]
[null,null,null,"LASI",null,null,null,null,"Kumi"]
[null,null,null,"PUUTUOTTEET",null,null,null,null,"Se-romu"]
[null,null,null,"TEKSTIILIT_JA_TEKSTIILIKUIDUT",null,null,null,null,"Metalli, alumiini"]
[null,null,null,"LIIMAT",null,null,null,null,"Metalli, kaapelit"]
[null,null,null,"MAALIT_JA_LIUOTTIMET",null,null,null,null,"Energiapoltettava jäte"]
[null,null,null,"ERIKOISPINNOITTEET",null,null,null,null,"Vaarallinen jäte"]
[null,null,null,"PAKKAUSMATERIAALIT"]
[null," ",null,"LUOKITTELEMATTOMAT_MATERIAALIT"]
[null,null,null,"RAEPUHALLUSAINEET"]
[null,null,null,"PUHDISTUSAINEET"]
[null,null,null,"HITSAUSKAASUT"]